Workbook

Sheet 评分表
A1: 指标分类 | B1: 基本信息 | H1: 2018年 | K1: 2019年 | N1: 2020年 | O1: 基本数据调查 | W1: 资产情况 | Y1: 行业引领力 | AB1: 发展潜力 | AI1: 知识产权 | AR1: 企业盈利能力 | AS1: 绿色生产工艺 | AU1: 安全生产管理 | AW1: 协作发展指标 | AZ1: 银政企合作指标 | BA1: 产业人才 | BB1: 专精特新潜力
A2: 指标项 | B2: 企业名称 | C2: 统一社会信用代码 | D2: 产业类别 | E2: 所属行业小类代码 | F2: 企业地址 | G2: 属地名称 | H2: 18年营业收入 | I2: 18年应缴税金 | J2: 18年利润总额 | K2: 19年营业收入 | L2: 19年应缴税金 | M2: 19年利润总额 | N2: 20年营业收入 | O2: 20年应缴税金 | P2: 20年利润总额 | Q2: 用地面积 | R2: 应缴税金 | S2: 年研发费用 | T2: 社保人数 | U2: 吨标煤用量 | V2: 总污染物排放量 | W2: 资产总额 | X2: 负债总额 | Y2: 单项冠军企业 | Z2: 单项冠军产品 | AA2: 市场占有率领先 | AB2: 国家级专精特新 | AC2: 省级专精特新 | AD2: 市级专精特新 | AE2: 国家级企业技术中心 | AF2: 省级企业技术中心 | AG2: 市级企业技术中心 | AH2: 高新技术企业 | AI2: 中国驰名商标 | AJ2: 四川省名牌 | AK2: 成都市名优产品 | AL2: 首台（套）、首批次、首版次企业 | AM2: 发明专利 | AN2: 实用新型专利 | AO2: 外观设计专利 | AP2: pct专利 | AQ2: 专利总数 | AR2: 连续3年盈利企业 | AS2: 绿色工厂称号企业 | AT2: 实施减排技术升级改造企业 | AU2: 发生安全事故 | AV2: 企业拥有ISO三体系数量 | AW2: 进入中国500强供应商体系 | AX2: 符合地区重点产业 | AY2: 企业为省、市重点企业的重要配套企业 | AZ2: 新增投资情况 | BA2: 产业人才数量 | BB2: 专精特新潜力
A3: 指标单位 | D3: 产业类别 | H3: 万元 | I3: 万元 | J3: 万元 | K3: 万元 | L3: 万元 | M3: 万元 | N3: 万元 | O3: 万元 | P3: 万元 | Q3: 万元 | R3: 万元 | S3: 万元 | T3: 人 | U3: 吨标准煤 | V3: 吨 | W3: 万元 | X3: 万元 | AM3: 件 | AN3: 件 | AO3: 件 | AP3: 件 | AQ3: 件
A4: 备注 | D4: 电子信息、生物工程和新医药技术 | Y4: 企业或产品获得国家“单项冠军企业”、“单项冠军产品”等称号的 | Z4: 单项冠军产品 | AA4: 企业产品市场占有率全球、国内、区域（省级行政区以上）领先的（请以文字描述，描述时注明是全球、国内、区域是否领先） | AB4: 企业获得国家级、省级、市级专精特新“小巨人”企业等称号的（请以文字描述，描述时注明是国家级/省级/市级，资质名称） | AE4: 企业获得国家级、省级、市级企业技术中心、工程技术中心的（请以文字描述，描述时注明是国家级/省级/市级，资质名称） | AH4: 企业获得国家级、省级、市级高新技术企业认定的 | AI4: 企业品牌为国家级、省级、市级知名品牌的（含地理标志保护）（请以文字描述，描述时请说明品牌资质级别） | AL4: 企业产品进入重大技术装备首台（套）、新材料首批次、软件首版次推广应用的（请以文字描述，描述时请说明首次进入推广应用的产品） | AM4: 企业拥有的授权专利数（发明专利数、实用新型专利数），PCT国际专利数（截止2020.12.31日已授权的有效专利数量） 专利总数 | AR4: 企业连续3年盈利的、年度实现盈利的 | AS4: 企业绿色生产工作取得成效，作为国家级、省级、市级经验推广的（请以文字描述，描述时请说明属于哪个级别国家/省/市） | AT4: 企业实施减排技术升级改造的（请以文字描述，描述时请说明有/无，投入金额） | AU4: 企业发生安全事故的（发生亡人事故直接降档）（请以文字描述，描述时请说明处罚级别） | AV4: 拥有质量管理体系、环境管理体系和职业健康与安全管理体系（请以文字描述，描述时请说明拥有的体系数量） | AW4: 企业或主要产品进入世界500强、中国500强企业生产（产品）供应商体系的 | AX4: 企业符合本地区重点发展产业的（请以文字描述，描述时请说明是否为符合本地重点发展产业） | AY4: 企业为省、市重点企业（含成渝双城圈和成都都市圈内企业）的重要配套企业的 | AZ4: 新增投资情况 | BA4: 产业人才（年薪30万以上的缴纳社保人数）年薪以税务局数据为准。不以社保申报的工资为统计基数 | BB4: 专精特新潜力
A5: 1 | B5: 成都恒西亚机械工业有限责任公司 | C5: 9151012476228904XH | D5: 其他 | E5: 汽车制造业 | F5: 郫都区成都现代工业港北片区港东二路555号 | G5: 郫都区 | H5: 3487 | I5: 128.91 | J5: 119.8 | K5: 3417.4 | L5: 103.59 | M5: 156.8 | N5: 3823.4 | O5: 165.45 | P5: 196.3 | Q5: 11 | R5: 165.45 | S5: 159.7 | T5: 63 | U5: 811.36 | V5: 0 | W5: 3862.8 | X5: 1972.3 | Y5: 否 | Z5: 否 | AA5: 省内领先 | AB5: 否 | AC5: 否 | AD5: 否 | AE5: 否 | AF5: 否 | AG5: 否 | AH5: 是 | AI5: 否 | AJ5: 否 | AK5: 否 | AL5: 否 | AM5: 0 | AN5: 13 | AO5: 0 | AP5: 0 | AQ5: 13 | AR5: 是 | AS5: 否 | AT5: 200万以下 | AU5: 否 | AV5: 1 | AW5: 是 | AX5: 是 | AY5: 否 | AZ5: 100 | BA5: 0 | BB5: 否
A6: 2 | B6: 成都光华科技发展有限公司 | C6: 91510124774521774W | D6: 其他 | E6: 仪器仪表制造业 | F6: 成都市郫都区港富路358号 | G6: 红光镇 | H6: 4592 | I6: 348.27 | J6: 376.01 | K6: 4803.01 | L6: 436.50 | M6: 961.83 | N6: 6136.98 | O6: 540.56 | P6: 1156.19 | Q6: 42.86 | R6: 540.56 | S6: 463.08 | T6: 70 | U6: 118.86 | V6: 0 | W6: 19098.86 | X6: 12708.40 | Y6: 否 | Z6: 否 | AA6: 否 | AB6: 否 | AC6: 否 | AD6: 否 | AE6: 否 | AF6: 否 | AG6: 否 | AH6: 是 | AI6: 否 | AJ6: 是 | AK6: 否 | AL6: 否 | AM6: 3 | AN6: 17 | AO6: 0 | AP6: 0 | AQ6: 20 | AR6: 否 | AS6: 否 | AT6: 否 | AU6: 否 | AV6: 1 | AW6: 否 | AX6: 否 | AY6: 否 | AZ6: 0 | BA6: 0 | BB6: 否
A7: 3 | B7: 成都鸿图电器有限责任公司 | C7: 915101247745337756 | D7: 其他 | E7: 汽车制造业 | F7: 郫都区现代工业港北区港通北二路126号 | G7: 郫都区 | H7: 5116 | I7: 187 | J7: 98 | K7: 5302 | L7: 180 | M7: 109 | N7: 5895 | O7: 220 | P7: 268 | Q7: 21 | R7: 220 | S7: 0 | T7: 168 | U7: 155.91 | V7: 0 | W7: 4064 | X7: 1168 | Y7: 否 | Z7: 否 | AA7: 否 | AB7: 否 | AC7: 否 | AD7: 否 | AE7: 否 | AF7: 否 | AG7: 否 | AH7: 否 | AI7: 否 | AJ7: 否 | AK7: 否 | AL7: 否 | AM7: 0 | AN7: 0 | AO7: 0 | AP7: 0 | AQ7: 0 | AR7: 否 | AS7: 否 | AT7: 200万以下 | AU7: 否 | AV7: 3 | AW7: 否 | AX7: 否 | AY7: 否 | AZ7: 200 | BA7: 0 | BB7: 否
A8: 4 | B8: 四川六零八科技有限公司 | C8: 91510124774509329T | D8: 电子信息 | E8: 电气机械和器材制造业 | F8: 四川省成都市插都区港富路208号 | G8: 郫都区 | H8: 2139 | I8: 83.16 | J8: 98 | K8: 3381 | L8: 96.1 | M8: 204 | N8: 4016 | O8: 215.00 | P8: 452 | Q8: 19 | R8: 215.00 | S8: 271 | T8: 63 | U8: 41.82 | V8: 0 | W8: 4406 | X8: 2412 | Y8: 否 | Z8: 否 | AA8: 否 | AB8: 否 | AC8: 否 | AD8: 否 | AE8: 否 | AF8: 否 | AG8: 否 | AH8: 是 | AI8: 否 | AJ8: 否 | AK8: 否 | AL8: 否 | AM8: 0 | AN8: 19 | AO8: 0 | AP8: 0 | AQ8: 19 | AR8: 否 | AS8: 否 | AT8: 否 | AU8: 否 | AV8: 0 | AW8: 否 | AX8: 否 | AY8: 否 | AZ8: 80 | BA8: 0 | BB8: 否
A9: 5 | B9: 成都亿隆包装有限公司 | C9: 91510124749727914B | D9: 其他 | E9: 印刷和记录媒介复制业 | F9: 成都市郫都区成都现代工业港北片区港通北三路589号 | G9: 郫都区 | H9: 7100 | I9: 252 | J9: 140 | K9: 7400 | L9: 231 | M9: 220 | N9: 7400 | O9: 206 | P9: 190 | Q9: 15 | R9: 206 | S9: 0 | T9: 110 | U9: 172 | V9: 0.06 | W9: 5100 | X9: 2300 | Y9: 否 | Z9: 否 | AA9: 否 | AB9: 否 | AC9: 否 | AD9: 否 | AE9: 否 | AF9: 否 | AG9: 否 | AH9: 否 | AI9: 否 | AJ9: 否 | AK9: 否 | AL9: 否 | AM9: 0 | AN9: 0 | AO9: 0 | AP9: 0 | AQ9: 0 | AR9: 否 | AS9: 否 | AT9: 200万以下 | AU9: 否 | AV9: 1 | AW9: 否 | AX9: 否 | AY9: 否 | AZ9: 250 | BA9: 0 | BB9: 否
A10: 6 | B10: 成都嘉陵华西光学精密机械有限公司 | C10: 915101247801171020 | D10: 其他 | E10: 汽车制造业 | F10: 成都市郫都区成都现代工业港北区港通北三路663号 | G10: 郫都区 | H10: 14125.07 | I10: 540.39 | J10: 17.24 | K10: 15303.47 | L10: 593.27 | M10: 5.75 | N10: 16987.95 | O10: 642.44 | P10: 187.62 | Q10: 109.9 | R10: 642.44 | S10: 688.19 | T10: 237 | U10: 314.45 | V10: 0 | W10: 11415 | X10: 9871 | Y10: 否 | Z10: 否 | AA10: 否 | AB10: 否 | AC10: 否 | AD10: 否 | AE10: 否 | AF10: 是 | AG10: 否 | AH10: 是 | AI10: 否 | AJ10: 否 | AK10: 是 | AL10: 否 | AM10: 3 | AN10: 22 | AO10: 0 | AP10: 0 | AQ10: 25 | AR10: 否 | AS10: 否 | AT10: 200万以下 | AU10: 否 | AV10: 1 | AW10: 否 | AX10: 否 | AY10: 否 | AZ10: 0 | BA10: 4 | BB10: 否
A11: 7 | B11: 四川优普超纯科技有限公司 | C11: 91510124594653091K | D11: 通用设备制造业 | E11: 通用设备制造业 | F11: 成都市郫都区成都现代工业港北片区小微企业创新园戴家庙路588号 | G11: 成都现代工业港 | H11: 4864 | I11: 551.6 | J11: 590.3 | K11: 4782.9 | L11: 425.5 | M11: 933.4 | N11: 4966.2 | O11: 490.3 | P11: 516.1 | Q11: 15 | R11: 490.3 | S11: 121.6 | T11: 107 | U11: 30.77 | V11: 0 | W11: 5441 | X11: 3085 | Y11: 否 | Z11: 否 | AA11: 否 | AB11: 否 | AC11: 否 | AD11: 否 | AE11: 否 | AF11: 否 | AG11: 否 | AH11: 是 | AI11: 否 | AJ11: 否 | AK11: 否 | AL11: 否 | AM11: 10 | AN11: 50 | AO11: 24 | AP11: 0 | AQ11: 84 | AR11: 否 | AS11: 否 | AT11: 否 | AU11: 否 | AV11: 3 | AW11: 否 | AX11: 否 | AY11: 是 | AZ11: 0 | BA11: 0 | BB11: 否
A12: 8 | B12: 成都易格机械有限责任公司 | C12: 91510124693693902L | D12: 通用设备制造业 | E12: 通用设备制造业 | F12: 四川省成都市郫都区成都现代工业港小微企业创新园望丛东路768号 | G12: 四川省成都市郫都区 | H12: 4772 | I12: 308.5 | J12: 464.4 | K12: 8871.24 | L12: 604.1 | M12: 998.5 | N12: 8696.3 | O12: 393.1 | P12: 1342.4 | Q12: 20 | R12: 393.1 | S12: 420 | T12: 131 | U12: 203.34 | V12: 0 | W12: 14818 | X12: 6584 | Y12: 否 | Z12: 否 | AA12: 国内领先 | AB12: 否 | AC12: 否 | AD12: 否 | AE12: 否 | AF12: 否 | AG12: 是 | AH12: 是 | AI12: 否 | AJ12: 否 | AK12: 否 | AL12: 否 | AM12: 1 | AN12: 39 | AO12: 0 | AP12: 0 | AQ12: 40 | AR12: 是 | AS12: 否 | AT12: 否 | AU12: 否 | AV12: 1 | AW12: 否 | AX12: 是 | AY12: 是 | AZ12: 582.98 | BA12: 0 | BB12: 否
A13: 9 | B13: 成都天创精密模具有限公司 | C13: 91510124790029771U | D13: 其他 | E13: 专用设备制造业 | F13: 成都市郫都区小微企业创新园望丛东路753号 | G13: 成都市郫都区 | H13: 4604 | I13: 217.21 | J13: 1404.26 | K13: 4257.82 | L13: 326.33 | M13: 1999.89 | N13: 5805.65 | O13: 403.74 | P13: 2315.74 | Q13: 18 | R13: 403.74 | S13: 413.24 | T13: 77 | U13: 29.21 | V13: 0 | W13: 8339 | X13: 1068 | Y13: 否 | Z13: 否 | AA13: 国内领先 | AB13: 否 | AC13: 省级专精特新 | AD13: 否 | AE13: 否 | AF13: 否 | AG13: 是 | AH13: 是 | AI13: 否 | AJ13: 否 | AK13: 否 | AL13: 否 | AM13: 13 | AN13: 10 | AO13: 0 | AP13: 0 | AQ13: 23 | AR13: 否 | AS13: 否 | AT13: 否 | AU13: 否 | AV13: 1 | AW13: 是 | AX13: 否 | AY13: 否 | AZ13: 1568.25 | BA13: 0 | BB13: 省级
A14: 10 | B14: 成都市联余精密机械有限公司 | C14: 91510124774511293P | D14: 其他 | E14: 专用设备制造业 | F14: 成都市郫都区成都现代工业港北片区小微企业创新园长生桥路888号 | G14: 郫都区 | H14: 11053 | I14: 637.55 | J14: 3531.5 | K14: 11816.3 | L14: 561.62 | M14: 731.31 | N14: 12961.08 | O14: 470.26 | P14: 114.63 | Q14: 20 | R14: 470.26 | S14: 519.56 | T14: 284 | U14: 1019.95 | V14: 0 | W14: 27879 | X14: 8922 | Y14: 否 | Z14: 否 | AA14: 国内领先 | AB14: 否 | AC14: 否 | AD14: 否 | AE14: 否 | AF14: 是 | AG14: 否 | AH14: 是 | AI14: 否 | AJ14: 否 | AK14: 否 | AL14: 是 | AM14: 11 | AN14: 78 | AO14: 1 | AP14: 0 | AQ14: 90 | AR14: 否 | AS14: 否 | AT14: 否 | AU14: 否 | AV14: 1 | AW14: 否 | AX14: 否 | AY14: 否 | AZ14: 0 | BA14: 5 | BB14: 省级
A15: 11 | B15: 成都市华科机电设备有限公司 | C15: 915101246771786525 | D15: 电子信息 | E15: 电气机械和器材制造业 | F15: 成都市郫都成都现代工业港北片区小微企业创新园望丛东路779号 | G15: 成都市郫都区 | H15: 2037 | I15: 65.3 | J15: 143.7 | K15: 2635.5 | L15: 90.3 | M15: 189.6 | N15: 1921.3 | O15: 83.4 | P15: 95.1 | Q15: 6.9 | R15: 83.4 | S15: 0 | T15: 46 | U15: 34.223 | V15: 0 | W15: 1431 | X15: 785 | Y15: 否 | Z15: 否 | AA15: 否 | AB15: 否 | AC15: 否 | AD15: 否 | AE15: 否 | AF15: 否 | AG15: 否 | AH15: 否 | AI15: 否 | AJ15: 否 | AK15: 否 | AL15: 否 | AM15: 0 | AN15: 0 | AO15: 0 | AP15: 0 | AQ15: 0 | AR15: 否 | AS15: 否 | AT15: 否 | AU15: 否 | AV15: 3 | AW15: 否 | AX15: 否 | AY15: 是 | AZ15: 100 | BA15: 0 | BB15: 否
A16: 12 | B16: 成都锦安器材有限责任公司 | C16: 91510124202503466Ｃ | D16: 其他 | E16: 专用设备制造业 | F16: 成都市郫都区成都现代工业港北片区小微企业创新园望丛北路一段288号 | G16: 成都市郫都区 | H16: 9463 | I16: 998 | J16: 474 | K16: 11223 | L16: 876 | M16: 1202 | N16: 9943 | O16: 1134 | P16: 1871 | Q16: 25 | R16: 1134 | S16: 806 | T16: 72 | U16: 43.33 | V16: 2 | W16: 10280 | X16: 4960 | Y16: 否 | Z16: 否 | AA16: 否 | AB16: 否 | AC16: 否 | AD16: 否 | AE16: 否 | AF16: 否 | AG16: 是 | AH16: 是 | AI16: 否 | AJ16: 否 | AK16: 否 | AL16: 否 | AM16: 8 | AN16: 35 | AO16: 6 | AP16: 0 | AQ16: 49 | AR16: 否 | AS16: 否 | AT16: 否 | AU16: 否 | AV16: 3 | AW16: 否 | AX16: 否 | AY16: 否 | AZ16: 0 | BA16: 0 | BB16: 否
A17: 13 | B17: 四川灼识科技股份有限公司 | C17: 91510100072411028D | D17: 电子信息 | E17: 电气机械和器材制造业 | F17: 郫都区红光镇长生桥1111号 | G17: 郫都区 | H17: 3948 | I17: 32 | J17: 131 | K17: 4159 | L17: 27 | M17: 251 | N17: 6601 | O17: 75 | P17: 607 | Q17: 2.3 | R17: 75 | S17: 278 | T17: 113 | U17: 36.87 | V17: 1.1 | W17: 2684 | X17: 979 | Y17: 否 | Z17: 否 | AA17: 国际领先 | AB17: 否 | AC17: 否 | AD17: 否 | AE17: 否 | AF17: 否 | AG17: 否 | AH17: 是 | AI17: 否 | AJ17: 否 | AK17: 否 | AL17: 否 | AM17: 8 | AN17: 11 | AO17: 7 | AP17: 2 | AQ17: 28 | AR17: 否 | AS17: 否 | AT17: 200万以上 | AU17: 否 | AV17: 1 | AW17: 否 | AX17: 否 | AY17: 否 | AZ17: 998 | BA17: 0 | BB17: 否
A18: 14 | B18: 四川航天飞宇电子科技有限公司 | C18: 91510124725399821T | D18: 电子信息 | E18: 通用设备制造业 | F18: 成都市郫都区成都现代工业港北片区小微企业创新园长生桥路1111号 | G18: 四川成都 | H18: 493 | I18: 5.23 | J18: 29.03 | K18: 2988.35 | L18: 9.36 | M18: 124.37 | N18: 3331.64 | O18: 67.55 | P18: 84.59 | Q18: 2.3 | R18: 67.55 | S18: =80.33+2.05+108.18+1.9+6.43+2.62+0.58 -> 202.09 | T18: 52 | U18: 87.91 | V18: 0 | W18: 3970 | X18: 3838 | Y18: 否 | Z18: 否 | AA18: 否 | AB18: 否 | AC18: 否 | AD18: 否 | AE18: 否 | AF18: 否 | AG18: 否 | AH18: 否 | AI18: 否 | AJ18: 否 | AK18: 否 | AL18: 否 | AM18: 0 | AN18: 0 | AO18: 0 | AP18: 0 | AQ18: 0 | AR18: 否 | AS18: 否 | AT18: 否 | AU18: 否 | AV18: 1 | AW18: 否 | AX18: 否 | AY18: 否 | AZ18: 247.54 | BA18: 0 | BB18: 否
A19: 15 | B19: 四川蜀塔实业有限公司 | C19: 9151 0100 7622 83254C | D19: 通用设备制造业 | E19: 电气机械和器材制造业 | F19: 四川省成都市郫都区现代工业港南片区清马路88号 | G19: 四川省成都市郫都区 | H19: 23210 | I19: 550.45 | J19: 1653.91 | K19: 23635.76 | L19: 924.58 | M19: 1436.80 | N19: 23828.23 | O19: 743.26 | P19: 344.84 | Q19: 18.5 | R19: 743.26 | S19: 760.23 | T19: 125 | U19: 48.04 | V19: 0 | W19: 21786 | X19: 10906.00 | Y19: 否 | Z19: 否 | AA19: 否 | AB19: 否 | AC19: 省级专精特新 | AD19: 否 | AE19: 否 | AF19: 否 | AG19: 是 | AH19: 是 | AI19: 否 | AJ19: 是 | AK19: 否 | AL19: 否 | AM19: 0 | AN19: 40 | AO19: 0 | AP19: 0 | AQ19: 40 | AR19: 否 | AS19: 否 | AT19: 否 | AU19: 否 | AV19: 3 | AW19: 是 | AX19: 否 | AY19: 否 | AZ19: 0 | BA19: 0 | BB19: 省级
A20: 16 | B20: 四川中兴机械制造有限公司 | C20: 91510124788106483Y | D20: =VLOOKUP(B20,B20:E20,4,0) -> 通用设备制造业 | E20: 通用设备制造业 | F20: 成都现代工业港(南区)清马路68号 | G20: 郫都区 | H20: 7268 | I20: 129.7 | J20: 105.2 | K20: 17213.5 | L20: 384.3 | M20: 1005.7 | N20: 13546.6 | O20: 293.1 | P20: 92.4 | Q20: 68 | R20: 293.1 | S20: 21 | T20: 131 | U20: 115.05 | V20: 2.1 | W20: 9687 | X20: 5007 | Y20: 否 | Z20: 否 | AA20: 国际领先 | AB20: 否 | AC20: 否 | AD20: 否 | AE20: 否 | AF20: 否 | AG20: 否 | AH20: 否 | AI20: 否 | AJ20: 否 | AK20: 否 | AL20: 是 | AM20: 0 | AN20: 0 | AO20: 0 | AP20: 0 | AQ20: 0 | AR20: 否 | AS20: 否 | AT20: 200万以上 | AU20: 否 | AV20: 3 | AW20: 否 | AX20: 否 | AY20: 否 | AZ20: 150 | BA20: 0 | BB20: 否
A21: 17 | B21: 成都长江造型材料有限公司 | C21: 91510124774539915N | D21: 其他 | E21: 废弃资源综合利用业 | F21: 成都市郫都区现代工业港南区通港路259号 | G21: 郫都区 | H21: 3697 | I21: 418.98 | J21: 737.52 | K21: 3577.28 | L21: 271.07 | M21: 623.74 | N21: 3651.81 | O21: 309.55 | P21: 730.72 | Q21: 21 | R21: 309.55 | S21: 0 | T21: 36 | U21: 759.8 | V21: 0 | W21: 5258 | X21: 653.98 | Y21: 否 | Z21: 否 | AA21: 省内领先 | AB21: 否 | AC21: 否 | AD21: 否 | AE21: 否 | AF21: 否 | AG21: 否 | AH21: 否 | AI21: 否 | AJ21: 否 | AK21: 否 | AL21: 否 | AM21: 1 | AN21: 0 | AO21: 0 | AP21: 0 | AQ21: 1 | AR21: 否 | AS21: 否 | AT21: 200万以下 | AU21: 否 | AV21: 2 | AW21: 否 | AX21: 否 | AY21: 否 | AZ21: 107 | BA21: 0 | BB21: 否
A22: 18 | B22: 慨迩医疗科技（成都）有限公司 | C22: 91510100201954513W | D22: 通用设备制造业 | E22: 专用设备制造业 | F22: 成都市郫都区成都现代工业港南区清马路48号 | G22: 德源镇 | H22: 24186 | I22: 1478.5 | J22: 5187.7 | K22: 17044.9 | L22: 982.1 | M22: 2528.5 | N22: 23079.9 | O22: 1134.3 | P22: 4514.6 | Q22: 6.6 | R22: 1134.3 | S22: 705 | T22: 83 | U22: 63.25 | V22: 0.04 | W22: 14841 | X22: 2769.4 | Y22: 否 | Z22: 否 | AA22: 国际领先 | AB22: 否 | AC22: 否 | AD22: 否 | AE22: 否 | AF22: 否 | AG22: 否 | AH22: 是 | AI22: 否 | AJ22: 否 | AK22: 否 | AL22: 否 | AM22: 0 | AN22: 10 | AO22: 1 | AP22: 0 | AQ22: 11 | AR22: 否 | AS22: 否 | AT22: 200万以下 | AU22: 否 | AV22: 1 | AW22: 否 | AX22: 否 | AY22: 否 | AZ22: 65.8 | BA22: 11 | BB22: 否
A23: 19 | B23: 四川赛科安全技术有限公司 | C23: 91510124201875233T | D23: 其他 | E23: 批发和零售业 | F23: 成都市郫都区成都现代工业港南片区仁港路128号 | G23: 成都现代工业港 | H23: 1614 | I23: 68 | J23: -116 | K23: 3269 | L23: 87 | M23: 139 | N23: 5041 | O23: 231 | P23: 680 | Q23: 5.5 | R23: 231 | S23: 261 | T23: 98 | U23: 16.59 | V23: 0 | W23: 4986 | X23: 2423 | Y23: 否 | Z23: 否 | AA23: 否 | AB23: 否 | AC23: 省级专精特新 | AD23: 否 | AE23: 否 | AF23: 否 | AG23: 否 | AH23: 是 | AI23: 否 | AJ23: 是 | AK23: 否 | AL23: 否 | AM23: 26 | AN23: 42 | AO23: 17 | AP23: 0 | AQ23: 85 | AR23: 否 | AS23: 否 | AT23: 否 | AU23: 否 | AV23: 3 | AW23: 否 | AX23: 否 | AY23: 否 | AZ23: 42.04 | BA23: 0 | BB23: 否
A24: 20 | B24: 四川郫县离合器有限责任公司 | C24: 91510124720329429P | D24: 其他 | E24: 汽车制造业 | F24: 成都市郫都区成都现代工业港南片区通港路189号 | G24: 成都现代工业港 | H24: 1324 | I24: 65 | J24: 2 | K24: 1622 | L24: 64 | M24: 17 | N24: 1719 | O24: 71 | P24: 24 | Q24: 24 | R24: 71 | S24: 0 | T24: 35 | U24: 238.48 | V24: 0 | W24: 3027 | X24: 1916 | Y24: 否 | Z24: 否 | AA24: 否 | AB24: 否 | AC24: 否 | AD24: 否 | AE24: 否 | AF24: 否 | AG24: 否 | AH24: 否 | AI24: 否 | AJ24: 否 | AK24: 否 | AL24: 否 | AM24: 0 | AN24: 0 | AO24: 0 | AP24: 0 | AQ24: 0 | AR24: 否 | AS24: 否 | AT24: 否 | AU24: 否 | AV24: 1 | AW24: 否 | AX24: 否 | AY24: 是 | AZ24: 0 | BA24: 0 | BB24: 否
A25: 21 | B25: 埃姆维亿低温生物设备（成都）有限公司（曾用名查特低温设备（成都）有限公司） | C25: 91510100MA65R4EBXN | D25: 通用设备制造业 | E25: 专用设备制造业 | F25: 成都市郫都区成都现代工业港南片区清马路48号 | G25: 成都市郫都区 | H25: 0 | I25: 0 | J25: 0 | K25: 8068 | L25: 532 | M25: 2616 | N25: 8024 | O25: 675 | P25: -7983 | Q25: 69 | R25: 675 | S25: 343 | T25: 127 | U25: 234.47 | V25: 0 | W25: 7383 | X25: 1540 | Y25: 否 | Z25: 否 | AA25: 国内领先 | AB25: 否 | AC25: 否 | AD25: 否 | AE25: 否 | AF25: 否 | AG25: 否 | AH25: 是 | AI25: 否 | AJ25: 是 | AK25: 否 | AL25: 否 | AM25: 1 | AN25: 21 | AO25: 1 | AP25: 0 | AQ25: 23 | AR25: 是 | AS25: 市级 | AT25: 否 | AU25: 否 | AV25: 2 | AW25: 否 | AX25: 是 | AY25: 是 | AZ25: 90 | BA25: 5 | BB25: 市级
A26: 22 | B26: 四川欣适运纸品有限责任公司 | C26: 9151012479001801XM | D26: 其他 | E26: 造纸和纸制品业 | F26: 郫都区现代工业港南片区通港路248号 | G26: 四川省成都市郫都区 | H26: 7805 | I26: 235.6 | J26: -18 | K26: 12614 | L26: 353.7 | M26: -98.9 | N26: 13369 | O26: 398 | P26: -246 | Q26: 6 | R26: 398 | S26: 0 | T26: 243 | U26: 485.95 | V26: 6.4 | W26: 4508 | X26: 5443 | Y26: 否 | Z26: 否 | AA26: 否 | AB26: 否 | AC26: 否 | AD26: 否 | AE26: 否 | AF26: 否 | AG26: 否 | AH26: 否 | AI26: 否 | AJ26: 否 | AK26: 否 | AL26: 否 | AM26: 0 | AN26: 0 | AO26: 2 | AP26: 0 | AQ26: 2 | AR26: 否 | AS26: 否 | AT26: 否 | AU26: 否 | AV26: 0 | AW26: 否 | AX26: 否 | AY26: 否 | AZ26: 0 | BA26: 0 | BB26: 否
A27: 23 | B27: 成都普仕瑞包装印务有限公司 | C27: 91510124794924327E | D27: 其他 | E27: 印刷和记录媒介复制业 | F27: 郫都区现代工业港北片区港通北二路123号 | G27: 现代工业港 | H27: 6330 | I27: 86 | J27: 43 | K27: 5473 | L27: 72 | M27: -5 | N27: 5406 | O27: 79 | P27: -64 | Q27: 30 | R27: 79 | S27: 0 | T27: 73 | U27: 100 | V27: 0 | W27: 6045 | X27: 3246 | Y27: 否 | Z27: 否 | AA27: 否 | AB27: 否 | AC27: 否 | AD27: 否 | AE27: 否 | AF27: 否 | AG27: 否 | AH27: 否 | AI27: 否 | AJ27: 否 | AK27: 否 | AL27: 否 | AM27: 0 | AN27: 0 | AO27: 0 | AP27: 0 | AQ27: 0 | AR27: 否 | AS27: 否 | AT27: 否 | AU27: 否 | AV27: 0 | AW27: 否 | AX27: 否 | AY27: 否 | AZ27: 0 | BA27: 0 | BB27: 否
A28: 24 | B28: 成都治远电气设备有限责任公司 | C28: 915101247949164319 | D28: 通用设备制造业 | E28: 电气机械和器材制造业 | F28: 成都市红光现代工业港港北五路279号 | G28: 现代工业港 | H28: 3401 | I28: 133 | J28: 219 | K28: 3143 | L28: 88 | M28: 210 | N28: 4492 | O28: 95 | P28: 203 | Q28: 6 | R28: 95 | S28: 0 | T28: 51 | U28: 9.39 | V28: 0 | W28: 5900 | X28: 1201 | Y28: 否 | Z28: 否 | AA28: 否 | AB28: 否 | AC28: 否 | AD28: 否 | AE28: 否 | AF28: 否 | AG28: 否 | AH28: 否 | AI28: 否 | AJ28: 否 | AK28: 否 | AL28: 否 | AM28: 0 | AN28: 0 | AO28: 0 | AP28: 0 | AQ28: 0 | AR28: 否 | AS28: 否 | AT28: 否 | AU28: 否 | AV28: 1 | AW28: 否 | AX28: 否 | AY28: 否 | AZ28: 0 | BA28: 0 | BB28: 否
A29: 25 | B29: 成都环艺世家科技有限公司 | C29: 91510124086687674J | D29: 其他 | E29: 文娱用品制造业 | F29: 成都市郫都区成都现代工业港北片区港通北三路523号 | G29: 现代工业港 | H29: 3063 | I29: 54.51 | J29: -95.6 | K29: 4215.74 | L29: 67.87 | M29: 26.93 | N29: 2814.66 | O29: 29.04 | P29: -35.29 | Q29: 29 | R29: 29.04 | T29: 76 | U29: 15.36 | V29: 0 | W29: 6208.07 | X29: 6118.13 | Y29: 否 | Z29: 否 | AA29: 否 | AB29: 否 | AC29: 否 | AD29: 否 | AE29: 否 | AF29: 否 | AG29: 否 | AH29: 否 | AI29: 否 | AJ29: 否 | AK29: 否 | AL29: 否 | AM29: 0 | AN29: 0 | AO29: 0 | AP29: 0 | AQ29: 0 | AR29: 否 | AS29: 否 | AT29: 否 | AU29: 否 | AV29: 1 | AW29: 否 | AX29: 否 | AY29: 否 | AZ29: 215.74 | BA29: 0 | BB29: 否
A30: 26 | B30: 四川万马高分子材料有限公司 | C30: 91510124MA6CL6P5X6 | D30: 通用设备制造业 | E30: 电气机械和器材制造业 | F30: 港大路736号 | G30: 现代工业港 | H30: 21978 | I30: 47.39 | J30: 434.83 | K30: 26185.75 | L30: =40.19+152.98+244 -> 437.17 | M30: 629.91 | N30: 25756.72 | O30: =53.5+138+373 -> 564.5 | P30: 515.23 | Q30: 44.08 | R30: =53.5+138+373 -> 564.5 | S30: 118.71 | T30: 83 | U30: 629.15 | V30: 0 | W30: 12946.91 | X30: 11213.24 | Y30: 否 | Z30: 否 | AA30: 否 | AB30: 否 | AC30: 否 | AD30: 否 | AE30: 否 | AF30: 否 | AG30: 否 | AH30: 否 | AI30: 否 | AJ30: 否 | AK30: 否 | AL30: 否 | AM30: 0 | AN30: 0 | AO30: 0 | AP30: 0 | AQ30: 0 | AR30: 否 | AS30: 否 | AT30: 否 | AU30: 否 | AV30: 3 | AW30: 否 | AX30: 否 | AY30: 否 | AZ30: 0 | BA30: 0 | BB30: 否
A31: 27 | B31: 成都汇锦水务发展有限公司 | C31: 91510124202498062G | D31: 其他 | E31: 化学制品制造业 | F31: 成都市郫都区成都现代工业港北区望丛东路969号 | G31: 现代工业港 | H31: 17241 | I31: 1740 | J31: 3118 | K31: 17219 | L31: 1465 | M31: 3578 | N31: 12354 | O31: 944 | P31: 1143 | Q31: 63.5 | R31: 944 | S31: 15 | T31: 140 | U31: 149.87 | V31: 0.43 | W31: 33284 | X31: 12815 | Y31: 否 | Z31: 否 | AA31: 省内领先 | AB31: 否 | AC31: 否 | AD31: 否 | AE31: 否 | AF31: 否 | AG31: 否 | AH31: 否 | AI31: 否 | AJ31: 是 | AK31: 否 | AL31: 否 | AM31: 0 | AN31: 2 | AO31: 0 | AP31: 0 | AQ31: 2 | AR31: 否 | AS31: 否 | AT31: 否 | AU31: 否 | AV31: 3 | AW31: 否 | AX31: 否 | AY31: 否 | AZ31: 5.16 | BA31: 0 | BB31: 否
A32: 28 | B32: 四川友联味业食品有限公司 | C32: 915101246771899929 | D32: =VLOOKUP(B32,B32:E32,4,0) -> 食品制造业 | E32: 食品制造业 | F32: 成都市郫都区安德镇中国川菜园区蜀韵路268号 | G32: 郫都区 | H32: 7063 | I32: 536 | J32: 5.8 | K32: 7977 | L32: 505.18 | M32: 27.8 | N32: 7709 | O32: 417.68 | P32: 22.1 | Q32: 30 | R32: 417.68 | S32: 338 | T32: 180 | U32: 316.08 | V32: 40 | W32: 7800 | X32: 3800 | Y32: 否 | Z32: 否 | AA32: 否 | AB32: 否 | AC32: 否 | AD32: 否 | AE32: 否 | AF32: 否 | AG32: 否 | AH32: 否 | AI32: 否 | AJ32: 否 | AK32: 是 | AL32: 否 | AM32: 10 | AN32: 29 | AO32: 0 | AP32: 0 | AQ32: 39 | AR32: 是 | AS32: 否 | AT32: 200万以下 | AU32: 否 | AV32: 3 | AW32: 否 | AX32: 是 | AY32: 是 | AZ32: 5000 | BA32: 7 | BB32: 省级
A33: 29 | B33: 成都城投远大建筑科技有限公司 | C33: 91510124MA62L0KJ7K | D33: 其他 | E33: 黑色金属冶炼和压延加工业 | F33: 四川省成都市郫都区红光镇港通北四路四999号 | G33: 郫都区现代工业港 | H33: 8540.91 | I33: 119.85 | J33: 270.44 | K33: 22228.82 | L33: 152.92 | M33: 1036.28 | N33: 30206.94 | O33: 236.39 | P33: 1403.42 | Q33: 24 | R33: 236.39 | S33: 948.64 | T33: 154 | U33: 821.84 | V33: 0 | W33: 81452.81 | X33: 59937.76 | Y33: 否 | Z33: 否 | AA33: 否 | AB33: 否 | AC33: 否 | AD33: 市级专精特新 | AE33: 否 | AF33: 否 | AG33: 否 | AH33: 是 | AI33: 否 | AJ33: 是 | AK33: 否 | AL33: 否 | AM33: 1 | AN33: 38 | AO33: 0 | AP33: 0 | AQ33: 39 | AR33: 否 | AS33: 省级 | AT33: 否 | AU33: 否 | AV33: 3 | AW33: 否 | AX33: 否 | AY33: 否 | AZ33: 10261.78 | BA33: 5 | BB33: 否
A34: 30 | B34: 万控科技（成都）有限公司 | C34: 91510124MA62LWQ5P | D34: 通用设备制造业 | E34: 电气机械和器材制造业 | F34: 成都现代工业港北区港通北四路555号 | G34: 郫都区 | H34: 33134.45 | I34: 1601.07 | J34: 2250.83 | K34: 38157.86 | L34: 2283.14 | M34: 2191.29 | N34: 39318.06 | O34: 1376.97 | P34: 1332.72 | Q34: 64.8 | R34: 1376.97 | S34: 705.99 | T34: 593 | U34: 819.99 | V34: 0 | W34: 30281.96 | X34: 19139.51 | Y34: 否 | Z34: 否 | AA34: 省内领先 | AB34: 否 | AC34: 否 | AD34: 市级专精特新 | AE34: 否 | AF34: 否 | AG34: 是 | AH34: 否 | AI34: 否 | AJ34: 否 | AK34: 是 | AL34: 否 | AM34: 2 | AN34: 32 | AO34: 1 | AP34: 0 | AQ34: 35 | AR34: 否 | AS34: 否 | AT34: 否 | AU34: 否 | AV34: 1 | AW34: 是 | AX34: 否 | AY34: 否 | AZ34: 960 | BA34: 0 | BB34: 否
A35: 31 | B35: 成都弘迅电梯配件有限公司 | C35: 91510124MA62L4JJ18 | D35: =VLOOKUP(B35,B35:E35,4,0) -> 通用设备制造业 | E35: 通用设备制造业 | F35: 郫都区港北四路467号 | G35: 郫都区 | H35: 10003.6 | I35: 509 | J35: 484.8 | K35: 13186.2 | L35: 858.5 | M35: 1287 | N35: 13583.7 | O35: 715.6 | P35: 1599.2 | Q35: 18 | R35: 715.6 | S35: 0 | T35: 180 | U35: 96.16 | V35: 0 | W35: 7896.7 | X35: 4341.9 | Y35: 否 | Z35: 否 | AA35: 否 | AB35: 否 | AC35: 否 | AD35: 否 | AE35: 否 | AF35: 否 | AG35: 否 | AH35: 否 | AI35: 否 | AJ35: 否 | AK35: 否 | AL35: 否 | AM35: 0 | AN35: 0 | AO35: 0 | AP35: 0 | AQ35: 0 | AR35: 否 | AS35: 否 | AT35: 否 | AU35: 否 | AV35: 3 | AW35: 否 | AX35: 否 | AY35: 否 | AZ35: 0 | BA35: 0 | BB35: 否
A36: 32 | B36: 四川省鑫好麦的多食品有限公司 | C36: 915101240525192504 | D36: =VLOOKUP(B36,B36:E36,4,0) -> 食品制造业 | E36: 食品制造业 | F36: 郫都区安德镇安平东路289号 | G36: 郫都区 | H36: 6965 | I36: 217.96 | J36: 255.37 | K36: 7722.84 | L36: 483.97 | M36: -75.49 | N36: 7722.84 | O36: 315.85 | P36: -81.00 | Q36: 30 | R36: 315.85 | S36: 329.67 | T36: 290 | U36: 465.89 | V36: 0 | W36: 3489.68 | X36: 2499.16 | Y36: 否 | Z36: 否 | AA36: 否 | AB36: 否 | AC36: 否 | AD36: 否 | AE36: 否 | AF36: 否 | AG36: 否 | AH36: 否 | AI36: 否 | AJ36: 否 | AK36: 否 | AL36: 否 | AM36: 0 | AN36: 0 | AO36: 0 | AP36: 0 | AQ36: 0 | AR36: 否 | AS36: 否 | AT36: 否 | AU36: 否 | AV36: 0 | AW36: 否 | AX36: 否 | AY36: 否 | AZ36: 0 | BA36: 0 | BB36: 否
A37: 33 | B37: 成都金大洲实业发展有限公司 | C37: 9151012473019162XA | D37: 其他 | E37: 农副食品加工业 | F37: 郫都区安德镇中国川菜产业园区永和路339号 | G37: 郫都区 | H37: 15645 | I37: 608 | J37: 381 | K37: 16484 | L37: 654 | M37: 910 | N37: 11239 | O37: 426 | P37: 168 | Q37: 30 | R37: 426 | S37: 305 | T37: 317 | U37: 898.67 | V37: 0 | W37: 12322 | X37: 128799 | Y37: 否 | Z37: 否 | AA37: 国内领先 | AB37: 否 | AC37: 否 | AD37: 市级专精特新 | AE37: 否 | AF37: 是 | AG37: 否 | AH37: 否 | AI37: 是 | AJ37: 否 | AK37: 否 | AL37: 否 | AM37: 3 | AN37: 23 | AO37: 9 | AP37: 0 | AQ37: 35 | AR37: 否 | AS37: 否 | AT37: 否 | AU37: 否 | AV37: 2 | AW37: 否 | AX37: 否 | AY37: 否 | AZ37: 500 | BA37: 7 | BB37: 否
A38: 34 | B38: 成都通用电缆厂 | C38: 91510124202498927Y | D38: 通用设备制造业 | E38: 电气机械和器材制造业 | F38: 四川省成都市郫都区安德镇永兴西路364号 | G38: 郫都区 | H38: 5939 | I38: 141.63 | J38: 11.83 | K38: 20101.82 | L38: 232.89 | M38: 261.56 | N38: 1812.55 | O38: 62.04 | P38: -78.2 | Q38: 28 | R38: 62.04 | S38: 0 | T38: 38 | U38: 41.55 | V38: 0 | W38: 4608.3 | X38: 4213.57 | Y38: 否 | Z38: 否 | AA38: 否 | AB38: 否 | AC38: 否 | AD38: 市级专精特新 | AE38: 否 | AF38: 否 | AG38: 否 | AH38: 否 | AI38: 否 | AJ38: 否 | AK38: 否 | AL38: 否 | AM38: 0 | AN38: 0 | AO38: 0 | AP38: 0 | AQ38: 0 | AR38: 否 | AS38: 否 | AT38: 否 | AU38: 否 | AV38: 2 | AW38: 否 | AX38: 否 | AY38: 否 | AZ38: 0 | BA38: 0 | BB38: 否
A39: 35 | B39: 四川省郫筒酱园有限责任公司 | C39: 9151012420249685X2 | D39: =VLOOKUP(B39,B39:E39,4,0) -> 食品制造业 | E39: 食品制造业 | F39: 郫都区安德镇川菜园区永和路398号 | G39: 川菜园区 | H39: 3180 | I39: 190.99 | J39: 52.77 | K39: 4829.13 | L39: 268.54 | M39: 66.56 | N39: 5212.79 | O39: 268.71 | P39: 200.88 | Q39: 18.06 | R39: 268.71 | S39: 288.97 | T39: 120 | U39: 35.25 | V39: 0 | W39: 4886.78 | X39: 2096.5 | Y39: 否 | Z39: 否 | AA39: 国内领先 | AB39: 否 | AC39: 否 | AD39: 否 | AE39: 否 | AF39: 否 | AG39: 否 | AH39: 否 | AI39: 否 | AJ39: 否 | AK39: 是 | AL39: 否 | AM39: 0 | AN39: 20 | AO39: 6 | AP39: 0 | AQ39: 26 | AR39: 是 | AS39: 否 | AT39: 否 | AU39: 否 | AV39: 3 | AW39: 否 | AX39: 是 | AY39: 是 | AZ39: 235.32 | BA39: 0 | BB39: 否
A40: 36 | B40: 成都盼盼门业有限公司 | C40: 915101246721924558 | D40: =VLOOKUP(B40,B40:E40,4,0) -> 金属制品业 | E40: 金属制品业 | F40: 郫都区现代工业港北片区 港通北四路381号 | G40: 郫都区现代工业港 | H40: 25805 | I40: 877 | J40: -1646 | K40: 30989 | L40: 1882 | M40: -820 | N40: 24045 | O40: 1224 | P40: -13 | Q40: 174 | R40: 1224 | S40: 81 | T40: 465 | U40: 1489 | V40: 0 | W40: 17316 | X40: 8217 | Y40: 否 | Z40: 否 | AA40: 省内领先 | AB40: 否 | AC40: 否 | AD40: 否 | AE40: 否 | AF40: 否 | AG40: 否 | AH40: 否 | AI40: 否 | AJ40: 否 | AK40: 否 | AL40: 否 | AM40: 0 | AN40: 10 | AO40: 2 | AP40: 0 | AQ40: 12 | AR40: 否 | AS40: 否 | AT40: 否 | AU40: 否 | AV40: 2 | AW40: 否 | AX40: 否 | AY40: 否 | AZ40: 0 | BA40: 0 | BB40: 否
A41: 37 | B41: 四川天路通环保机械制造有限公司 | C41: 91510124672183540W | D41: =VLOOKUP(B41,B41:E41,4,0) -> 通用设备制造业 | E41: 通用设备制造业 | F41: 成都市郫都区工业港北区港通北四路269号 | G41: 成都现代工业港 | H41: 4290 | I41: 296.68 | J41: -206 | K41: 3224 | L41: 168.03 | M41: -630 | N41: 2749 | O41: 83.57 | P41: -997 | Q41: 102 | R41: 83.57 | S41: 43.73 | T41: 87 | U41: 33.55 | V41: 0.18 | W41: 10,080.61 | X41: 7,253.75 | Y41: 否 | Z41: 否 | AA41: 否 | AB41: 否 | AC41: 否 | AD41: 市级专精特新 | AE41: 否 | AF41: 否 | AG41: 否 | AH41: 否 | AI41: 否 | AJ41: 否 | AK41: 是 | AL41: 否 | AM41: 0 | AN41: 9 | AO41: 0 | AP41: 0 | AQ41: 9 | AR41: 否 | AS41: 否 | AT41: 否 | AU41: 否 | AV41: 3 | AW41: 否 | AX41: 否 | AY41: 否 | AZ41: 0 | BA41: 0 | BB41: 否
A42: 38 | B42: 成都川缆电缆有限公司 | C42: 91510124669658613U | D42: 通用设备制造业 | E42: 电气机械和器材制造业 | F42: 郫都区成都现代工业港北区港东二路777号 | G42: 成都现代工业港 | H42: 6655 | I42: 120.62 | J42: 72.09 | K42: 7719.63 | L42: 116.95 | M42: 45.35 | N42: 10837.82 | O42: 142.75 | P42: 49.47 | Q42: 4 | R42: 142.75 | S42: 489.65 | T42: 59 | U42: 130.4 | V42: 0 | W42: 14344 | X42: 4478 | Y42: 否 | Z42: 否 | AA42: 否 | AB42: 否 | AC42: 否 | AD42: 否 | AE42: 否 | AF42: 是 | AG42: 否 | AH42: 是 | AI42: 否 | AJ42: 是 | AK42: 否 | AL42: 否 | AM42: 1 | AN42: 19 | AO42: 0 | AP42: 0 | AQ42: 20 | AR42: 否 | AS42: 否 | AT42: 否 | AU42: 否 | AV42: 3 | AW42: 否 | AX42: 否 | AY42: 是 | AZ42: 0 | BA42: 0 | BB42: 否
A43: 39 | B43: 四川新星成明生物科技有限公司 | C43: 915101240549062977 | D43: 通用设备制造业 | E43: 农副食品加工业 | F43: 成都市郫都区中国川菜产业化园区永安路659号 | G43: 成都市郫都区 | H43: 8817 | I43: 273 | J43: 11 | K43: 14499 | L43: 374 | M43: -16 | N43: 12447 | O43: 297 | P43: -19 | Q43: 30 | R43: 297 | S43: 30 | T43: 47 | U43: 1143.83 | V43: 0.725 | W43: 11046 | X43: 9204 | Y43: 否 | Z43: 否 | AA43: 国际领先 | AB43: 否 | AC43: 否 | AD43: 否 | AE43: 否 | AF43: 否 | AG43: 否 | AH43: 否 | AI43: 否 | AJ43: 否 | AK43: 否 | AL43: 否 | AM43: 2 | AN43: 0 | AO43: 0 | AP43: 0 | AQ43: 2 | AR43: 否 | AS43: 否 | AT43: 否 | AU43: 否 | AV43: 3 | AW43: 否 | AX43: 否 | AY43: 否 | AZ43: 1149 | BA43: 0 | BB43: 否
A44: 40 | B44: 成都铁路机电配件厂 | C44: 91510124202497334D | D44: 其他 | E44: 其他设备制造业 | F44: 成都市郫都区安德镇安唐路39号 | G44: 郫都区安德镇 | H44: 13381 | I44: 621.00 | J44: 910.4 | K44: 7311.56 | L44: 226.00 | M44: -695.4 | N44: 7,617.00 | O44: 205.2 | P44: 35.1 | Q44: 11 | R44: 205.2 | S44: 196.2 | T44: 179 | U44: 131.02 | V44: 0 | W44: 13,803.81 | X44: 7,077.35 | Y44: 否 | Z44: 否 | AA44: 否 | AB44: 否 | AC44: 否 | AD44: 否 | AE44: 否 | AF44: 否 | AG44: 否 | AH44: 否 | AI44: 否 | AJ44: 否 | AK44: 否 | AL44: 否 | AM44: 0 | AN44: 15 | AO44: 0 | AP44: 0 | AQ44: 15 | AR44: 否 | AS44: 否 | AT44: 否 | AU44: 否 | AV44: 3 | AW44: 否 | AX44: 否 | AY44: 否 | AZ44: 0 | BA44: 0 | BB44: 否
A45: 41 | B45: 四川省郫县豆瓣股份有限公司 | C45: 91510000202505920J | D45: =VLOOKUP(B45,B45:E45,4,0) -> 食品制造业 | E45: 食品制造业 | F45: 成都市郫都区中国川菜产业园区永安路333号 | G45: 川菜园区 | H45: 25321 | I45: 3037.37 | J45: 3111.2 | K45: 26897.06 | L45: 1158.53 | M45: 1884.03 | N45: 28427.83 | O45: 2013.7 | P45: 2512.57 | Q45: 129 | R45: 2013.7 | S45: 241.91 | T45: 478 | U45: 1190.89 | V45: 3.14 | W45: 55463.8 | X45: 42325.97 | Y45: 否 | Z45: 否 | AA45: 否 | AB45: 否 | AC45: 否 | AD45: 否 | AE45: 否 | AF45: 是 | AG45: 否 | AH45: 否 | AI45: 是 | AJ45: 否 | AK45: 否 | AL45: 否 | AM45: 0 | AN45: 15 | AO45: 18 | AP45: 0 | AQ45: 33 | AR45: 是 | AS45: 否 | AT45: 200万以上 | AU45: 否 | AV45: 3 | AW45: 是 | AX45: 是 | AY45: 是 | AZ45: 3084.52 | BA45: 1 | BB45: 省级
A46: 42 | B46: 成都壮达新材料有限公司 | C46: 91510124672166492Q | D46: 其他 | E46: 橡胶和塑料制品业 | F46: 成都市郫都区成都现代工业港北片区港东五路 | G46: 成都市郫都区成都现代工业港北片区 | H46: 22576 | I46: 274 | J46: 507 | K46: 23047 | L46: 323 | M46: 292 | N46: 23728 | O46: 348 | P46: 736 | Q46: 30 | R46: 348 | S46: 943 | T46: 121 | U46: 2016 | V46: 0 | W46: 18988 | X46: 12079 | Y46: 否 | Z46: 否 | AA46: 省内领先 | AB46: 否 | AC46: 否 | AD46: 否 | AE46: 否 | AF46: 否 | AG46: 否 | AH46: 否 | AI46: 否 | AJ46: 否 | AK46: 否 | AL46: 否 | AM46: 2 | AN46: 7 | AO46: 0 | AP46: 0 | AQ46: 9 | AR46: 否 | AS46: 否 | AT46: 200万以上 | AU46: 否 | AV46: 3 | AW46: 否 | AX46: 否 | AY46: 是 | AZ46: 1262 | BA46: 0 | BB46: 否
A47: 43 | B47: 成都市金顶电线电缆有限责任公司 | C47: 91510124665348108M | D47: 通用设备制造业 | E47: 电气机械和器材制造业 | F47: 成都市郫都区成都现代工业港北片区港通北四路976号 | G47: 成都市郫都区成都现代工业港北片区 | H47: 4478 | I47: 117 | J47: 40 | K47: 5747 | L47: 81 | M47: 101 | N47: 8428 | O47: 120 | P47: 143 | Q47: 20.8 | R47: 120 | S47: 364 | T47: 34 | U47: 60.47 | V47: 0 | W47: 9711 | X47: 4670 | Y47: 否 | Z47: 否 | AA47: 省内领先 | AB47: 否 | AC47: 否 | AD47: 否 | AE47: 否 | AF47: 否 | AG47: 是 | AH47: 是 | AI47: 否 | AJ47: 否 | AK47: 否 | AL47: 否 | AM47: 0 | AN47: 20 | AO47: 0 | AP47: 0 | AQ47: 20 | AR47: 否 | AS47: 否 | AT47: 200万以下 | AU47: 否 | AV47: 1 | AW47: 否 | AX47: 否 | AY47: 否 | AZ47: 47 | BA47: 0 | BB47: 否
A48: 44 | B48: 成都市迅驰塑料包装有限公司 | C48: 91510124672168084M | D48: 其他 | E48: 批发和零售业 | F48: 郫都区现代工业港北片区港北二路88号 | G48: 成都市郫都区成都现代工业港北片区 | H48: 2738.6 | I48: 72.8 | J48: 13.5 | K48: 3349.9 | L48: 86.6 | M48: 78.3 | N48: 3194.5 | O48: 81.4 | P48: 146.7 | Q48: 14 | R48: 81.4 | S48: 20 | T48: 41 | U48: 333.06 | V48: 0 | W48: 14138.7 | X48: 944.2 | Y48: 否 | Z48: 否 | AA48: 省内领先 | AB48: 否 | AC48: 否 | AD48: 否 | AE48: 否 | AF48: 否 | AG48: 否 | AH48: 否 | AI48: 否 | AJ48: 否 | AK48: 否 | AL48: 否 | AM48: 0 | AN48: 0 | AO48: 0 | AP48: 0 | AQ48: 0 | AR48: 否 | AS48: 否 | AT48: 200万以下 | AU48: 否 | AV48: 2 | AW48: 否 | AX48: 否 | AY48: 否 | AZ48: 50 | BA48: 0 | BB48: 否
A49: 45 | B49: 成都健佳饲料有限公司 | C49: 915101246630006779 | D49: 其他 | E49: 农副食品加工业 | F49: 成都市郫都区郫县成都现代工业港北片区成灌路西段1018号 | G49: 成都郫县工业集中发展区 | H49: 13902 | I49: 18 | J49: 113 | K49: 12265 | L49: 27 | M49: 93 | N49: 13077 | O49: 22.51 | P49: 95 | Q49: 15 | R49: 22.51 | S49: 11.32 | T49: 87 | U49: 224.54 | V49: 0 | W49: 9916 | X49: 8268 | Y49: 否 | Z49: 否 | AA49: 否 | AB49: 否 | AC49: 否 | AD49: 否 | AE49: 否 | AF49: 否 | AG49: 否 | AH49: 否 | AI49: 否 | AJ49: 否 | AK49: 否 | AL49: 否 | AM49: 0 | AN49: 15 | AO49: 0 | AP49: 0 | AQ49: 15 | AR49: 是 | AS49: 否 | AT49: 200万以上 | AU49: 否 | AV49: 0 | AW49: 否 | AX49: 是 | AY49: 否 | AZ49: 228 | BA49: 0 | BB49: 否
A50: 46 | B50: 四川有你一面食品有限公司 | C50: 91510124551088758X | D50: =VLOOKUP(B50,B50:E50,4,0) -> 食品制造业 | E50: 食品制造业 | F50: 郫都区永安路299号 | G50: 川菜园区 | H50: =15026234.8/10000 -> 1,502.62 | I50: =2616255.51/10000 -> 261.63 | J50: =-8200000.27/10000 -> -820.00 | K50: =20654385.33/10000 -> 2,065.44 | L50: =684806.88/10000 -> 68.48 | M50: =-4638397.12/10000 -> -463.84 | N50: =95540180.24/10000 -> 9,554.02 | O50: =965454.13/10000 -> 96.55 | P50: =1682855.55/10000 -> 168.29 | Q50: 118 | R50: =965454.13/10000 -> 96.55 | S50: =203697.8/10000 -> 20.37 | T50: 271 | U50: 585.5 | V50: 0 | W50: =140216204.95/10000 -> 14021.62049 | X50: =100093752.21/10000 -> 10009.37522 | Y50: 否 | Z50: 否 | AA50: 否 | AB50: 否 | AC50: 否 | AD50: 否 | AE50: 否 | AF50: 否 | AG50: 否 | AH50: 否 | AI50: 否 | AJ50: 否 | AK50: 否 | AL50: 否 | AM50: 0 | AN50: 0 | AO50: 0 | AP50: 0 | AQ50: 0 | AR50: 否 | AS50: 否 | AT50: 否 | AU50: 否 | AV50: 2 | AW50: 否 | AX50: 否 | AY50: 否 | AZ50: 0 | BA50: 1 | BB50: 否
A51: 47 | B51: 成都嗨呗可食品有限公司 | C51: 91510100099873708R | D51: =VLOOKUP(B51,B51:E51,4,0) -> 食品制造业 | E51: 食品制造业 | F51: 成都市郫都区安德镇成都市郫都区中国川菜产业化园区永兴西路336号 | G51: 中国川菜产业化园区 | H51: 2076 | I51: 22.5 | J51: 1.1 | K51: 1964 | L51: 34.9 | M51: -212 | N51: 3213 | O51: 40.7 | P51: -39 | Q51: 4.65 | R51: 40.7 | S51: 50 | T51: 50 | U51: 112.48 | V51: 0 | W51: 1672 | X51: 1665 | Y51: 否 | Z51: 否 | AA51: 否 | AB51: 否 | AC51: 否 | AD51: 否 | AE51: 否 | AF51: 否 | AG51: 否 | AH51: 否 | AI51: 否 | AJ51: 否 | AK51: 是 | AL51: 否 | AM51: 0 | AN51: 0 | AO51: 0 | AP51: 0 | AQ51: 0 | AR51: 否 | AS51: 否 | AT51: 否 | AU51: 否 | AV51: 1 | AW51: 否 | AX51: 否 | AY51: 否 | AZ51: 0 | BA51: 0 | BB51: 否
A52: 48 | B52: 成都市润康油脂有限公司 | C52: 91510124MA61X5XR3E | D52: 其他 | E52: 农副食品加工业 | F52: 成都市郫都区中国川菜产业化功能区工业园区永安路705号 | G52: 中国川菜产业化园区 | H52: 0 | I52: 0 | J52: -17.08 | K52: 3237.56 | L52: 33.52 | M52: -263.13 | N52: 11709.86 | O52: 57.66 | P52: -751.73 | Q52: 34.57 | R52: 57.66 | S52: 146.06 | T52: 70 | U52: 200.21 | V52: 0 | W52: 12373.52 | X52: 8414.49 | Y52: 否 | Z52: 否 | AA52: 省内领先 | AB52: 否 | AC52: 否 | AD52: 否 | AE52: 否 | AF52: 否 | AG52: 否 | AH52: 否 | AI52: 否 | AJ52: 否 | AK52: 否 | AL52: 否 | AM52: 0 | AN52: 15 | AO52: 0 | AP52: 0 | AQ52: 15 | AR52: 是 | AS52: 市级 | AT52: 否 | AU52: 否 | AV52: 3 | AW52: 否 | AX52: 是 | AY52: 否 | AZ52: 0 | BA52: 0 | BB52: 否
A53: 49 | B53: 四川省川海晨洋食品有限责任公司 | C53: 91510124MA6C64A30M | D53: =VLOOKUP(B53,B53:E53,4,0) -> 食品制造业 | E53: 食品制造业 | F53: 郫都区中国川菜产业园区永兴东路69号 | G53: 中国川菜产业化园区 | H53: 0 | I53: 0.00 | J53: -221.2 | K53: 7182.74 | L53: 0 | M53: 344.14 | N53: 24600.79 | O53: 0 | P53: 507.18 | Q53: 73.8 | R53: 0 | S53: 806.75 | T53: 516 | U53: 1405.5 | V53: 0 | W53: 29579.34 | X53: 26155.31 | Y53: 否 | Z53: 否 | AA53: 否 | AB53: 否 | AC53: 否 | AD53: 否 | AE53: 否 | AF53: 否 | AG53: 否 | AH53: 是 | AI53: 否 | AJ53: 否 | AK53: 否 | AL53: 否 | AM53: 4 | AN53: 30 | AO53: 1 | AP53: 0 | AQ53: 35 | AR53: 是 | AS53: 否 | AT53: 200万以上 | AU53: 否 | AV53: 2 | AW53: 否 | AX53: 是 | AY53: 是 | AZ53: 0 | BA53: 3 | BB53: 否
A54: 50 | B54: 四川杨国福食品有限公司 | C54: 915101243579762682 | D54: =VLOOKUP(B54,B54:E54,4,0) -> 食品制造业 | E54: 食品制造业 | F54: 中国川菜产业化园区郫都区安德镇永和路418号 | G54: 中国川菜产业化园区 | H54: 3295.38 | I54: 0 | J54: -168.32 | K54: 26370.4 | L54: 919.73 | M54: 6146.13 | N54: 29702.9 | O54: 1259.1 | P54: 8394.5 | Q54: 48 | R54: 1259.1 | S54: 188 | T54: 217 | U54: 614.35 | V54: 0 | W54: 43389.2 | X54: 28317.2 | Y54: 否 | Z54: 否 | AA54: 否 | AB54: 否 | AC54: 否 | AD54: 市级专精特新 | AE54: 否 | AF54: 否 | AG54: 否 | AH54: 否 | AI54: 否 | AJ54: 否 | AK54: 否 | AL54: 否 | AM54: 0 | AN54: 31 | AO54: 6 | AP54: 0 | AQ54: 37 | AR54: 否 | AS54: 否 | AT54: 否 | AU54: 否 | AV54: 3 | AW54: 否 | AX54: 否 | AY54: 否 | AZ54: 0 | BA54: 2 | BB54: 否
A55: 51 | B55: 四川美味源食品有限公司 | C55: 91510124MA61T2XR3H | D55: =VLOOKUP(B55,B55:E55,4,0) -> 食品制造业 | E55: 食品制造业 | F55: 中国川菜产业化园区郫都区安德镇永和路418号 | G55: 中国川菜产业化园区 | H55: 0 | I55: 20 | J55: -32 | K55: 4542 | L55: 128 | M55: 328 | N55: 7677 | O55: 450 | P55: 1389 | Q55: 48.6 | R55: 450 | S55: 446 | T55: 158 | U55: 370.69 | V55: 0 | W55: 15797 | X55: 4558 | Y55: 否 | Z55: 否 | AA55: 否 | AB55: 否 | AC55: 否 | AD55: 否 | AE55: 否 | AF55: 否 | AG55: 否 | AH55: 否 | AI55: 否 | AJ55: 否 | AK55: 否 | AL55: 否 | AM55: 2 | AN55: 0 | AO55: 1 | AP55: 0 | AQ55: 3 | AR55: 是 | AS55: 否 | AT55: 否 | AU55: 否 | AV55: 3 | AW55: 是 | AX55: 是 | AY55: 否 | AZ55: 10233 | BA55: 0 | BB55: 否
A56: 52 | B56: 四川省丽通食品有限公司 | C56: 91510124MA6CMF2E7W | D56: =VLOOKUP(B56,B56:E56,4,0) -> 食品制造业 | E56: 食品制造业 | F56: 成都市郫都区中国川菜产业化园区永安路576号 | G56: 中国川菜产业化园区 | H56: 632 | I56: 6.92 | J56: -267 | K56: 3445 | L56: 12.5 | M56: -282 | N56: 1992 | O56: 26.82 | P56: -856 | Q56: 44.84 | R56: 26.82 | S56: 138 | T56: 85 | U56: 58.38 | V56: 0 | W56: 10492 | X56: 6986 | Y56: 否 | Z56: 否 | AA56: 否 | AB56: 否 | AC56: 否 | AD56: 否 | AE56: 否 | AF56: 否 | AG56: 否 | AH56: 否 | AI56: 否 | AJ56: 否 | AK56: 是 | AL56: 否 | AM56: 1 | AN56: 4 | AO56: 8 | AP56: 0 | AQ56: 13 | AR56: 是 | AS56: 市级 | AT56: 否 | AU56: 否 | AV56: 1 | AW56: 否 | AX56: 是 | AY56: 是 | AZ56: 0 | BA56: 0 | BB56: 否
A57: 53 | B57: 成都洋得利食品有限公司 | C57: 915101243319723658 | D57: =VLOOKUP(B57,B57:E57,4,0) -> 食品制造业 | E57: 食品制造业 | F57: 成都市郫都区安德镇中国川菜产业化园区永安路259号 | G57: 中国川菜产业化园区 | H57: 705.25 | I57: 32.86 | J57: -28.41 | K57: 2726.21 | L57: 58.1 | M57: 51.74 | N57: 6379.27 | O57: 29.2 | P57: -123.933991 | Q57: 13.92 | R57: 29.2 | S57: 42.25 | T57: 308.45 | U57: 0 | V57: 0 | W57: 2380.46 | X57: 1994.98 | Y57: 否 | Z57: 否 | AA57: 否 | AB57: 否 | AC57: 否 | AD57: 否 | AE57: 否 | AF57: 否 | AG57: 否 | AH57: 否 | AI57: 否 | AJ57: 否 | AK57: 否 | AL57: 否 | AM57: 2 | AN57: 15 | AO57: 0 | AP57: 0 | AQ57: 17 | AR57: 否 | AS57: 否 | AT57: 否 | AU57: 否 | AV57: 0 | AW57: 否 | AX57: 否 | AY57: 否 | AZ57: 否 | BB57: 否
A58: 54 | B58: 成都九华圆通科技发展有限公司 | C58: 915101247130292093 | D58: 电子信息 | E58: 计算机、通信和其他电子设备制造业 | F58: 成都现代工业港北片区 | G58: 成都现代工业港 | H58: 12336.63 | I58: 1267.7 | J58: 4864.19 | K58: 14635.73 | L58: 2747.97 | M58: 5106.11 | N58: 26333.69 | O58: 6353.69 | P58: 10992.64 | Q58: 37.72 | R58: 6353.69 | S58: 1938.78 | T58: 150 | U58: 27.46 | V58: 0 | W58: 48549.62 | X58: 31500.45 | Y58: 否 | Z58: 否 | AA58: 国内领先 | AB58: 国家级专精特新 | AC58: 否 | AD58: 否 | AE58: 否 | AF58: 是 | AG58: 否 | AH58: 是 | AI58: 否 | AJ58: 否 | AK58: 是 | AL58: 否 | AM58: 50 | AN58: 116 | AO58: 6 | AP58: 0 | AQ58: 172 | AR58: 是 | AS58: 否 | AT58: 否 | AU58: 否 | AV58: 2 | AW58: 否 | AX58: 是 | AY58: 是 | AZ58: 10000 | BA58: 15 | BB58: 国家级
A59: 55 | B59: 成都志达商品混凝土厂 | C59: 91510124713045516E | D59: 其他 | E59: 非金属矿物制品业 | F59: 成都市郫都区成都现代工业港北片区港裕路33号 | G59: 成都现代工业港 | H59: =447746443.71/10000 -> 44774.64 | I59: =20179042.84/10000 -> 2017.90 | J59: =23675079.68/10000 -> 2367.51 | K59: =481232005.27/10000 -> 48123.20 | L59: =28815085.93/10000 -> 2881.51 | M59: =23401154.97/10000 -> 2340.12 | N59: =742318582.21/10000 -> 74231.86 | O59: =27521007.0604/10000 -> 2752.10 | P59: =29291797.45/10000 -> 2929.18 | Q59: 30.00 | R59: =27521007.0604/10000 -> 2752.10 | S59: =2119880.16/10000 -> 211.99 | T59: 186.00 | U59: 671.67 | V59: 0 | W59: =655698107.63/10000 -> 65569.81 | X59: =567620085.69/10000 -> 56762.01 | Y59: 否 | Z59: 否 | AA59: 省内领先 | AB59: 否 | AC59: 否 | AD59: 否 | AE59: 否 | AF59: 否 | AG59: 否 | AH59: 是 | AI59: 否 | AJ59: 否 | AK59: 否 | AL59: 否 | AM59: 6 | AN59: 4 | AO59: 0 | AP59: 0 | AQ59: 10 | AR59: 否 | AS59: 市级 | AT59: 否 | AU59: 否 | AV59: 3 | AW59: 否 | AX59: 否 | AY59: 否 | AZ59: 0 | BA59: 0 | BB59: 否
A60: 56 | B60: 老肯医疗科技股份有限公司 | C60: 915101007130698769 | D60: 通用设备制造业 | E60: 专用设备制造业 | F60: 成都市郫县成都现代工业港北片区港通北三路211号 | G60: 成都现代工业港 | H60: 22439.21 | I60: 2261.61 | J60: 1451.32 | K60: 30778.57 | L60: 2196.24 | M60: 2696.3 | N60: 38310.33 | O60: 3949.14 | P60: 2416.83 | Q60: 90.37 | R60: 3949.14 | S60: 2747.26 | T60: 388 | U60: 351.14 | V60: 0 | W60: 66433.57 | X60: 28486.2 | Y60: 否 | Z60: 否 | AA60: 国内领先 | AB60: 国家级专精特新 | AC60: 否 | AD60: 否 | AE60: 否 | AF60: 是 | AG60: 否 | AH60: 是 | AI60: 否 | AJ60: 是 | AK60: 否 | AL60: 否 | AM60: 77 | AN60: 97 | AO60: 101 | AP60: 2 | AQ60: 277 | AR60: 否 | AS60: 否 | AT60: 否 | AU60: 否 | AV60: 3 | AW60: 否 | AX60: 否 | AY60: 是 | AZ60: 0 | BA60: 0 | BB60: 国家级
A61: 57 | B61: 成都德贝实业有限公司 | C61: 91510124713080303K | D61: 其他 | E61: 家具制造业 | F61: 成都市郫县成都现代工业港北片区港大路111号 | G61: 成都现代工业港 | H61: 31553 | I61: 2264 | J61: 2577 | K61: 44929 | L61: 2886 | M61: 2889 | N61: 43146 | O61: 3636 | P61: 5486 | Q61: 100 | R61: 3636 | S61: 841 | T61: 549 | U61: 344.12 | V61: 0 | W61: 43417 | X61: 27552 | Y61: 否 | Z61: 否 | AA61: 省内领先 | AB61: 否 | AC61: 省级专精特新 | AD61: 否 | AE61: 否 | AF61: 否 | AG61: 是 | AH61: 否 | AI61: 否 | AJ61: 是 | AK61: 否 | AL61: 否 | AM61: 6 | AN61: 23 | AO61: 14 | AP61: 0 | AQ61: 43 | AR61: 否 | AS61: 否 | AT61: 200万以上 | AU61: 是 | AV61: 0 | AW61: 否 | AX61: 否 | AY61: 是 | AZ61: 3200 | BA61: 10 | BB61: 省级
A62: 58 | B62: 成都通用兴达电器箱柜有限公司 | C62: 91510124720322470E | D62: 通用设备制造业 | E62: 电气机械和器材制造业 | F62: 成都市郫都区成都现代工业港北片区港北四路360号 | G62: 成都现代工业港 | H62: 2381.29 | I62: 140.5 | J62: 32.00 | K62: 3167.33 | L62: 112.6 | M62: 79.48 | N62: 3313.82 | O62: 58.1 | P62: 75.27 | Q62: 15 | R62: 58.1 | S62: 0 | T62: 96 | U62: 118.48 | V62: 0.1 | W62: 1018 | X62: 1055.31 | Y62: 否 | Z62: 否 | AA62: 否 | AB62: 否 | AC62: 否 | AD62: 否 | AE62: 否 | AF62: 否 | AG62: 否 | AH62: 否 | AI62: 否 | AJ62: 否 | AK62: 否 | AL62: 否 | AM62: 0 | AN62: 0 | AO62: 0 | AP62: 0 | AQ62: 0 | AR62: 否 | AS62: 否 | AT62: 否 | AU62: 否 | AV62: 0 | AW62: 否 | AX62: 否 | AY62: 否 | AZ62: 0 | BA62: 0 | BB62: 否
A63: 59 | B63: 成都菲斯特新材料有限公司 | C63: 91510124720351490G | D63: 其他 | E63: 化学原料和化学制品制造业 | F63: 成都市郫都区成都现代工业港北片区港通北三路380号 | G63: 成都现代工业港 | H63: 2393 | I63: 5 | J63: 107 | K63: 2804 | L63: 6 | M63: 150 | N63: 2538 | O63: 31 | P63: -175 | Q63: 14.6 | R63: 31 | S63: 164 | T63: 44 | U63: 155.22 | V63: 0 | W63: 3428 | X63: 530 | Y63: 否 | Z63: 否 | AA63: 否 | AB63: 否 | AC63: 否 | AD63: 否 | AE63: 否 | AF63: 否 | AG63: 否 | AH63: 是 | AI63: 否 | AJ63: 否 | AK63: 否 | AL63: 否 | AM63: 0 | AN63: 0 | AO63: 0 | AP63: 0 | AQ63: 0 | AR63: 否 | AS63: 否 | AT63: 否 | AU63: 否 | AV63: 0 | AW63: 否 | AX63: 否 | AY63: 否 | AZ63: 0 | BA63: 0 | BB63: 否
A64: 60 | B64: 成都铁达电子股份有限公司 | C64: 915101247203853244 | D64: 电子信息 | E64: 计算机、通信和其他电子设备制造业 | F64: 成都市郫都区成都现代工业港北片区港大路733号 | G64: 成都现代工业港 | H64: 15592.5 | I64: 2305.7 | J64: 2051.7 | K64: 15845.8 | L64: 1882.5 | M64: 2166 | N64: 16636.9 | O64: 1697.7 | P64: 2448.6 | Q64: 20.5 | R64: 1697.7 | S64: 811.6 | T64: 235 | U64: 1012.79 | V64: 0 | W64: 21342.7 | X64: 4592 | Y64: 否 | Z64: 否 | AA64: 省内领先 | AB64: 否 | AC64: 否 | AD64: 否 | AE64: 否 | AF64: 是 | AG64: 否 | AH64: 是 | AI64: 否 | AJ64: 否 | AK64: 否 | AL64: 否 | AM64: 9 | AN64: 34 | AO64: 0 | AP64: 0 | AQ64: 43 | AR64: 是 | AS64: 否 | AT64: 200万以上 | AU64: 否 | AV64: 2 | AW64: 是 | AX64: 是 | AY64: 是 | AZ64: 1000 | BA64: 6 | BB64: 省级
A65: 61 | B65: 成都中工电气工程有限公司 | C65: 915101247234011230 | D65: 其他 | E65: 其他设备制造业 | F65: 成都市郫都区成都现代工业港北片区港通北四路56号 | G65: 成都现代工业港 | H65: 4668.66 | I65: 490 | J65: 180.23 | K65: 4851.26 | L65: 253 | M65: 493.41 | N65: 7707.3 | O65: 732.97 | P65: 615.96 | Q65: 30 | R65: 732.97 | S65: 628.38 | T65: 95 | U65: 16 | V65: 0 | W65: 10942.25 | X65: 6773.19 | Y65: 否 | Z65: 否 | AA65: 国内领先 | AB65: 否 | AC65: 否 | AD65: 否 | AE65: 否 | AF65: 否 | AG65: 是 | AH65: 是 | AI65: 否 | AJ65: 否 | AK65: 否 | AL65: 是 | AM65: 5 | AN65: 16 | AO65: 5 | AP65: 0 | AQ65: 26 | AR65: 否 | AS65: 否 | AT65: 否 | AU65: 否 | AV65: 3 | AW65: 否 | AX65: 否 | AY65: 否 | AZ65: 80 | BA65: 0 | BB65: 否
A66: 62 | B66: 成都普瑞斯特新材料有限公司 | C66: 915101246675720823 | D66: 其他 | E66: 化学制品制造业 | F66: 成都郫都区成都现代工业港北片区港东一路大道598号 | G66: 成都现代工业港 | H66: 3953.44 | I66: 111.08 | J66: 12.58 | K66: 4079.15 | L66: 116.39 | M66: 158.72 | N66: 3728.34 | O66: 106.98 | P66: 196.9 | Q66: 20 | R66: 106.98 | S66: 241.33 | T66: 52 | U66: 41.51 | V66: 0 | W66: 5444.49 | X66: 4482.86 | Y66: 否 | Z66: 否 | AA66: 国内领先 | AB66: 否 | AC66: 否 | AD66: 否 | AE66: 否 | AF66: 是 | AG66: 否 | AH66: 是 | AI66: 否 | AJ66: 是 | AK66: 否 | AL66: 否 | AM66: 21 | AN66: 7 | AO66: 0 | AP66: 0 | AQ66: 28 | AR66: 否 | AS66: 否 | AT66: 否 | AU66: 否 | AV66: 3 | AW66: 否 | AX66: 否 | AY66: 否 | AZ66: 30 | BA66: 0 | BB66: 否
A67: 63 | B67: 四川现代电器成套有限公司 | C67: 915101247118834011 | D67: 通用设备制造业 | E67: 电气机械和器材制造业 | F67: 成都市郫都区成都现代工业港北片区港北四路185号 | G67: 郫都区 | H67: 9007 | I67: 396 | J67: 385 | K67: 8154 | L67: 327 | M67: 315 | N67: 8456 | O67: 356 | P67: 398 | Q67: 9 | R67: 356 | S67: 0 | T67: 37 | U67: 8.71 | V67: 0 | W67: 6689 | X67: 2376 | Y67: 否 | Z67: 否 | AA67: 省内领先 | AB67: 否 | AC67: 否 | AD67: 否 | AE67: 否 | AF67: 否 | AG67: 否 | AH67: 否 | AI67: 否 | AJ67: 否 | AK67: 否 | AL67: 否 | AM67: 0 | AN67: 3 | AO67: 0 | AP67: 0 | AQ67: 3 | AR67: 否 | AS67: 否 | AT67: 否 | AU67: 否 | AV67: 3 | AW67: 否 | AX67: 否 | AY67: 是 | AZ67: 0 | BA67: 0 | BB67: 否
A68: 64 | B68: 四川攀登科技有限公司 | C68: 915101245589682056 | D68: 其他 | E68: 专用设备制造业 | F68: 郫县成都现代工业港南片区通港路138号 | G68: 郫都区 | H68: 4786 | I68: 208.9 | J68: 47.18 | K68: 7406.88 | L68: 272.19 | M68: 72.45 | N68: 8975.76 | O68: 382.69 | P68: -3.54 | Q68: 19 | R68: 382.69 | S68: 406.59 | T68: 116 | U68: 88 | V68: 12 | W68: 3544.07 | X68: 2442.66 | Y68: 否 | Z68: 否 | AA68: 省内领先 | AB68: 否 | AC68: 否 | AD68: 市级专精特新 | AE68: 否 | AF68: 否 | AG68: 否 | AH68: 是 | AI68: 否 | AJ68: 否 | AK68: 否 | AL68: 否 | AM68: 0 | AN68: 16 | AO68: 2 | AP68: 0 | AQ68: 18 | AR68: 是 | AS68: 否 | AT68: 200万以下 | AU68: 否 | AV68: 1 | AW68: 否 | AX68: 是 | AY68: 是 | AZ68: 0 | BA68: 0 | BB68: 市级
A69: 65 | B69: 四川创宏电气有限公司 | C69: 915101245671524006 | D69: 通用设备制造业 | E69: 电气机械和器材制造业 | F69: 郫都区现代工业港南区清马路1189号 | G69: 郫都区 | H69: 4291 | I69: 131.42 | J69: 33.06 | K69: 4145.68 | L69: 111.7 | M69: 29.48 | N69: 3922.96 | O69: 108.9 | P69: -143.51 | Q69: 9 | R69: 108.9 | S69: 312.85 | T69: 80 | U69: 12.83 | V69: 0 | W69: 3958.54 | X69: 1823.18 | Y69: 否 | Z69: 否 | AA69: 否 | AB69: 否 | AC69: 否 | AD69: 否 | AE69: 否 | AF69: 否 | AG69: 否 | AH69: 是 | AI69: 否 | AJ69: 否 | AK69: 否 | AL69: 否 | AM69: 1 | AN69: 29 | AO69: 1 | AP69: 0 | AQ69: 31 | AR69: 否 | AS69: 否 | AT69: 否 | AU69: 否 | AV69: 3 | AW69: 否 | AX69: 否 | AY69: 否 | AZ69: 111.18 | BA69: 0 | BB69: 否
A70: 66 | B70: 四川川纳电气有限公司 | C70: 91510124677188324Y | D70: 通用设备制造业 | E70: 电气机械和器材制造业 | F70: 成都市郫都区成都现代工业港北片区港东三路590号 | G70: 成都现代工业港 | H70: 6217 | I70: 84.55 | J70: 338.22 | K70: 7052.58 | L70: 70.76 | M70: 283.04 | N70: 6837.05 | O70: 52.6 | P70: 217.84 | Q70: 14 | R70: 52.6 | S70: 0 | T70: 58 | U70: 30.77 | V70: 0 | W70: 7291.3 | X70: 778.33 | Y70: 否 | Z70: 否 | AA70: 省内领先 | AB70: 否 | AC70: 否 | AD70: 否 | AE70: 否 | AF70: 否 | AG70: 否 | AH70: 否 | AI70: 否 | AJ70: 否 | AK70: 否 | AL70: 否 | AM70: 0 | AN70: 0 | AO70: 0 | AP70: 0 | AQ70: 0 | AR70: 否 | AS70: 市级 | AT70: 200万以下 | AU70: 否 | AV70: 3 | AW70: 否 | AX70: 否 | AY70: 否 | AZ70: 0 | BA70: 0 | BB70: 否
A71: 67 | B71: 成都新格有色金属有限公司 | C71: 91510100321679288X | D71: =VLOOKUP(B71,B71:E71,4,0) -> 金属制品业 | E71: 金属制品业 | F71: 成都市郫都区现代工业港南片区滨清路439号 | G71: 成都现代工业港 | H71: 35991 | I71: 337 | J71: 873 | K71: 39106 | L71: 647 | M71: 823.5 | N71: 42912 | O71: 541 | P71: 549 | Q71: 3.9 | R71: 541 | S71: 0 | T71: 60 | U71: 414.03 | V71: 0 | W71: 19121 | X71: 10498 | Y71: 否 | Z71: 否 | AA71: 否 | AB71: 否 | AC71: 否 | AD71: 否 | AE71: 否 | AF71: 否 | AG71: 否 | AH71: 否 | AI71: 否 | AJ71: 否 | AK71: 否 | AL71: 否 | AM71: 0 | AN71: 0 | AO71: 0 | AP71: 0 | AQ71: 0 | AR71: 否 | AS71: 否 | AT71: 否 | AU71: 否 | AV71: 2 | AW71: 否 | AX71: 否 | AY71: 是 | AZ71: 0 | BA71: 0 | BB71: 否
A72: 68 | B72: 成都市鸿侠科技有限责任公司 | C72: 9151012468456405XU | D72: 其他 | E72: 其他设备制造业 | F72: 成都市郫都区成都现代工业港北片区港东一路510号 | G72: 郫都区红光镇 | H72: 2687 | I72: 326 | J72: -173 | K72: 4122 | L72: 438 | M72: 95 | N72: 4248 | O72: 388 | P72: 55 | Q72: 27 | R72: 388 | S72: 322 | T72: 138 | U72: 203.81 | V72: 0 | W72: 13664 | X72: 11050 | Y72: 否 | Z72: 否 | AA72: 省内领先 | AB72: 否 | AC72: 省级专精特新 | AD72: 否 | AE72: 否 | AF72: 否 | AG72: 是 | AH72: 是 | AI72: 否 | AJ72: 否 | AK72: 否 | AL72: 否 | AM72: 3 | AN72: 22 | AO72: 0 | AP72: 0 | AQ72: 25 | AR72: 否 | AS72: 否 | AT72: 否 | AU72: 否 | AV72: 2 | AW72: 否 | AX72: 否 | AY72: 是 | AZ72: 2000 | BA72: 6 | BB72: 国家级
A73: 69 | B73: 成都瑞雪精密机械有限公司 | C73: 915101246743230176 | D73: 通用设备制造业 | E73: 电气机械和器材制造业 | F73: 成都市郫都区成都现在工业港新经济产业园田坝西街299号 | G73: 德源 | H73: 5562 | I73: 630.5 | J73: 1027 | K73: 6951 | L73: 650.5 | M73: 1999 | N73: 10717 | O73: 974.6 | P73: 2741 | Q73: 3.06 | R73: 974.6 | S73: 970.49 | T73: 326 | U73: 253.51 | V73: 0 | W73: 20792 | X73: 12464 | Y73: 否 | Z73: 否 | AA73: 否 | AB73: 否 | AC73: 省级专精特新 | AD73: 否 | AE73: 否 | AF73: 否 | AG73: 是 | AH73: 是 | AI73: 否 | AJ73: 否 | AK73: 否 | AL73: 否 | AM73: 3 | AN73: 22 | AO73: 0 | AP73: 0 | AQ73: 25 | AR73: 否 | AS73: 否 | AT73: 否 | AU73: 否 | AV73: 3 | AW73: 否 | AX73: 否 | AY73: 是 | AZ73: 2500 | BA73: 0 | BB73: 否
A74: 70 | B74: 成都彩堂钣金有限公司 | C74: 91510124689037152E | D74: =VLOOKUP(B74,B74:E74,4,0) -> 金属制品业 | E74: 金属制品业 | F74: 郫县工业港北区港通北三路589号A12-2 | G74: 郫县 | H74: 2750 | I74: 122.8 | J74: 39.5 | K74: 3746 | L74: 184.5 | M74: 35.4 | N74: 3978.7 | O74: 93 | P74: -44 | Q74: 16.5 | R74: 93 | S74: 0 | T74: 60 | U74: 81.145254 | V74: 0 | W74: 3750 | X74: 3018.6 | Y74: 否 | Z74: 否 | AA74: 否 | AB74: 否 | AC74: 否 | AD74: 否 | AE74: 否 | AF74: 否 | AG74: 否 | AH74: 否 | AI74: 否 | AJ74: 否 | AK74: 否 | AL74: 否 | AM74: 0 | AN74: 0 | AO74: 0 | AP74: 0 | AQ74: 0 | AR74: 否 | AS74: 否 | AT74: 否 | AU74: 否 | AV74: 1 | AW74: 否 | AX74: 否 | AY74: 否 | AZ74: 0 | BA74: 0 | BB74: 否
A75: 71 | B75: 成都冠佳科技有限公司 | C75: 915101245946928678 | D75: 通用设备制造业 | E75: 电气机械和器材制造业 | F75: 成都市郫都区现代工业港南片区西源大道4549号 | G75: 四川东方锦城园区 | H75: 6935 | I75: 433.62 | J75: 900 | K75: 12732.18 | L75: 515.99 | M75: 1249.55 | N75: 20112.14 | O75: 214.97 | P75: 1114.88 | Q75: 10 | R75: 214.97 | S75: 1141.18 | T75: 284 | U75: 219.60 | V75: 0 | W75: 19229.51 | X75: 13064.53 | Y75: 否 | Z75: 否 | AA75: 国内领先 | AB75: 否 | AC75: 否 | AD75: 市级专精特新 | AE75: 否 | AF75: 否 | AG75: 是 | AH75: 是 | AI75: 否 | AJ75: 否 | AK75: 否 | AL75: 否 | AM75: 11 | AN75: 109 | AO75: 0 | AP75: 0 | AQ75: 120 | AR75: 是 | AS75: 否 | AT75: 否 | AU75: 否 | AV75: 3 | AW75: 是 | AX75: 是 | AY75: 是 | AZ75: 200 | BA75: 0 | BB75: 市级
A76: 72 | B76: 四川鑫电电缆有限公司 | C76: 915101246796878214 | D76: 电子信息 | E76: 计算机、通信和其他电子设备制造业 | F76: 成都市现代工业港通北三路781号 | G76: 郫都区 | H76: 74488.65 | I76: 1051 | J76: 2503.14 | K76: 70088.22 | L76: 879.53 | M76: 2217.85 | N76: 83556.01 | O76: 1132.92 | P76: 2538.14 | Q76: 80 | R76: 1132.92 | S76: 2286.17 | T76: 281 | U76: 1013.6 | V76: 2.3 | W76: 46462.15 | X76: 36763.9 | Y76: 否 | Z76: 否 | AA76: 省内领先 | AB76: 否 | AC76: 省级专精特新 | AD76: 否 | AE76: 否 | AF76: 是 | AG76: 否 | AH76: 是 | AI76: 是 | AJ76: 否 | AK76: 否 | AL76: 否 | AM76: 5 | AN76: 69 | AO76: 0 | AP76: 0 | AQ76: 74 | AR76: 是 | AS76: 否 | AT76: 200万以上 | AU76: 否 | AV76: 3 | AW76: 否 | AX76: 是 | AY76: 是 | AZ76: 400 | BA76: 5 | BB76: 国家级
A77: 73 | B77: 成都卫达机械制造有限公司 | C77: 9151012468631971X4 | D77: =VLOOKUP(B77,B77:E77,4,0) -> 金属制品业 | E77: 金属制品业 | F77: 成都市郫都区成都现代工业港北片区港东三路609号 | G77: 成都市郫都区 | H77: 3043 | I77: 148 | J77: 181 | K77: 2931 | L77: 132 | M77: 150 | N77: 3535 | O77: 195 | P77: 367 | Q77: 12.4 | R77: 195 | S77: 206.63 | T77: 95 | U77: 810.65 | V77: 1.084 | W77: 3891 | X77: 1666 | Y77: 否 | Z77: 否 | AA77: 省内领先 | AB77: 否 | AC77: 否 | AD77: 否 | AE77: 否 | AF77: 否 | AG77: 否 | AH77: 是 | AI77: 否 | AJ77: 否 | AK77: 否 | AL77: 否 | AM77: 0 | AN77: 19 | AO77: 0 | AP77: 0 | AQ77: 19 | AR77: 是 | AS77: 否 | AT77: 200万以下 | AU77: 否 | AV77: 1 | AW77: 是 | AX77: 是 | AY77: 否 | AZ77: 0 | BA77: 0 | BB77: 市级
A78: 74 | B78: 成都深冷液化设备股份有限公司 | C78: 91510124674318293R | D78: =VLOOKUP(B78,B78:E78,4,0) -> 通用设备制造业 | E78: 通用设备制造业 | F78: 成都市郫都区现代工业港同善桥路569号 | G78: 四川成都市郫都区绿色氢能产业工业园区 | H78: 34282.94 | I78: 747.11 | J78: -13537.75 | K78: 43534.93 | L78: 90.65 | M78: 917.05 | N78: 51872.36 | O78: 4645 | P78: 1449.48 | Q78: 55 | R78: 4645 | S78: 1806.45 | T78: 259 | U78: 40.93 | V78: 0 | W78: 12034652 | X78: 61433.48 | Y78: 否 | Z78: 否 | AA78: 国内领先 | AB78: 否 | AC78: 否 | AD78: 市级专精特新 | AE78: 否 | AF78: 是 | AG78: 否 | AH78: 是 | AI78: 否 | AJ78: 是 | AK78: 否 | AL78: 是 | AM78: 17 | AN78: 35 | AO78: 0 | AP78: 0 | AQ78: 52 | AR78: 否 | AS78: 否 | AT78: 200万以上 | AU78: 否 | AV78: 3 | AW78: 否 | AX78: 否 | AY78: 否 | AZ78: 11859.3 | BA78: 7 | BB78: 省级
A79: 75 | B79: 成都宝烨金属制品有限公司 | C79: 915101246818076000 | D79: =VLOOKUP(B79,B79:E79,4,0) -> 金属制品业 | E79: 金属制品业 | F79: 港华路579号 | G79: 郫都区 | H79: 4000 | I79: 120 | J79: 200 | K79: 4500 | L79: 129 | M79: 200 | N79: 3800 | O79: 180 | P79: 168 | Q79: 18 | R79: 180 | S79: 20 | T79: 42 | U79: 24.51 | V79: 0 | W79: 2000 | X79: 180 | Y79: 否 | Z79: 否 | AA79: 否 | AB79: 否 | AC79: 否 | AD79: 否 | AE79: 否 | AF79: 否 | AG79: 否 | AH79: 否 | AI79: 否 | AJ79: 否 | AK79: 否 | AL79: 否 | AM79: 0 | AN79: 0 | AO79: 0 | AP79: 0 | AQ79: 0 | AR79: 否 | AS79: 否 | AT79: 200万以下 | AU79: 否 | AV79: 0 | AW79: 是 | AX79: 否 | AY79: 是 | AZ79: 180 | BA79: 0 | BB79: 市级
A80: 76 | B80: 重庆啤酒集团成都勃克啤酒有限公司 | C80: 9151012420250520XG | D80: 其他 | E80: 酒、饮料和精制茶制造业 | F80: 成都市郫都区德源镇清马路1198号 | G80: 郫都区 | H80: 25468.9 | I80: 4149 | J80: 2978.3 | K80: 27204.2 | L80: 3636 | M80: 4478.1 | N80: 27048.9 | O80: 5376 | P80: 4478.1 | Q80: 110 | R80: 5376 | S80: 0 | T80: 164 | U80: 1908.908078 | V80: 0 | W80: 21871.1 | X80: 14606.3 | Y80: 否 | Z80: 否 | AA80: 否 | AB80: 否 | AC80: 否 | AD80: 市级专精特新 | AE80: 否 | AF80: 否 | AG80: 否 | AH80: 否 | AI80: 否 | AJ80: 否 | AK80: 否 | AL80: 否 | AM80: 0 | AN80: 0 | AO80: 0 | AP80: 0 | AQ80: 0 | AR80: 否 | AS80: 否 | AT80: 否 | AU80: 否 | AV80: 1 | AW80: 否 | AX80: 否 | AY80: 否 | AZ80: 0 | BA80: 0 | BB80: 否
A81: 77 | B81: 四川天味家园食品有限公司 | C81: 915101245671568828 | D81: =VLOOKUP(B81,B81:E81,4,0) -> 食品制造业 | E81: 食品制造业 | F81: 成都市郫都区中国川菜产业化园区永安路555号 | G81: 成都市郫都区 | H81: 65023 | I81: 8458.98 | J81: 18589.8 | K81: 82045.8 | L81: 7743.83 | M81: 22460.9 | N81: 139512.9 | O81: 11605.29 | P81: 41053.1 | Q81: 138.6 | R81: 11605.29 | S81: 908.03 | T81: 932 | U81: 2199.73 | V81: 0 | W81: 87613.5 | X81: 13859.1 | Y81: 否 | Z81: 否 | AA81: 否 | AB81: 否 | AC81: 否 | AD81: 否 | AE81: 否 | AF81: 否 | AG81: 否 | AH81: 否 | AI81: 是 | AJ81: 否 | AK81: 否 | AL81: 否 | AM81: 1 | AN81: 1 | AO81: 1 | AP81: 1 | AQ81: 4 | AR81: 否 | AS81: 否 | AT81: 否 | AU81: 否 | AV81: 3 | AW81: 否 | AX81: 否 | AY81: 否 | AZ81: 7307.2 | BA81: 1 | BB81: 否
A82: 78 | B82: 四川新华西乳业有限公司 | C82: 91510124396943522H | D82: =VLOOKUP(B82,B82:E82,4,0) -> 食品制造业 | E82: 食品制造业 | F82: 成都市郫都区安德镇永兴东路9号 | G82: 中国川菜产业园区 | H82: 122749 | I82: 4696.12 | J82: 8936.07 | K82: 133123.54 | L82: 5326.69 | M82: 9865.28 | N82: 130348.78 | O82: 4637.1 | P82: 10297.5 | Q82: 176 | R82: 4637.1 | S82: 243.9 | T82: 1062 | U82: 5037.59 | V82: 48.568 | W82: 75447.5 | X82: 37558.49 | Y82: 否 | Z82: 否 | AA82: 省内领先 | AB82: 否 | AC82: 否 | AD82: 否 | AE82: 否 | AF82: 否 | AG82: 是 | AH82: 否 | AI82: 是 | AJ82: 否 | AK82: 否 | AL82: 否 | AM82: 3 | AN82: 22 | AO82: 3 | AP82: 0 | AQ82: 28 | AR82: 是 | AS82: 省级 | AT82: 200万以上 | AU82: 否 | AV82: 3 | AW82: 否 | AX82: 是 | AY82: 否 | AZ82: 3881.19 | BA82: 0 | BB82: 市级
A83: 79 | B83: 成都沈师傅食品有限公司 | C83: 91510124562034034C | D83: 其他 | E83: SB/T106392011 | F83: 郫都区安德街道蜀韵路219号 | G83: 郫都区安德街道蜀韵路219号 | H83: 8744 | I83: 68.205 | J83: 37.8263 | K83: 10145.6693 | L83: 55.3755 | M83: 281.4047 | N83: 10126.4559 | O83: 70.1694 | P83: 1351.3667 | Q83: 15 | R83: 70.1694 | S83: 0 | T83: 157 | U83: 1.596 | V83: 0 | W83: 3685.0214 | X83: 2361.3658 | Y83: 否 | Z83: 否 | AA83: 省内领先 | AB83: 否 | AC83: 否 | AD83: 否 | AE83: 否 | AF83: 否 | AG83: 否 | AH83: 否 | AI83: 否 | AJ83: 是 | AK83: 否 | AL83: 否 | AM83: 1 | AN83: 0 | AO83: 0 | AP83: 0 | AQ83: 1 | AR83: 否 | AS83: 否 | AT83: 否 | AU83: 否 | AV83: 2 | AW83: 否 | AX83: 否 | AY83: 否 | AZ83: 0 | BA83: 0 | BB83: 否
A84: 80 | B84: 成都满记甜品有限公司 | C84: 91510115553571727M | D84: =VLOOKUP(B84,B84:E84,4,0) -> 食品制造业 | E84: 食品制造业 | F84: 成都市郫都区安德镇永安路298号 | G84: 川菜产业园区 | H84: 8343 | I84: 1307 | J84: 478 | K84: 7930 | L84: 1135 | M84: -430 | N84: 4279 | O84: 969 | P84: -2121 | Q84: 12 | R84: 969 | S84: 0 | T84: 27 | U84: 102.66 | V84: 24.7 | W84: 3796 | X84: 4892 | Y84: 否 | Z84: 否 | AA84: 否 | AB84: 否 | AC84: 否 | AD84: 否 | AE84: 否 | AF84: 否 | AG84: 否 | AH84: 否 | AI84: 否 | AJ84: 否 | AK84: 否 | AL84: 否 | AM84: 0 | AN84: 0 | AO84: 0 | AP84: 0 | AQ84: 0 | AR84: 否 | AS84: 否 | AT84: 否 | AU84: 否 | AV84: 0 | AW84: 否 | AX84: 否 | AY84: 否 | AZ84: 0 | BA84: 0 | BB84: 否
A85: 81 | B85: 成都中德华顿食品有限责任公司 | C85: 91510124553591277Y | D85: =VLOOKUP(B85,B85:E85,4,0) -> 食品制造业 | E85: 食品制造业 | F85: 成都市郫都区安德镇中国川菜产业化功能区永安路428号 | G85: 成都市郫都区安德镇 | H85: 3285 | I85: 212.58 | J85: -754.25 | K85: 4087.35 | L85: 244.79 | M85: -709.18 | N85: 2829.56 | O85: 127.64 | P85: -946.95 | Q85: 34 | R85: 127.64 | S85: 0 | T85: 190 | U85: 515.10 | V85: 0 | W85: 5907.31 | X85: 6735.03 | Y85: 否 | Z85: 否 | AA85: 否 | AB85: 否 | AC85: 否 | AD85: 否 | AE85: 否 | AF85: 否 | AG85: 否 | AH85: 否 | AI85: 否 | AJ85: 否 | AK85: 否 | AL85: 否 | AM85: 0 | AN85: 0 | AO85: 0 | AP85: 0 | AQ85: 0 | AR85: 否 | AS85: 否 | AT85: 否 | AU85: 否 | AV85: 0 | AW85: 否 | AX85: 否 | AY85: 否 | AZ85: 0 | BA85: 0 | BB85: 否
A86: 82 | B86: 四川中塑高分子材料有限公司 | C86: 915101080776535872 | D86: 其他 | E86: 化学纤维制造业 | F86: 四川省成都市郫县郫筒街道景岗村六组211号 | G86: 成都市郫都区 | H86: 2107 | I86: 8.53 | J86: -8.52 | K86: 2585.55 | L86: 41.95 | M86: -45.01 | N86: 3001.9 | O86: 69.45 | P86: 100.26 | Q86: 10.2 | R86: 69.45 | S86: 155.06 | T86: 33 | U86: 122.9 | V86: 0 | W86: 1088.32 | X86: 777.73 | Y86: 否 | Z86: 否 | AA86: 省内领先 | AB86: 否 | AC86: 否 | AD86: 否 | AE86: 否 | AF86: 否 | AG86: 否 | AH86: 是 | AI86: 否 | AJ86: 否 | AK86: 否 | AL86: 否 | AM86: 2 | AN86: 30 | AO86: 20 | AP86: 0 | AQ86: 52 | AR86: 否 | AS86: 否 | AT86: 否 | AU86: 否 | AV86: 3 | AW86: 否 | AX86: 否 | AY86: 否 | AZ86: 300 | BA86: 0 | BB86: 否
A87: 83 | B87: 四川鑫益铜铝线材有限公司 | C87: 915101245826287451 | D87: =VLOOKUP(B87,B87:E87,4,0) -> 金属制品业 | E87: 金属制品业 | F87: 郫都区新民场镇兴旺村1组302号 | G87: 成都市郫都区 | H87: 3230 | I87: 46.290795 | J87: 39.058029 | K87: 4934.432385 | L87: 48.202649 | M87: 55.057972 | N87: 4486.529152 | O87: 38.759355 | P87: 61.503143 | Q87: 1.1 | R87: 38.759355 | S87: 0 | T87: 16 | U87: 65.14 | V87: 0 | W87: 1501.5 | X87: 768.2 | Y87: 否 | Z87: 否 | AA87: 否 | AB87: 否 | AC87: 否 | AD87: 否 | AE87: 否 | AF87: 否 | AG87: 否 | AH87: 否 | AI87: 否 | AJ87: 否 | AK87: 否 | AL87: 否 | AM87: 0 | AN87: 0 | AO87: 0 | AP87: 0 | AQ87: 0 | AR87: 否 | AS87: 否 | AT87: 否 | AU87: 否 | AV87: 0 | AW87: 否 | AX87: 否 | AY87: 否 | AZ87: 0 | BA87: 0 | BB87: 否
A88: 84 | B88: 四川亚通达科技有限公司 | C88: 91510124MA6C8NQHXY | D88: 电子信息 | E88: 计算机、通信和其他电子设备制造业 | F88: 成都市郫都区红光镇成都现代工业港北片区小微企业创新园长生桥路1111号 | G88: 成都市郫都区小微园区联东U谷 | H88: 0 | I88: 0 | J88: 0 | K88: 106.61 | L88: 0 | M88: -106.53 | N88: 12380.13 | O88: =200.19+87.64 -> 287.83 | P88: 457.55 | Q88: 4.5 | R88: =200.19+87.64 -> 287.83 | S88: 35.55 | T88: 78 | U88: 40.59 | V88: 0 | W88: 4185.26 | X88: 2923.3 | Y88: 否 | Z88: 否 | AA88: 否 | AB88: 否 | AC88: 否 | AD88: 否 | AE88: 否 | AF88: 否 | AG88: 否 | AH88: 否 | AI88: 否 | AJ88: 否 | AK88: 否 | AL88: 是 | AM88: 0 | AN88: 19 | AO88: 0 | AP88: 0 | AQ88: 19 | AR88: 否 | AS88: 否 | AT88: 否 | AU88: 否 | AV88: 0 | AW88: 否 | AX88: 否 | AY88: 是 | AZ88: 1610.99 | BA88: 0 | BB88: 否
A89: 85 | B89: 四川永冠商业设备有限公司 | C89: 91510000746446084F | D89: =VLOOKUP(B89,B89:E89,4,0) -> 金属制品业 | E89: 金属制品业 | F89: 成都市郫都区红光街道高店路西段成都现代工业港北区 | G89: 郫都区 | H89: 20431 | I89: 1868 | J89: 473 | K89: 13221 | L89: 1334 | M89: -1224 | N89: 13139 | O89: 567 | P89: -1773 | Q89: 135 | R89: 567 | S89: 200 | T89: 267 | U89: 838.18 | V89: 0.16 | W89: 22722.68 | X89: 9266.55 | Y89: 否 | Z89: 否 | AA89: 省内领先 | AB89: 否 | AC89: 否 | AD89: 否 | AE89: 否 | AF89: 否 | AG89: 是 | AH89: 否 | AI89: 否 | AJ89: 是 | AK89: 否 | AL89: 否 | AM89: 0 | AN89: 14 | AO89: 0 | AP89: 0 | AQ89: 14 | AR89: 否 | AS89: 否 | AT89: 否 | AU89: 是 | AV89: 3 | AW89: 否 | AX89: 否 | AY89: 否 | AZ89: 300 | BA89: 9 | BB89: 省级
A90: 86 | B90: 成都裕通钢铁有限公司 | C90: 91510124080633034K | D90: =VLOOKUP(B90,B90:E90,4,0) -> 金属制品业 | E90: 金属制品业 | F90: 成都市郫都区成都现代工业港北片区港北二路198号 | G90: 成都现代工业港 | H90: 3434 | I90: 86.63 | J90: 49.6 | K90: 5023.59 | L90: 91.93 | M90: 105.55 | N90: 8412.46 | O90: 159.46 | P90: 170.77 | Q90: 7.7 | R90: 159.46 | S90: 0 | T90: 57 | U90: 73.99 | V90: 0 | W90: 1942.2 | X90: 1195.79 | Y90: 否 | Z90: 否 | AA90: 省内领先 | AB90: 否 | AC90: 否 | AD90: 否 | AE90: 否 | AF90: 否 | AG90: 否 | AH90: 否 | AI90: 否 | AJ90: 否 | AK90: 否 | AL90: 否 | AM90: 0 | AN90: 0 | AO90: 0 | AP90: 0 | AQ90: 0 | AR90: 否 | AS90: 否 | AT90: 否 | AU90: 否 | AV90: 0 | AW90: 否 | AX90: 否 | AY90: 否 | AZ90: 0 | BA90: 0 | BB90: 否
A91: 87 | B91: 四川德诚恒信交通设施制造有限公司 | C91: 9151012434310192XW | D91: =VLOOKUP(B91,B91:E91,4,0) -> 金属制品业 | E91: 金属制品业 | F91: 郫县成都现代工业港北片区港北二路437号 | G91: 成都现代工业港 | H91: 3782 | I91: 127.89 | J91: 63.5 | K91: 3498.12 | L91: 153.41 | M91: 219.88 | N91: 3573.07 | O91: 170.44 | P91: 51.71 | Q91: 14.1448 | R91: 170.44 | S91: 0 | T91: 20 | U91: 272.64 | V91: 0 | W91: 1853.44 | X91: 989.3 | Y91: 否 | Z91: 否 | AA91: 否 | AB91: 否 | AC91: 否 | AD91: 否 | AE91: 否 | AF91: 否 | AG91: 否 | AH91: 否 | AI91: 否 | AJ91: 否 | AK91: 否 | AL91: 否 | AM91: 0 | AN91: 0 | AO91: 0 | AP91: 0 | AQ91: 0 | AR91: 否 | AS91: 否 | AT91: 否 | AU91: 否 | AV91: 0 | AW91: 否 | AX91: 否 | AY91: 否 | AZ91: 0 | BA91: 0 | BB91: 否
A92: 88 | B92: 丹顿科技集团有限公司 | C92: 915101243505441204 | D92: 通用设备制造业 | E92: 电气机械和器材制造业 | F92: 成都市郫都区成都现代工业港北片区成灌路西段1558号 | G92: 成都现代工业港 | H92: 4613 | I92: 308 | J92: 12 | K92: 5928 | L92: 258 | M92: 80 | N92: 3759 | O92: 109 | P92: 68 | Q92: 4.37 | R92: 109 | S92: 207 | T92: 102 | U92: 6.39 | V92: 0 | W92: 5867 | X92: 5455 | Y92: 否 | Z92: 否 | AA92: 否 | AB92: 否 | AC92: 否 | AD92: 否 | AE92: 否 | AF92: 否 | AG92: 否 | AH92: 是 | AI92: 否 | AJ92: 否 | AK92: 否 | AL92: 否 | AM92: 0 | AN92: 0 | AO92: 0 | AP92: 0 | AQ92: 0 | AR92: 否 | AS92: 否 | AT92: 否 | AU92: 否 | AV92: 0 | AW92: 否 | AX92: 否 | AY92: 否 | AZ92: 0 | BA92: 0 | BB92: 否
A93: 89 | B93: 四川华宇医药包装印务有限公司 | C93: 915101247422783354 | D93: 其他 | E93: 印刷和记录媒介复制业 | F93: 成都市郫都区成都现代工业港北片区港东三路538号 | G93: 成都现代工业港 | H93: 1725 | I93: 58.92 | J93: 38.78 | K93: 2771.93 | L93: 92.41 | M93: 83.08 | N93: 2792.54 | O93: 80.78 | P93: 60.41 | Q93: 9 | R93: 80.78 | S93: 0 | T93: 71 | U93: 88.37 | V93: 1.61 | W93: 2365.91 | X93: 1761.62 | Y93: 否 | Z93: 否 | AA93: 否 | AB93: 否 | AC93: 否 | AD93: 否 | AE93: 否 | AF93: 否 | AG93: 否 | AH93: 否 | AI93: 否 | AJ93: 否 | AK93: 否 | AL93: 否 | AM93: 0 | AN93: 0 | AO93: 0 | AP93: 0 | AQ93: 0 | AR93: 否 | AS93: 否 | AT93: 否 | AU93: 否 | AV93: 0 | AW93: 否 | AX93: 否 | AY93: 否 | AZ93: 0 | BA93: 0 | BB93: 否
A94: 90 | B94: 成都杰作宝峰艺术包装印务有限公司 | C94: 91510124746442964H | D94: 其他 | E94: 印刷和记录媒介复制业 | F94: 成都市郫都区成都现代工业港北片区高店路西段228号 | G94: 成都现代工业港 | H94: 4204 | I94: 125 | J94: 22.3 | K94: 5457.35 | L94: 135.17 | M94: 10.27 | N94: 4251.7 | O94: 106.5 | P94: 4.28 | Q94: 22.5 | R94: 106.5 | S94: 267.71 | T94: 122 | U94: 73.74 | V94: 0.81 | W94: 4387.99 | X94: 3958.02 | Y94: 否 | Z94: 否 | AA94: 国内领先 | AB94: 否 | AC94: 否 | AD94: 否 | AE94: 否 | AF94: 否 | AG94: 否 | AH94: 是 | AI94: 否 | AJ94: 否 | AK94: 否 | AL94: 否 | AM94: 0 | AN94: 13 | AO94: 0 | AP94: 0 | AQ94: 13 | AR94: 否 | AS94: 否 | AT94: 200万以下 | AU94: 否 | AV94: 3 | AW94: 否 | AX94: 否 | AY94: 是 | AZ94: 530.96 | BA94: 0 | BB94: 否
A95: 91 | B95: 四川府标门窗有限公司 | C95: 91510124MA61T7YF57 | D95: =VLOOKUP(B95,B95:E95,4,0) -> 金属制品业 | E95: 金属制品业 | F95: 郫县成都现代工业港北片区港北二路551号 | G95: 成都现代工业港 | H95: 1981 | I95: 58.06 | J95: 6.7 | K95: 2732.5 | L95: 62.7 | M95: -64.5 | N95: 2894.4 | O95: 52.7 | P95: -94.6 | Q95: 30 | R95: 52.7 | S95: 0 | T95: 75 | U95: 232.01 | V95: 0 | W95: 1400.6 | X95: 463.5 | Y95: 否 | Z95: 否 | AA95: 否 | AB95: 否 | AC95: 否 | AD95: 否 | AE95: 否 | AF95: 否 | AG95: 否 | AH95: 否 | AI95: 否 | AJ95: 否 | AK95: 否 | AL95: 否 | AM95: 0 | AN95: 0 | AO95: 0 | AP95: 0 | AQ95: 0 | AR95: 否 | AS95: 否 | AT95: 否 | AU95: 否 | AV95: 3 | AW95: 否 | AX95: 否 | AY95: 否 | AZ95: 0 | BA95: 0 | BB95: 否
A96: 92 | B96: 四川艾宇光科技有限公司 | C96: 91510124MA6C8YMEXL | D96: 通用设备制造业 | E96: 电气机械和器材制造业 | F96: 成都市郫都区现代工业港北片区长生桥路889号 | G96: 成都现代工业港 | H96: 763 | I96: 25 | J96: -14 | K96: 2816 | L96: 134 | M96: -0.5 | N96: 2001 | O96: 28 | P96: -1.3 | Q96: 7.82 | R96: 28 | S96: 203 | T96: 97 | U96: 311.24 | V96: 0 | W96: 3038 | X96: 2646 | Y96: 否 | Z96: 否 | AA96: 否 | AB96: 否 | AC96: 否 | AD96: 否 | AE96: 否 | AF96: 否 | AG96: 否 | AH96: 否 | AI96: 否 | AJ96: 否 | AK96: 否 | AL96: 否 | AM96: 0 | AN96: 7 | AO96: 0 | AP96: 0 | AQ96: 7 | AR96: 是 | AS96: 否 | AT96: 否 | AU96: 否 | AV96: 3 | AW96: 是 | AX96: 是 | AY96: 是 | AZ96: 348 | BA96: 0 | BB96: 否
A97: 93 | B97: 成都艾宇光电技术有限公司 | C97: 915101005671798496 | D97: 通用设备制造业 | E97: 电气机械和器材制造业 | F97: 成都市郫都区古城镇邻城村4组31号 | G97: 古城镇 | H97: 2275 | I97: 51 | J97: 2 | K97: 1645 | L97: 82 | M97: -1.7 | N97: 3618 | O97: 310 | P97: -1.1 | Q97: 11.25 | R97: 310 | S97: 212 | T97: 116 | U97: 334 | V97: 0 | W97: 3472 | X97: 2953 | Y97: 否 | Z97: 否 | AA97: 否 | AB97: 否 | AC97: 否 | AD97: 否 | AE97: 否 | AF97: 否 | AG97: 否 | AH97: 是 | AI97: 否 | AJ97: 否 | AK97: 否 | AL97: 否 | AM97: 0 | AN97: 3 | AO97: 0 | AP97: 0 | AQ97: 3 | AR97: 是 | AS97: 否 | AT97: 否 | AU97: 否 | AV97: 3 | AW97: 是 | AX97: 是 | AY97: 是 | AZ97: 10 | BA97: 0 | BB97: 否
A98: 94 | B98: 成都南头科技有限公司 | C98: 91510124050054015M | D98: =VLOOKUP(B98,B98:E98,4,0) -> 通用设备制造业 | E98: 通用设备制造业 | F98: 郫都区现代工业港北区天台寺路1688号 | G98: 成都现代工业港 | H98: 1254 | I98: 144 | J98: 65 | K98: 12917 | L98: 255 | M98: -464 | N98: 18543 | O98: 392 | P98: 94 | Q98: 132 | R98: 392 | S98: 799 | T98: 275 | U98: 274.07 | V98: 0 | W98: 24564 | X98: 14415 | Y98: 否 | Z98: 否 | AA98: 否 | AB98: 否 | AC98: 否 | AD98: 市级专精特新 | AE98: 否 | AF98: 否 | AG98: 否 | AH98: 是 | AI98: 否 | AJ98: 否 | AK98: 否 | AL98: 否 | AM98: 0 | AN98: 5 | AO98: 0 | AP98: 0 | AQ98: 5 | AR98: 否 | AS98: 否 | AT98: 否 | AU98: 是 | AV98: 3 | AW98: 否 | AX98: 否 | AY98: 否 | AZ98: 0 | BA98: 0 | BB98: 市级
A99: 95 | B99: 成都山海油脂有限公司 | C99: 91510124660455545W | D99: 其他 | E99: 农副食品加工业 | F99: 成都现代工业港北片区港北四路338号 | G99: 成都市郫都区 | H99: 19264 | I99: 122.58 | J99: 13.69 | K99: 19485.43 | L99: 79.08 | M99: -1.42 | N99: 19198.85 | O99: 67.74 | P99: -1.92 | Q99: 24 | R99: 67.74 | S99: 453 | T99: 70 | U99: 203.82 | V99: 0 | W99: 15726.48 | X99: 14833.48 | Y99: 否 | Z99: 否 | AA99: 否 | AB99: 否 | AC99: 否 | AD99: 市级专精特新 | AE99: 否 | AF99: 否 | AG99: 否 | AH99: 否 | AI99: 否 | AJ99: 否 | AK99: 否 | AL99: 否 | AM99: 2 | AN99: 25 | AO99: 0 | AP99: 0 | AQ99: 27 | AR99: 否 | AS99: 否 | AT99: 200万以下 | AU99: 否 | AV99: 3 | AW99: 否 | AX99: 否 | AY99: 是 | AZ99: 30.69 | BA99: 0 | BB99: 否
A100: 96 | B100: 成都力维展示工程有限公司 | C100: 91510124660482228L | D100: 其他 | E100: 文娱用品制造业 | F100: 成都现代工业港港北五路62号 | G100: 工业港 | H100: 4012 | I100: 302.7 | J100: 0.88 | K100: 4260.6 | L100: 321.7 | M100: 1.04 | N100: 4855.09 | O100: 332.3 | P100: 84.21 | Q100: 14 | R100: 332.3 | S100: 258.7 | T100: 101 | U100: 64.84 | V100: 0 | W100: 4208 | X100: 2932 | Y100: 否 | Z100: 否 | AA100: 否 | AB100: 否 | AC100: 否 | AD100: 否 | AE100: 否 | AF100: 否 | AG100: 否 | AH100: 是 | AI100: 否 | AJ100: 否 | AK100: 否 | AL100: 否 | AM100: 0 | AN100: 16 | AO100: 0 | AP100: 0 | AQ100: 16 | AR100: 否 | AS100: 否 | AT100: 200万以下 | AU100: 否 | AV100: 3 | AW100: 否 | AX100: 否 | AY100: 否 | AZ100: 18.4 | BA100: 0 | BB100: 否
A101: 97 | B101: 弗锐德天宇环境科技成都有限公司 | C101: 91510124594697801K | D101: 其他 | E101: 仪器仪表制造业 | F101: 成都（郫县）现代工业港北片区港通北四路958号 | G101: 成都郫都区 | H101: 3855 | I101: 254.54 | J101: 68 | K101: 4277 | L101: 224.36 | M101: 128.9 | N101: 5110 | O101: 264.88 | P101: 188.4 | Q101: 12 | R101: 264.88 | S101: 291.4 | T101: 78 | U101: 30.73 | V101: 0 | W101: 3933 | X101: 3073 | Y101: 否 | Z101: 否 | AA101: 否 | AB101: 否 | AC101: 否 | AD101: 否 | AE101: 否 | AF101: 否 | AG101: 否 | AH101: 是 | AI101: 否 | AJ101: 否 | AK101: 否 | AL101: 是 | AM101: 0 | AN101: 31 | AO101: 1 | AP101: 0 | AQ101: 32 | AR101: 否 | AS101: 否 | AT101: 否 | AU101: 否 | AV101: 3 | AW101: 否 | AX101: 否 | AY101: 否 | AZ101: 0 | BA101: 0 | BB101: 否
A102: 98 | B102: 成都市瑞研光科技有限公司 | C102: 91510124582643435A | D102: 其他 | E102: 专用设备制造业 | F102: 成都市郫都区现代工业港北区长生桥路1111号8栋附1号 | G102: 郫都区 | H102: 244 | I102: 39 | J102: 59 | K102: 2293 | L102: 117 | M102: 86 | N102: 5884 | O102: 174 | P102: 255 | Q102: 3 | R102: 174 | S102: 300 | T102: 60 | U102: 10.32 | V102: 0 | W102: 4480 | X102: 3198 | Y102: 否 | Z102: 否 | AA102: 否 | AB102: 否 | AC102: 否 | AD102: 否 | AE102: 否 | AF102: 否 | AG102: 否 | AH102: 否 | AI102: 否 | AJ102: 否 | AK102: 否 | AL102: 否 | AM102: 0 | AN102: 9 | AO102: 0 | AP102: 0 | AQ102: 9 | AR102: 否 | AS102: 否 | AT102: 否 | AU102: 否 | AV102: 0 | AW102: 否 | AX102: 否 | AY102: 否 | AZ102: 0 | BA102: 0 | BB102: 否
A103: 99 | B103: 四川圳通混凝土有限公司 | C103: 915101246771721709 | D103: 其他 | E103: 非金属矿物制品业 | F103: 成都市郫都区花园镇麻柳村8社 | G103: 郫都区花园镇 | H103: 3000 | I103: 115 | J103: 17 | K103: 4695 | L103: 163 | M103: 11 | N103: 3617 | O103: 122 | P103: 15 | Q103: 32 | R103: 122 | S103: 0 | T103: 49 | U103: 182.12 | V103: 0 | W103: 5457 | X103: 3311 | Y103: 否 | Z103: 否 | AA103: 否 | AB103: 否 | AC103: 否 | AD103: 否 | AE103: 否 | AF103: 否 | AG103: 否 | AH103: 否 | AI103: 否 | AJ103: 否 | AK103: 否 | AL103: 否 | AM103: 0 | AN103: 0 | AO103: 0 | AP103: 0 | AQ103: 0 | AR103: 否 | AS103: 否 | AT103: 否 | AU103: 否 | AV103: 0 | AW103: 否 | AX103: 否 | AY103: 否 | AZ103: 0 | BA103: 0 | BB103: 否
A104: 100 | B104: 四川鑫宏扬防火门窗有限公司 | C104: 915101246796554834 | D104: =VLOOKUP(B104,B104:E104,4,0) -> 金属制品业 | E104: 金属制品业 | F104: 郫都区唐昌镇横山村五组 | G104: 郫都区唐昌镇 | H104: 3569 | I104: 29 | J104: 75 | K104: 4263 | L104: 50 | M104: 167 | N104: 6314 | O104: 128 | P104: 264 | Q104: 17 | R104: 128 | S104: 0 | T104: 12 | U104: 138.76 | V104: 0 | W104: 4010 | X104: 2636 | Y104: 否 | Z104: 否 | AA104: 否 | AB104: 否 | AC104: 否 | AD104: 否 | AE104: 否 | AF104: 否 | AG104: 否 | AH104: 否 | AI104: 否 | AJ104: 否 | AK104: 否 | AL104: 否 | AM104: 0 | AN104: 0 | AO104: 0 | AP104: 0 | AQ104: 0 | AR104: 否 | AS104: 否 | AT104: 200万以下 | AU104: 否 | AV104: 0 | AW104: 否 | AX104: 否 | AY104: 否 | AZ104: 0 | BA104: 0 | BB104: 否
A105: 101 | B105: 成都法科达拉包装有限公司 | C105: 91510124584973083X | D105: 其他 | E105: 橡胶和塑料制品业 | F105: 郫都区成都现代工业港港北二路38号 | G105: 成都现代工业港 | H105: 6510 | I105: 64 | J105: 69 | K105: 5548 | L105: 27 | M105: 2848 | N105: 5253 | O105: 51 | P105: 3995 | Q105: 11 | R105: 51 | S105: 0 | T105: 29 | U105: 159.77 | V105: 0 | W105: 4642 | X105: 350 | Y105: 否 | Z105: 否 | AA105: 否 | AB105: 否 | AC105: 否 | AD105: 否 | AE105: 否 | AF105: 否 | AG105: 否 | AH105: 否 | AI105: 否 | AJ105: 否 | AK105: 否 | AL105: 否 | AM105: 0 | AN105: 0 | AO105: 0 | AP105: 0 | AQ105: 0 | AR105: 否 | AS105: 否 | AT105: 否 | AU105: 否 | AV105: 3 | AW105: 否 | AX105: 否 | AY105: 否 | AZ105: 0 | BA105: 0 | BB105: 否
A106: 102 | B106: 成都东旭智能科技有限公司 | C106: 915101245800168000 | D106: 通用设备制造业 | E106: 电气机械和器材制造业 | F106: 成都市郫都区成都现代工业港北片区 港通北四路277号 | G106: 成都市郫都区现代工业港 | H106: 25569 | I106: 181.85 | J106: 144.37 | K106: 16813.95 | L106: 120.76 | M106: -6421.19 | N106: 7394.09 | O106: 75.89 | P106: -6732.04 | Q106: 94 | R106: 75.89 | S106: 497 | T106: 64 | U106: 146.34 | V106: 0 | W106: 66218.83 | X106: 52767.51 | Y106: 否 | Z106: 否 | AA106: 否 | AB106: 否 | AC106: 否 | AD106: 市级专精特新 | AE106: 否 | AF106: 是 | AG106: 否 | AH106: 是 | AI106: 否 | AJ106: 否 | AK106: 是 | AL106: 否 | AM106: 2 | AN106: 63 | AO106: 47 | AP106: 0 | AQ106: 112 | AR106: 否 | AS106: 市级 | AT106: 否 | AU106: 否 | AV106: 3 | AW106: 否 | AX106: 否 | AY106: 是 | AZ106: 0 | BA106: 0 | BB106: 市级
A107: 103 | B107: 四川佰利华厨具设备工程有限公司 | C107: 91510124790030465W | D107: 其他 | E107: 家具制造业 | F107: 成都市郫都区成都现代工业港南片区 | G107: 成都现代工业港 | H107: 3683 | I107: 185.3 | J107: 150.12 | K107: 3847.63 | L107: 143.28 | M107: 57.22 | N107: 3832.58 | O107: 62.63 | P107: 114.96 | Q107: 20 | R107: 62.63 | S107: 154.32 | T107: 52 | U107: 22.02 | V107: 0 | W107: 4859.23 | X107: 3180.38 | Y107: 否 | Z107: 否 | AA107: 否 | AB107: 否 | AC107: 否 | AD107: 否 | AE107: 否 | AF107: 否 | AG107: 否 | AH107: 是 | AI107: 否 | AJ107: 否 | AK107: 否 | AL107: 否 | AM107: 2 | AN107: 24 | AO107: 2 | AP107: 0 | AQ107: 28 | AR107: 否 | AS107: 否 | AT107: 0 | AU107: 否 | AV107: 3 | AW107: 否 | AX107: 否 | AY107: 否 | AZ107: 0 | BA107: 0 | BB107: 否
A108: 104 | B108: 成都鑫鸿包装有限公司 | C108: 91510124558987190J | D108: 其他 | E108: 印刷和记录媒介复制业 | F108: 郫都区友爱镇清溪村达盛路40号 | G108: 郫都区友爱镇 | H108: 3023 | I108: 109.8 | J108: 53.65 | K108: 3938.12 | L108: 125.14 | M108: 67.18 | N108: 3698 | O108: 81.8 | P108: 90 | Q108: 23 | R108: 81.8 | S108: 0 | T108: 73 | U108: 7.97 | V108: 0 | W108: 2366 | X108: 1961 | Y108: 否 | Z108: 否 | AA108: 否 | AB108: 否 | AC108: 否 | AD108: 否 | AE108: 否 | AF108: 否 | AG108: 否 | AH108: 否 | AI108: 否 | AJ108: 否 | AK108: 否 | AL108: 否 | AM108: 0 | AN108: 0 | AO108: 0 | AP108: 0 | AQ108: 0 | AR108: 否 | AS108: 否 | AT108: 200万以下 | AU108: 否 | AV108: 3 | AW108: 否 | AX108: 否 | AY108: 否 | AZ108: 145.24 | BA108: 0 | BB108: 否
A109: 105 | B109: 成都润华建材有限公司 | C109: 9151012467967967XB | D109: 其他 | E109: 非金属矿物制品业 | F109: 成都市郫都区古城镇中平村十一组 | G109: 成都市郫都区 | H109: 17162 | I109: 771.49 | J109: 420.9 | K109: 161,27.91 | L109: 711.12 | M109: 318.78 | N109: 13120.42 | O109: 488.95 | P109: -497.5 | Q109: 13 | R109: 488.95 | S109: 0 | T109: 89 | U109: 70.78 | V109: 0 | W109: 11452.86 | X109: 8147.97 | Y109: 否 | Z109: 否 | AA109: 否 | AB109: 否 | AC109: 否 | AD109: 否 | AE109: 否 | AF109: 否 | AG109: 否 | AH109: 否 | AI109: 否 | AJ109: 否 | AK109: 否 | AL109: 否 | AM109: 0 | AN109: 0 | AO109: 0 | AP109: 0 | AQ109: 0 | AR109: 否 | AS109: 否 | AT109: 否 | AU109: 否 | AV109: 3 | AW109: 是 | AX109: 否 | AY109: 否 | AZ109: 0 | BA109: 0 | BB109: 否
A110: 106 | B110: 成都浩通轻工机械有限公司 | C110: 91510124782683183X | D110: 其他 | E110: 专用设备制造业 | F110: 四川省成都市郫都区成都现代工业港北片区港东一路598号 | G110: 郫都区 | H110: 2385 | I110: 72 | J110: 253 | K110: 3280 | L110: 99 | M110: 358 | N110: 2295 | O110: 82 | P110: 165 | Q110: 6.7 | R110: 82 | S110: 0 | T110: 38 | U110: 9.52 | V110: 0 | W110: 3135 | X110: 994 | Y110: 否 | Z110: 否 | AA110: 否 | AB110: 否 | AC110: 否 | AD110: 否 | AE110: 否 | AF110: 否 | AG110: 否 | AH110: 否 | AI110: 否 | AJ110: 否 | AK110: 否 | AL110: 否 | AM110: 0 | AN110: 4 | AO110: 0 | AP110: 0 | AQ110: 4 | AR110: 否 | AS110: 否 | AT110: 0 | AU110: 否 | AV110: 3 | AW110: 否 | AX110: 否 | AY110: 否 | AZ110: 50 | BA110: 0 | BB110: 否
A111: 107 | B111: 成都达盛光学实业有限公司 | C111: 915101247092719408 | D111: 其他 | E111: 非金属矿物制品业 | F111: 郫都区友爱镇达盛路38号 | G111: 成都市郫都区 | H111: 5251 | I111: 245 | J111: 143 | K111: 5752 | L111: 314 | M111: 224 | N111: 4782 | O111: 251 | P111: 281 | Q111: 20 | R111: 251 | S111: 64 | T111: 128 | U111: 427.05 | V111: 0 | W111: 2470 | X111: 1660 | Y111: 否 | Z111: 否 | AA111: 否 | AB111: 否 | AC111: 否 | AD111: 否 | AE111: 否 | AF111: 否 | AG111: 否 | AH111: 是 | AI111: 否 | AJ111: 否 | AK111: 否 | AL111: 否 | AM111: 0 | AN111: 0 | AO111: 0 | AP111: 0 | AQ111: 0 | AR111: 否 | AS111: 否 | AT111: 否 | AU111: 否 | AV111: 3 | AW111: 否 | AX111: 否 | AY111: 是 | AZ111: 520 | BA111: 0 | BB111: 否
A112: 108 | B112: 四川泰克电器有限公司 | C112: 9151012470927114XL | D112: 通用设备制造业 | E112: 电气机械和器材制造业 | F112: 郫都区三道堰街道秦家庙 | G112: 郫都区三道堰街道 | H112: 3445 | I112: 376 | J112: 362 | K112: 4319 | L112: 405 | M112: 628 | N112: 3595 | O112: 401 | P112: 705 | Q112: 7.4 | R112: 401 | S112: 253 | T112: 114 | U112: 67.6 | V112: 0 | W112: 8603 | X112: 3412 | Y112: 否 | Z112: 否 | AA112: 国内领先 | AB112: 否 | AC112: 否 | AD112: 否 | AE112: 否 | AF112: 否 | AG112: 否 | AH112: 是 | AI112: 否 | AJ112: 否 | AK112: 否 | AL112: 是 | AM112: 1 | AN112: 8 | AO112: 0 | AP112: 0 | AQ112: 9 | AR112: 否 | AS112: 否 | AT112: 0 | AU112: 否 | AV112: 1 | AW112: 否 | AX112: 否 | AY112: 是 | AZ112: 300 | BA112: 0 | BB112: 否
A113: 109 | B113: 四川蕊源集成电路科技有限公司 | C113: 91510124MA6CX3GX99 | D113: 电子信息 | E113: 计算机、通信和其他电子设备制造业 | F113: 成都市郫都区成都现代工业港南片区德源镇菁德路36号1号楼1层 | G113: 郫都区 | H113: 0 | I113: 0 | J113: 0 | K113: 0 | L113: 0.26 | M113: -2.97 | N113: 11228.96 | O113: 512.96 | P113: 1448.36 | Q113: 5 | R113: 512.96 | S113: 903 | T113: 82 | U113: 1.5 | V113: 1.1 | W113: 9837.96 | X113: 4829.06 | Y113: 否 | Z113: 否 | AA113: 否 | AB113: 否 | AC113: 否 | AD113: 否 | AE113: 否 | AF113: 否 | AG113: 否 | AH113: 否 | AI113: 否 | AJ113: 否 | AK113: 否 | AL113: 否 | AM113: 4 | AN113: 8 | AO113: 0 | AP113: 0 | AQ113: 12 | AR113: 否 | AS113: 否 | AT113: 否 | AU113: 否 | AV113: 1 | AW113: 否 | AX113: 否 | AY113: 否 | AZ113: 1745.2 | BA113: 0 | BB113: 否
A114: 110 | B114: 成都广成科技有限公司 | C114: 91510124594695179D | D114: 其他 | E114: 文娱用品制造业 | F114: 成都市郫都区现代工业港港通北四路567号 | G114: 成都现代工业港 | H114: 7021 | I114: 241.22 | J114: -277.02 | K114: 8916.3 | L114: 177.03 | M114: 137.99 | N114: 12553.27 | O114: 172.82 | P114: 226.84 | Q114: 19 | R114: 172.82 | S114: 629.46 | T114: 137 | U114: 801.65 | V114: 3.65 | W114: 5131.52 | X114: 4978.23 | Y114: 否 | Z114: 否 | AA114: 否 | AB114: 否 | AC114: 否 | AD114: 否 | AE114: 否 | AF114: 否 | AG114: 否 | AH114: 否 | AI114: 否 | AJ114: 否 | AK114: 否 | AL114: 否 | AM114: 0 | AN114: 12 | AO114: 0 | AP114: 0 | AQ114: 12 | AR114: 否 | AS114: 否 | AT114: 否 | AU114: 否 | AV114: 2 | AW114: 是 | AX114: 否 | AY114: 否 | AZ114: 0 | BA114: 0 | BB114: 否
A115: 111 | B115: 中建西部建设西南有限公司郫县站 | C115: 9151012469365468XP | D115: 其他 | E115: 非金属矿物制品业 | F115: 四川省成都市郫都区现代工业港港东二路569号 | G115: 郫都区 | H115: 59459.7 | I115: 1731.8 | J115: 3427.5 | K115: 31292.4 | L115: 999.7 | M115: 2927.2 | N115: 22868.2 | O115: 684.6 | P115: 1800 | Q115: 27.6 | R115: 684.6 | S115: 0 | T115: 55 | U115: 151.06 | V115: 0 | W115: 21450.2 | X115: 12420.1 | Y115: 否 | Z115: 否 | AA115: 否 | AB115: 否 | AC115: 否 | AD115: 否 | AE115: 否 | AF115: 否 | AG115: 否 | AH115: 否 | AI115: 否 | AJ115: 否 | AK115: 否 | AL115: 否 | AM115: 0 | AN115: 0 | AO115: 0 | AP115: 0 | AQ115: 0 | AR115: 否 | AS115: 市级 | AT115: 200万以下 | AU115: 否 | AV115: 3 | AW115: 否 | AX115: 否 | AY115: 否 | AZ115: 0 | BA115: 0 | BB115: 否
A116: 112 | B116: 成都市崇宁食品有限责任公司 | C116: 91510124327480843U | D116: 其他 | E116: 木材加工和木、竹、藤、棕、草制品业 | F116: 成都市郫都区唐昌镇鸣凤村1社 | G116: 郫都区 | H116: 1724.77 | I116: 18.419 | J116: 13.32 | K116: 2902.79 | L116: 34.131 | M116: 55.49 | N116: 2767.44 | O116: 23.298 | P116: 41.71 | Q116: 30 | R116: 23.298 | S116: 0 | T116: 43 | U116: 226.9 | V116: 0 | W116: 5446.44 | X116: 4358.11 | Y116: 否 | Z116: 否 | AA116: 否 | AB116: 否 | AC116: 否 | AD116: 否 | AE116: 否 | AF116: 否 | AG116: 否 | AH116: 否 | AI116: 否 | AJ116: 否 | AK116: 是 | AL116: 否 | AM116: 0 | AN116: 0 | AO116: 0 | AP116: 0 | AQ116: 0 | AR116: 否 | AS116: 否 | AT116: 否 | AU116: 否 | AV116: 3 | AW116: 否 | AX116: 否 | AY116: 否 | AZ116: 约500 | BA116: 0 | BB116: 否
A117: 113 | B117: 成都正大有限公司 | C117: 91510000621603760T | D117: 其他 | E117: 农副食品加工业 | F117: 四川省成都市郫县现代工业港（北片区）港中路39号 | G117: 郫县现代工业港（北片区） | H117: 84,560 | I117: =(1592+371)/10 -> 196 | J117: 6,253 | K117: 75,699 | L117: =(1600+581)/10 -> 218 | M117: 4,443 | N117: 91,541 | O117: =(1589+560)/10 -> 215 | P117: 6,151 | Q117: 136 | R117: =(1589+560)/10 -> 215 | S117: 0 | T117: 157 | U117: 2270 | V117: 0 | W117: 46,925 | X117: 34,730 | Y117: 否 | Z117: 否 | AA117: 省内领先 | AB117: 否 | AC117: 否 | AD117: 否 | AE117: 否 | AF117: 否 | AG117: 否 | AH117: 否 | AI117: 否 | AJ117: 否 | AK117: 否 | AL117: 否 | AM117: 0 | AN117: 0 | AO117: 0 | AP117: 0 | AQ117: 0 | AR117: 否 | AS117: 否 | AT117: 200万以下 | AU117: 否 | AV117: 2 | AW117: 否 | AX117: 否 | AY117: 否 | AZ117: 81 | BA117: 30 | BB117: 否
A118: 114 | B118: 成都市崇宁农业科技发展有限责任公司 | C118: 91510124MA6CAA8A35 | D118: 其他 | E118: 木材加工和木、竹、藤、棕、草制品业 | F118: 成都市郫都区唐昌镇鸣凤村一组 | G118: 郫都区 | H118: 1101.73 | I118: 5.707 | J118: -51.74 | K118: 2446.77 | L118: 22.62 | M118: 88.24 | N118: 4402.61 | O118: 17.58 | P118: 64.22 | Q118: 15 | R118: 17.58 | S118: 0 | T118: 15 | U118: 19.36 | V118: 0 | W118: 2608.4 | X118: 2007.68 | Y118: 否 | Z118: 否 | AA118: 否 | AB118: 否 | AC118: 否 | AD118: 否 | AE118: 否 | AF118: 否 | AG118: 否 | AH118: 否 | AI118: 否 | AJ118: 否 | AK118: 否 | AL118: 否 | AM118: 0 | AN118: 0 | AO118: 0 | AP118: 0 | AQ118: 0 | AR118: 否 | AS118: 否 | AT118: 否 | AU118: 否 | AV118: 0 | AW118: 否 | AX118: 否 | AY118: 否 | AZ118: 0 | BA118: 0 | BB118: 否
A119: 115 | B119: 四川省邮电印制有限责任公司 | C119: 91510124202499364Y | D119: 其他 | E119: 有色金属冶炼和压延加工业 | F119: 郫都区红光镇港通北三路280号 | G119: 现代工业港 | H119: 7447 | I119: 348 | J119: -41 | K119: 7992 | L119: 345 | M119: -68 | N119: 6614 | O119: 271 | P119: -251 | Q119: 32.86 | R119: 271 | S119: 0 | T119: 148 | U119: 121.05 | V119: 0 | W119: 9027.77 | X119: 5704.53 | Y119: 否 | Z119: 否 | AA119: 否 | AB119: 否 | AC119: 否 | AD119: 否 | AE119: 否 | AF119: 否 | AG119: 否 | AH119: 否 | AI119: 否 | AJ119: 否 | AK119: 否 | AL119: 否 | AM119: 0 | AN119: 0 | AO119: 0 | AP119: 0 | AQ119: 0 | AR119: 否 | AS119: 否 | AT119: 否 | AU119: 否 | AV119: 3 | AW119: 否 | AX119: 否 | AY119: 否 | AZ119: 0 | BA119: 0 | BB119: 否
A120: 116 | B120: 四川极道电装实业有限公司 | C120: 91510124201996350J | D120: 其他 | E120: 汽车制造业 | F120: 成都市郫都区成都现代工业港北片区港泰大道300号 | G120: 现代工业港 | H120: 3024 | I120: 71 | J120: -291 | K120: 2394 | L120: 77 | M120: -410 | N120: 2666 | O120: 61 | P120: -85 | Q120: 45 | R120: 61 | S120: 0 | T120: 155 | U120: 52.89 | V120: 0 | W120: 6719 | X120: 1390 | Y120: 否 | Z120: 否 | AA120: 否 | AB120: 否 | AC120: 否 | AD120: 否 | AE120: 否 | AF120: 否 | AG120: 否 | AH120: 否 | AI120: 否 | AJ120: 否 | AK120: 否 | AL120: 否 | AM120: 0 | AN120: 0 | AO120: 1 | AP120: 1 | AQ120: 2 | AR120: 否 | AS120: 否 | AT120: 否 | AU120: 否 | AV120: 0 | AW120: 否 | AX120: 否 | AY120: 否 | AZ120: 0 | BA120: 0 | BB120: 否
A121: 117 | B121: 四川西冶新材料股份有限公司 | C121: 91510124080648033C | D121: =VLOOKUP(B121,B121:E121,4,0) -> 金属制品业 | E121: 金属制品业 | F121: 郫县成都现代工业港北片区蜀新大道北一段356号 | G121: 现代工业港 | H121: 11700 | I121: 116 | J121: -900 | K121: 14000 | L121: 430 | M121: -630 | N121: 15300 | O121: 280 | P121: -80 | Q121: 75 | R121: 280 | S121: 760 | T121: 175 | U121: 669.35 | V121: 0 | W121: 25000 | X121: 24000 | Y121: 否 | Z121: 否 | AA121: 否 | AB121: 否 | AC121: 否 | AD121: 否 | AE121: 否 | AF121: 是 | AG121: 否 | AH121: 是 | AI121: 否 | AJ121: 是 | AK121: 否 | AL121: 否 | AM121: 20 | AN121: 1 | AO121: 2 | AP121: 2 | AQ121: 25 | AR121: 否 | AS121: 否 | AT121: 否 | AU121: 否 | AV121: 3 | AW121: 否 | AX121: 否 | AY121: 否 | AZ121: 0 | BA121: 0 | BB121: 否
A122: 118 | B122: 四川筑盾人防工程设备有限公司 | C122: 91510124099409470T | D122: =VLOOKUP(B122,B122:E122,4,0) -> 金属制品业 | E122: 金属制品业 | F122: 成都市郫都区成都现代工业港北片区港北四路398号 | G122: 现代工业港 | H122: 5133.52 | I122: 240.66 | J122: 89.85 | K122: 8408.5 | L122: 433.57 | M122: 275.75 | N122: 10740.9 | O122: 647.46 | P122: 262.76 | Q122: 14.7 | R122: 647.46 | S122: 430.34 | T122: 111 | U122: 25 | V122: 0 | W122: 4979.56 | X122: 4247.86 | Y122: 否 | Z122: 否 | AA122: 否 | AB122: 否 | AC122: 否 | AD122: 否 | AE122: 否 | AF122: 否 | AG122: 否 | AH122: 是 | AI122: 否 | AJ122: 否 | AK122: 否 | AL122: 否 | AM122: 0 | AN122: 17 | AO122: 3 | AP122: 3 | AQ122: 23 | AR122: 否 | AS122: 否 | AT122: 否 | AU122: 否 | AV122: 1 | AW122: 否 | AX122: 否 | AY122: 否 | AZ122: 304 | BA122: 0 | BB122: 否
A123: 119 | B123: 成都客车股份有限公司 | C123: 91510100201910801T | D123: 其他 | E123: 汽车制造业 | F123: 郫都区红光镇成灌路西段1098号 | G123: 现代工业港 | H123: 15446.8 | I123: 52.2 | J123: -377 | K123: 47468.2 | L123: 43 | M123: 804.3 | N123: 8677.2 | O123: 55.1 | P123: -305.2 | Q123: 11.93 | R123: 55.1 | S123: 300 | T123: 464 | U123: 577.9 | V123: 0.849 | W123: 76086.6 | X123: 53313 | Y123: 否 | Z123: 否 | AA123: 否 | AB123: 否 | AC123: 否 | AD123: 否 | AE123: 否 | AF123: 是 | AG123: 否 | AH123: 是 | AI123: 否 | AJ123: 是 | AK123: 否 | AL123: 是 | AM123: 3 | AN123: 49 | AO123: 12 | AP123: 4 | AQ123: 68 | AR123: 否 | AS123: 否 | AT123: 否 | AU123: 否 | AV123: 3 | AW123: 否 | AX123: 否 | AY123: 否 | AZ123: 0 | BA123: 0 | BB123: 否
A124: 120 | B124: 四川华龙印务有限公司 | C124: 915101242018881571 | D124: 其他 | E124: 印刷和记录媒介复制业 | F124: 成都市郫都区成都现代工业港北片区 | G124: 现代工业港 | H124: 3720 | I124: 1.9 | J124: 8.3 | K124: 1870 | L124: 4.5 | M124: 31.9 | N124: 5207 | O124: 37.9 | P124: 66.9 | Q124: 26 | R124: 37.9 | S124: 10 | T124: 86 | U124: 60.84 | V124: 0 | W124: 5228 | X124: 4265 | Y124: 否 | Z124: 否 | AA124: 否 | AB124: 否 | AC124: 否 | AD124: 否 | AE124: 否 | AF124: 否 | AG124: 否 | AH124: 否 | AI124: 否 | AJ124: 否 | AK124: 否 | AL124: 否 | AM124: 12 | AN124: 9 | AO124: 0 | AP124: 5 | AQ124: 26 | AR124: 否 | AS124: 否 | AT124: 否 | AU124: 否 | AV124: 3 | AW124: 否 | AX124: 否 | AY124: 否 | AZ124: 950 | BA124: 0 | BB124: 否
A125: 121 | B125: 成都通达工艺玻璃有限责任公司 | C125: 91510124201934424L | D125: 其他 | E125: 非金属矿物制品业 | F125: 成都市郫县成都现代工业港北片区港北一路86号 | G125: 成都市郫都区 | H125: 2135.3 | I125: 85.88 | J125: 29.21 | K125: 2487.06 | L125: 99.78 | M125: 46.78 | N125: 2570.23 | O125: 100.68 | P125: 41.18 | Q125: 10.5 | R125: 100.68 | S125: 0 | T125: 52 | U125: 297.42 | V125: 0 | W125: 1782.21 | X125: 314.49 | Y125: 否 | Z125: 否 | AA125: 否 | AB125: 否 | AC125: 否 | AD125: 否 | AE125: 否 | AF125: 否 | AG125: 否 | AH125: 否 | AI125: 否 | AJ125: 否 | AK125: 否 | AL125: 否 | AM125: 0 | AN125: 0 | AO125: 0 | AP125: 0 | AQ125: 0 | AR125: 否 | AS125: 否 | AT125: 否 | AU125: 否 | AV125: 0 | AW125: 否 | AX125: 否 | AY125: 否 | AZ125: 0 | BA125: 0 | BB125: 否
A126: 122 | B126: 味千食品发展（成都）有限公司 | C126: 91510100669673637W | D126: =VLOOKUP(B126,B126:E126,4,0) -> 食品制造业 | E126: 食品制造业 | F126: 成都市郫都区安德镇永安路398号 | G126: 郫都区安德镇望乐社区 | H126: 3496 | I126: 196 | J126: -26 | K126: 3863 | L126: 185 | M126: -228 | N126: 2889 | O126: 114 | P126: -196 | Q126: 43 | R126: 114 | S126: 0 | T126: 28 | U126: 99.26 | V126: 0 | W126: 13969 | X126: 442 | Y126: 否 | Z126: 否 | AA126: 否 | AB126: 否 | AC126: 否 | AD126: 否 | AE126: 否 | AF126: 否 | AG126: 否 | AH126: 否 | AI126: 否 | AJ126: 否 | AK126: 否 | AL126: 否 | AM126: 0 | AN126: 0 | AO126: 0 | AP126: 0 | AQ126: 0 | AR126: 是 | AS126: 否 | AT126: 否 | AU126: 否 | AV126: 1 | AW126: 否 | AX126: 是 | AY126: 否 | AZ126: 60 | BA126: 0 | BB126: 否
A127: 123 | B127: 成都安德蔬菜食品有限公司 | C127: 91510124672170459N | D127: 其他 | E127: 农副食品加工业 | F127: 成都市郫都区成都川菜产业园永安路339号 | G127: 郫都区 | H127: 3517 | I127: 0 | J127: 242.8 | K127: 3203.6 | L127: 73 | M127: 262 | N127: 2352.5 | O127: 100 | P127: -420 | Q127: 50 | R127: 100 | S127: 0 | T127: 55 | U127: 207.7 | V127: 0 | W127: 7784.4 | X127: 5453.3 | Y127: 否 | Z127: 否 | AA127: 否 | AB127: 否 | AC127: 否 | AD127: 否 | AE127: 否 | AF127: 否 | AG127: 否 | AH127: 否 | AI127: 否 | AJ127: 否 | AK127: 否 | AL127: 否 | AM127: 0 | AN127: 0 | AO127: 0 | AP127: 0 | AQ127: 0 | AR127: 否 | AS127: 否 | AT127: 否 | AU127: 否 | AV127: 1 | AW127: 否 | AX127: 否 | AY127: 否 | AZ127: 0 | BA127: 0 | BB127: 否
A128: 124 | B128: 成都豆香食品有限公司 | C128: 91510124567177763A | D128: 其他 | E128: 农副食品加工业 | F128: 成都市郫都区成都川菜产业园永安路339附1号 | G128: 郫都区 | H128: 2357 | I128: 30.83 | J128: -495.9 | K128: 2983.2 | L128: 20.69 | M128: -257.9 | N128: 3341.63 | O128: 15.1 | P128: -280.9 | Q128: 50 | R128: 15.1 | S128: 0 | T128: 169 | U128: 214.98 | V128: 0 | W128: 9078.13 | X128: 11737.3 | Y128: 否 | Z128: 否 | AA128: 否 | AB128: 否 | AC128: 否 | AD128: 否 | AE128: 否 | AF128: 否 | AG128: 否 | AH128: 否 | AI128: 否 | AJ128: 否 | AK128: 否 | AL128: 否 | AM128: 0 | AN128: 0 | AO128: 0 | AP128: 0 | AQ128: 0 | AR128: 否 | AS128: 否 | AT128: 否 | AU128: 否 | AV128: 3 | AW128: 否 | AX128: 否 | AY128: 否 | AZ128: 0 | BA128: 0 | BB128: 否
A129: 125 | B129: 成都友伦食品有限公司 | C129: 91510124684591103D | D129: 其他 | E129: 农副食品加工业 | F129: 成都市郫都区中国川菜产业化园区永安路199号 | G129: 川菜产业化园区 | H129: 5500 | I129: 338.47 | J129: 3.93 | K129: 5904.13 | L129: 315.15 | M129: -11.96 | N129: 9505.85 | O129: 440.14 | P129: -1.72 | Q129: 17 | R129: 440.14 | S129: 10.76 | T129: 329 | U129: 1345.50 | V129: 0 | W129: 3920.19 | X129: 3365.03 | Y129: 否 | Z129: 否 | AA129: 省内领先 | AB129: 否 | AC129: 否 | AD129: 否 | AE129: 否 | AF129: 否 | AG129: 否 | AH129: 否 | AI129: 否 | AJ129: 是 | AK129: 否 | AL129: 否 | AM129: 0 | AN129: 20 | AO129: 1 | AP129: 0 | AQ129: 21 | AR129: 是 | AS129: 否 | AT129: 200万以下 | AU129: 否 | AV129: 1 | AW129: 否 | AX129: 是 | AY129: 否 | AZ129: 0 | BA129: 0 | BB129: 否
A130: 126 | B130: 四川有友食品开发有限公司 | C130: 91510124696296558K | D130: 其他 | E130: 农副食品加工业 | F130: 成都市郫都区安德川园区永安路468号 | G130: 安德 | H130: 23455 | I130: 2,265.79 | J130: 2,366.59 | K130: 17,483.06 | L130: 1,502.59 | M130: 2,106.39 | N130: 19,554.47 | O130: 1,503.39 | P130: 3,144.11 | Q130: 40.00 | R130: 1,503.39 | S130: 0 | T130: 329 | U130: 1606.52 | V130: 0 | W130: 15,876.58 | X130: 1,950.10 | Y130: 否 | Z130: 否 | AA130: 否 | AB130: 否 | AC130: 否 | AD130: 否 | AE130: 否 | AF130: 否 | AG130: 否 | AH130: 否 | AI130: 否 | AJ130: 否 | AK130: 否 | AL130: 否 | AM130: 0 | AN130: 0 | AO130: 0 | AP130: 0 | AQ130: 0 | AR130: 是 | AS130: 否 | AT130: 200万以下 | AU130: 否 | AV130: 1 | AW130: 否 | AX130: 是 | AY130: 否 | AZ130: 142.64 | BA130: 0 | BB130: 否
A131: 127 | B131: 成都富林达新材料有限公司 | C131: 91510124558991560J | D131: 其他 | E131: 橡胶和塑料制品业 | F131: 郫县现代工业港港北片区港通北二路633号 | G131: 工业港 | H131: 19545 | I131: 479.82 | J131: 134.22 | K131: 22,228.33 | L131: 507.82 | M131: 511.28 | N131: 21,933.99 | O131: 590.64 | P131: 1,495.49 | Q131: 37.00 | R131: 590.64 | S131: 810.74 | T131: 102.00 | U131: 886.48 | V131: 0 | W131: 12,412.92 | X131: 3,868.62 | Y131: 否 | Z131: 否 | AA131: 省内领先 | AB131: 否 | AC131: 否 | AD131: 否 | AE131: 否 | AF131: 否 | AG131: 是 | AH131: 否 | AI131: 否 | AJ131: 否 | AK131: 是 | AL131: 否 | AM131: 0 | AN131: 0 | AO131: 0 | AP131: 0 | AQ131: 0 | AR131: 否 | AS131: 否 | AT131: 200万以上 | AU131: 否 | AV131: 1 | AW131: 是 | AX131: 否 | AY131: 否 | AZ131: 0 | BA131: 0 | BB131: 否
A132: 128 | B132: 四川麻辣空间食品有限公司 | C132: 91510124587574862M | D132: =VLOOKUP(B132,B132:E132,4,0) -> 食品制造业 | E132: 食品制造业 | F132: 成都市郫都区安德镇中国川菜产业化园区永安路568号 | G132: 成都市郫都区安德镇 | H132: 4329 | I132: 330.48 | J132: 70.09 | K132: 6938.43 | L132: 420.14 | M132: 109.19 | N132: 6258.13 | O132: 394.37 | P132: 68.96 | Q132: 19 | R132: 394.37 | S132: 5.4 | T132: 115 | U132: 179.80 | V132: 20 | W132: 6694 | X132: 5899 | Y132: 否 | Z132: 否 | AA132: 否 | AB132: 否 | AC132: 否 | AD132: 否 | AE132: 否 | AF132: 否 | AG132: 否 | AH132: 否 | AI132: 否 | AJ132: 否 | AK132: 否 | AL132: 否 | AM132: 0 | AN132: 0 | AO132: 0 | AP132: 0 | AQ132: 0 | AR132: 否 | AS132: 否 | AT132: 200万以下 | AU132: 否 | AV132: 2 | AW132: 否 | AX132: 否 | AY132: 否 | AZ132: 150 | BA132: 0 | BB132: 否
A133: 129 | B133: 成都新航工业科技有限公司 | C133: 9151012478267114X4 | D133: =VLOOKUP(B133,B133:E133,4,0) -> 金属制品业 | E133: 金属制品业 | F133: 成都市郫都区现代工业港北片区小微企业创新园望丛北路一段278号 | G133: 成都市郫都区现代工业港 | H133: 2582 | I133: 385.30 | J133: 446.20 | K133: 2,932.10 | L133: 290.40 | M133: 277.60 | N133: 4,055.40 | O133: 386.20 | P133: 460.70 | Q133: 27 | R133: 386.20 | S133: 388.40 | T133: 129 | U133: 320.77 | V133: 0 | W133: 8,374.70 | X133: 6,492.70 | Y133: 否 | Z133: 否 | AA133: 国内领先 | AB133: 否 | AC133: 否 | AD133: 否 | AE133: 否 | AF133: 否 | AG133: 否 | AH133: 是 | AI133: 否 | AJ133: 否 | AK133: 否 | AL133: 否 | AM133: 2 | AN133: 64 | AO133: 0 | AP133: 0 | AQ133: 66 | AR133: 是 | AS133: 否 | AT133: 200万以上 | AU133: 否 | AV133: 1 | AW133: 否 | AX133: 是 | AY133: 是 | AZ133: 800 | BA133: 0 | BB133: 否
A134: 130 | B134: 四川饭扫光食品集团股份有限公司 | C134: 91510124720347942H | D134: =VLOOKUP(B134,B134:E134,4,0) -> 食品制造业 | E134: 食品制造业 | F134: 成都市郫都区安德川菜园区永和路389号 | G134: 郫都区 | H134: 42033 | I134: 1567.08 | J134: 3782.03 | K134: 48009.75 | L134: 1131.70 | M134: 4579.98 | N134: 40543.03 | O134: 1632.73 | P134: 2674.27 | Q134: 125 | R134: 1632.73 | S134: 1200 | T134: 349 | U134: 744.64 | V134: 0.58 | W134: 40183.68 | X134: 7247.8 | Y134: 否 | Z134: 否 | AA134: 国内领先 | AB134: 否 | AC134: 省级专精特新 | AD134: 否 | AE134: 否 | AF134: 是 | AG134: 否 | AH134: 否 | AI134: 是 | AJ134: 否 | AK134: 否 | AL134: 否 | AM134: 2 | AN134: 2 | AO134: 7 | AP134: 0 | AQ134: 11 | AR134: 是 | AS134: 市级 | AT134: 200万以上 | AU134: 否 | AV134: 0 | AW134: 否 | AX134: 是 | AY134: 是 | AZ134: 500 | BA134: 30 | BB134: 省级
A135: 131 | B135: 成都华烨科技有限公司 | C135: 915101243946220984 | D135: =VLOOKUP(B135,B135:E135,4,0) -> 通用设备制造业 | E135: 通用设备制造业 | F135: 郫县成都现代工业港北片区港通北三路398号 | G135: 现代工业港 | H135: 9207 | I135: 473.00 | J135: 529.80 | K135: 16841.30 | L135: 1041.00 | M135: 2078.30 | N135: 24422.10 | O135: 136.30 | P135: 2974.10 | Q135: 40 | R135: 136.30 | S135: 0 | T135: 188 | U135: 289.64 | V135: 0 | W135: 8322.9 | X135: 3309.9 | Y135: 否 | Z135: 否 | AA135: 否 | AB135: 否 | AC135: 否 | AD135: 否 | AE135: 否 | AF135: 否 | AG135: 否 | AH135: 否 | AI135: 否 | AJ135: 否 | AK135: 否 | AL135: 否 | AM135: 0 | AN135: 17 | AO135: 0 | AP135: 0 | AQ135: 17 | AR135: 否 | AS135: 否 | AT135: 否 | AU135: 否 | AV135: 3 | AW135: 否 | AX135: 否 | AY135: 否 | AZ135: 1603.2 | BA135: 0 | BB135: 否
A136: 132 | B136: 四川东兴电气有限公司 | C136: 91510124202554087Q | D136: 通用设备制造业 | E136: 电气机械和器材制造业 | F136: 郫都区成都现代工业港北片区港通北一路99号 | G136: 现代工业港 | H136: 5344 | I136: 243 | J136: 89 | K136: 5604 | L136: 237 | M136: 90 | N136: 5358 | O136: 233 | P136: 82 | Q136: 22 | R136: 233 | S136: 332 | T136: 69 | U136: 33.56 | V136: 0 | W136: 7388 | X136: 2575 | Y136: 否 | Z136: 否 | AA136: 省内领先 | AB136: 否 | AC136: 否 | AD136: 否 | AE136: 否 | AF136: 否 | AG136: 否 | AH136: 是 | AI136: 否 | AJ136: 否 | AK136: 否 | AL136: 否 | AM136: 0 | AN136: 0 | AO136: 0 | AP136: 0 | AQ136: 0 | AR136: 否 | AS136: 否 | AT136: 否 | AU136: 否 | AV136: 3 | AW136: 是 | AX136: 否 | AY136: 是 | AZ136: 100 | BA136: 3 | BB136: 否
A137: 133 | B137: 四川志达欣砼实业有限公司 | C137: 91510124792155018W | D137: 其他 | E137: 非金属矿物制品业 | F137: 成都市郫都区红光镇现代工业港北片区正兴路492号 | G137: 现代工业港 | H137: 32162 | I137: 1458.94 | J137: 913.48 | K137: 30861.07 | L137: 1296.82 | M137: 576.58 | N137: 33685.64 | O137: 1417.21 | P137: 321.39 | Q137: 55 | R137: 1417.21 | S137: 0 | T137: 73 | U137: 266.3 | V137: 0 | W137: 23627.7 | X137: 20408.45 | Y137: 否 | Z137: 否 | AA137: 否 | AB137: 否 | AC137: 否 | AD137: 否 | AE137: 否 | AF137: 否 | AG137: 否 | AH137: 否 | AI137: 否 | AJ137: 否 | AK137: 否 | AL137: 否 | AM137: 0 | AN137: 0 | AO137: 0 | AP137: 0 | AQ137: 0 | AR137: 否 | AS137: 否 | AT137: 否 | AU137: 否 | AV137: 0 | AW137: 否 | AX137: 否 | AY137: 否 | AZ137: 0 | BA137: 0 | BB137: 否
A138: 134 | B138: 成都深冷科技有限公司 | C138: 91510124564455174K | D138: =VLOOKUP(B138,B138:E138,4,0) -> 通用设备制造业 | E138: 通用设备制造业 | F138: 成都市郫都区成都现代工业港港北四路335号 | G138: 成都市郫都区红光镇工业港区 | H138: 7787 | I138: 195.205 | J138: -117.8362 | K138: 6542.2235 | L138: 26.0131 | M138: 173.714 | N138: 9901.4427 | O138: 64.8527 | P138: 889.2332 | Q138: 11 | R138: 64.8527 | S138: 422.3608 | T138: 60 | U138: 10.39 | V138: 0 | W138: 19201.8164 | X138: 16353.717 | Y138: 否 | Z138: 否 | AA138: 否 | AB138: 否 | AC138: 否 | AD138: 否 | AE138: 否 | AF138: 否 | AG138: 否 | AH138: 是 | AI138: 否 | AJ138: 否 | AK138: 否 | AL138: 否 | AM138: 7 | AN138: 21 | AO138: 0 | AP138: 0 | AQ138: 28 | AR138: 否 | AS138: 否 | AT138: 否 | AU138: 否 | AV138: 0 | AW138: 否 | AX138: 否 | AY138: 否 | AZ138: 0 | BA138: 0 | BB138: 否
A139: 135 | B139: 四川省成都红灯笼食品有限公司 | C139: 91510124720397237Y | D139: =VLOOKUP(B139,B139:E139,4,0) -> 食品制造业 | E139: 食品制造业 | F139: 郫都区安德镇川菜产业园区蜀雅路188号 | G139: 成都市郫都区 | H139: 5072 | I139: 330.67 | J139: 9.2 | K139: 12626.45 | L139: 735.74 | M139: 67.4 | N139: 25044.2 | O139: 1301.53 | P139: 152.68 | Q139: 30 | R139: 1301.53 | S139: 980.92 | T139: 280 | U139: 1026 | V139: 0 | W139: 9887 | X139: 6939 | Y139: 否 | Z139: 否 | AA139: 国内领先 | AB139: 否 | AC139: 否 | AD139: 否 | AE139: 否 | AF139: 否 | AG139: 是 | AH139: 否 | AI139: 否 | AJ139: 是 | AK139: 否 | AL139: 否 | AM139: 0 | AN139: 20 | AO139: 0 | AP139: 0 | AQ139: 20 | AR139: 否 | AS139: 否 | AT139: 200万以下 | AU139: 否 | AV139: 1 | AW139: 否 | AX139: 否 | AY139: 否 | AZ139: 1628 | BA139: 0 | BB139: 否
A140: 136 | B140: 四川恒立商品混凝土有限公司 | C140: 91510124792184839F | D140: 其他 | E140: 非金属矿物制品业 | F140: 成都市郫都区成都现代工业港北片区港北四路218号 | G140: 现代工业港 | H140: 14186 | I140: 425 | J140: 128 | K140: 20339 | L140: 611 | M140: 266 | N140: 12824 | O140: 392 | P140: -225 | Q140: 23 | R140: 392 | S140: 72.27 | T140: 70 | U140: 72.27 | V140: 0 | W140: 9258 | X140: 7029 | Y140: 否 | Z140: 否 | AA140: 否 | AB140: 否 | AC140: 否 | AD140: 否 | AE140: 否 | AF140: 否 | AG140: 否 | AH140: 否 | AI140: 否 | AJ140: 否 | AK140: 否 | AL140: 否 | AM140: 0 | AN140: 0 | AO140: 0 | AP140: 0 | AQ140: 0 | AR140: 否 | AS140: 否 | AT140: 否 | AU140: 否 | AV140: 0 | AW140: 否 | AX140: 否 | AY140: 否 | AZ140: 0 | BA140: 0 | BB140: 否
A141: 137 | B141: 四川川润液压润滑设备有限公司 | C141: 915101247949348917 | D141: =VLOOKUP(B141,B141:E141,4,0) -> 通用设备制造业 | E141: 通用设备制造业 | F141: 成都市郫都区成都现代工业港北片区 | G141: 成都市郫都区 | H141: 40871.22985 | I141: 1400.802803 | J141: -73.663462 | K141: 63108.06465 | L141: 2643.490207 | M141: 3046.710843 | N141: 82333.68454 | O141: 4174.608955 | P141: 3961.241947 | Q141: 187 | R141: 4174.608955 | S141: 2933.948229 | T141: 532 | U141: 528.47 | V141: 0 | W141: 138108.4635 | X141: 73948.14724 | Y141: 否 | Z141: 否 | AA141: 省内领先 | AB141: 国家级专精特新 | AC141: 否 | AD141: 否 | AE141: 否 | AF141: 是 | AG141: 否 | AH141: 是 | AI141: 否 | AJ141: 是 | AK141: 否 | AL141: 是 | AM141: 13 | AN141: 55 | AO141: 1 | AP141: 0 | AQ141: 69 | AR141: 否 | AS141: 否 | AT141: 200万以上 | AU141: 否 | AV141: 3 | AW141: 否 | AX141: 否 | AY141: 是 | AZ141: 5200 | BA141: 6 | BB141: 国家级
A142: 138 | B142: 成都唯克特电子有限公司 | C142: 915101245589678279 | D142: 电子信息 | E142: 批发和零售业 | F142: 成都市郫都区川省现代工业港港通北三路269号融智创新产业园1栋4号楼 | G142: 现代工业港 | H142: 1445 | I142: 41.85 | J142: 14.28 | K142: 1808.71 | L142: 44.33 | M142: 20.69 | N142: 2952.3 | O142: 69.89 | P142: 282.58 | Q142: 4.5 | R142: 69.89 | S142: 0 | T142: 47 | U142: 34.41 | V142: 0 | W142: 1100 | X142: 800 | Y142: 否 | Z142: 否 | AA142: 否 | AB142: 否 | AC142: 否 | AD142: 否 | AE142: 否 | AF142: 否 | AG142: 否 | AH142: 否 | AI142: 否 | AJ142: 否 | AK142: 否 | AL142: 否 | AM142: 0 | AN142: 0 | AO142: 0 | AP142: 0 | AQ142: 0 | AR142: 否 | AS142: 否 | AT142: 否 | AU142: 否 | AV142: 3 | AW142: 否 | AX142: 否 | AY142: 否 | AZ142: 0 | BA142: 0 | BB142: 否
A143: 139 | B143: 四川中自环保设备有限公司 | C143: 91510124MA6C6RQN9C | D143: 其他 | E143: 专用设备制造业 | F143: 成都市郫都区成都现代工业港北片区港大路580号 | G143: 成都市郫都区 | H143: 1488 | I143: 10 | J143: -457 | K143: 3447 | L143: 18 | M143: -178 | N143: 3467 | O143: 26 | P143: 219 | Q143: 18 | R143: 26 | S143: 33 | T143: 67 | U143: 39 | V143: 0 | W143: 2315 | X143: 881 | Y143: 否 | Z143: 否 | AA143: 否 | AB143: 否 | AC143: 否 | AD143: 否 | AE143: 否 | AF143: 否 | AG143: 否 | AH143: 否 | AI143: 否 | AJ143: 否 | AK143: 否 | AL143: 否 | AM143: 0 | AN143: 2 | AO143: 0 | AP143: 0 | AQ143: 2 | AR143: 否 | AS143: 否 | AT143: 否 | AU143: 否 | AV143: 0 | AW143: 否 | AX143: 否 | AY143: 否 | AZ143: 1985 | BA143: 0 | BB143: 否
A144: 140 | B144: 四川川宇电气有限公司 | C144: 91510124667570060C | D144: =VLOOKUP(B144,B144:E144,4,0) -> 金属制品业 | E144: 金属制品业 | F144: 成都市郫都区现代工业港北片区港通北四路520号 | G144: 现代工业港北片区 | H144: 2687 | I144: 106.86 | J144: 20.03 | K144: 4531.68 | L144: 165.89 | M144: 194.34 | N144: 4657.61 | O144: 189.6 | P144: 222.142 | Q144: 15 | R144: 189.6 | S144: 0 | T144: 59 | U144: 21.52 | V144: 0 | W144: 4694.97 | X144: 1622.71 | Y144: 否 | Z144: 否 | AA144: 否 | AB144: 否 | AC144: 否 | AD144: 否 | AE144: 否 | AF144: 否 | AG144: 否 | AH144: 否 | AI144: 否 | AJ144: 否 | AK144: 否 | AL144: 否 | AM144: 0 | AN144: 3 | AO144: 3 | AP144: 0 | AQ144: 6 | AR144: 否 | AS144: 否 | AT144: 否 | AU144: 否 | AV144: 3 | AW144: 否 | AX144: 否 | AY144: 否 | AZ144: 2000 | BA144: 0 | BB144: 否
A145: 141 | B145: 成都金安汇泰科技有限公司 | C145: 915101150776610772 | D145: 其他 | E145: 公共管理、社会保障和社会组织 | F145: 成都市郫都区 | G145: 成都市郫都区 | H145: 747 | I145: 12 | J145: 10 | K145: 2738 | L145: 52 | M145: 21 | N145: 2670 | O145: 53 | P145: 31 | Q145: 3 | R145: 53 | S145: 176 | T145: 23 | U145: 218.47 | V145: 0 | W145: 1149 | X145: 943 | Y145: 否 | Z145: 否 | AA145: 否 | AB145: 否 | AC145: 否 | AD145: 否 | AE145: 否 | AF145: 否 | AG145: 否 | AH145: 否 | AI145: 否 | AJ145: 否 | AK145: 否 | AL145: 否 | AM145: 15 | AN145: 15 | AO145: 0 | AP145: 0 | AQ145: 30 | AR145: 否 | AS145: 否 | AT145: 否 | AU145: 否 | AV145: 2 | AW145: 是 | AX145: 否 | AY145: 是 | AZ145: 50 | BA145: 0 | BB145: 否
A146: 142 | B146: 成都市金福猴食品股份有限公司 | C146: 915101247622996943 | D146: =VLOOKUP(B146,B146:E146,4,0) -> 食品制造业 | E146: 食品制造业 | F146: 成都市郫都区安德镇中国川菜产业园蜀韵路288号 | G146: 川菜产业园 | H146: 6559 | I146: 416.836525 | J146: -113.792398 | K146: 7481.877278 | L146: 238.254645 | M146: -167.410392 | N146: 6412.153113 | O146: 64.778604 | P146: -372.17053 | Q146: 33 | R146: 64.778604 | S146: 0 | T146: 143 | U146: 202.86 | V146: 0 | W146: 16191.9592 | X146: 9861.198758 | Y146: 否 | Z146: 否 | AA146: 否 | AB146: 否 | AC146: 否 | AD146: 否 | AE146: 否 | AF146: 否 | AG146: 否 | AH146: 否 | AI146: 否 | AJ146: 否 | AK146: 否 | AL146: 否 | AM146: 0 | AN146: 12 | AO146: 0 | AP146: 0 | AQ146: 12 | AR146: 否 | AS146: 否 | AT146: 否 | AU146: 否 | AV146: 0 | AW146: 否 | AX146: 否 | AY146: 否 | AZ146: 1300 | BA146: 0 | BB146: 否
A147: 143 | B147: 四川豪琪线缆有限公司 | C147: 91510106395723421U | D147: 其他 | E147: 批发和零售业 | F147: 成都郫都区成都现代工业港南片区兴港路69号 | G147: 现代工业港 | H147: 107.49 | I147: 0.407 | J147: 4.37 | K147: 442.28 | L147: 2.386 | M147: -2.4 | N147: 5210.94 | O147: 60.9 | P147: 5.18 | Q147: 4.3 | R147: 60.9 | S147: 298.81 | T147: 14 | U147: 0 | V147: 0 | W147: 1330.63 | X147: 825.42 | Y147: 否 | Z147: 否 | AA147: 否 | AB147: 否 | AC147: 否 | AD147: 否 | AE147: 否 | AF147: 否 | AG147: 否 | AH147: 是 | AI147: 是 | AJ147: 否 | AK147: 否 | AL147: 否 | AM147: 0 | AN147: 15 | AO147: 0 | AP147: 0 | AQ147: 15 | AR147: 否 | AS147: 市级 | AT147: 否 | AU147: 否 | AV147: 3 | AW147: 否 | AX147: 否 | AY147: 否 | AZ147: 0 | BA147: 0 | BB147: 否
A148: 144 | B148: 四川金星石油化工机械设备有限公司 | C148: 915101247978480593 | D148: =VLOOKUP(B148,B148:E148,4,0) -> 通用设备制造业 | E148: 通用设备制造业 | F148: 成都市郫都区成都现代工业港港北片区 | G148: 现代工业港 | H148: 19573.24 | I148: 139.91 | J148: 1194.74 | K148: 17464.88 | L148: 74.42 | M148: -279.6 | N148: 20653.33 | O148: 184.98 | P148: 198.68 | Q148: 38.2 | R148: 184.98 | S148: 1083.84 | T148: 97 | U148: 156 | V148: 0 | W148: 38333.27 | X148: 27316.04 | Y148: 否 | Z148: 否 | AA148: 国内领先 | AB148: 否 | AC148: 否 | AD148: 市级专精特新 | AE148: 否 | AF148: 否 | AG148: 否 | AH148: 是 | AI148: 否 | AJ148: 否 | AK148: 否 | AL148: 否 | AM148: 7 | AN148: 74 | AO148: 3 | AP148: 0 | AQ148: 84 | AR148: 否 | AS148: 否 | AT148: 否 | AU148: 否 | AV148: 3 | AW148: 否 | AX148: 否 | AY148: 否 | AZ148: 0 | BA148: 0 | BB148: 否
A149: 145 | B149: 成都金成标高强度紧固件制造有限公司 | C149: 915101247801401188 | D149: =VLOOKUP(B149,B149:E149,4,0) -> 通用设备制造业 | E149: 通用设备制造业 | F149: 四川省成都市郫都区成都现代工业港北区港东二路610号 | G149: 四川省成都市郫都区 | H149: 4864.4 | I149: 321.15 | J149: 31.33 | K149: 5158.62 | L149: 294.27 | M149: 49.55 | N149: 7240.54 | O149: 499.65 | P149: 301.04 | Q149: 35 | R149: 499.65 | S149: 104.68 | T149: 120 | U149: 713.32 | V149: 0 | W149: 6166 | X149: 3942 | Y149: 否 | Z149: 否 | AA149: 国内领先 | AB149: 否 | AC149: 否 | AD149: 否 | AE149: 否 | AF149: 否 | AG149: 否 | AH149: 否 | AI149: 否 | AJ149: 否 | AK149: 否 | AL149: 否 | AM149: 0 | AN149: 0 | AO149: 0 | AP149: 0 | AQ149: 0 | AR149: 否 | AS149: 否 | AT149: 否 | AU149: 否 | AV149: 2 | AW149: 否 | AX149: 否 | AY149: 是 | AZ149: 72 | BA149: 0 | BB149: 否
A150: 146 | B150: 成都新正环保科技有限公司 | C150: 91510124564496013T | D150: 其他 | E150: 租赁和商务服务业 | F150: 成都市郫都区现代工业港北片区天台寺路1050号 | G150: 郫都区 | H150: 9911.78 | I150: 676.01 | J150: 2890.31 | K150: 9437.5 | L150: 592.43 | M150: 2936.68 | N150: 14080.28 | O150: 1379.21 | P150: 4620.15 | Q150: 76.9 | R150: 1379.21 | S150: 0 | T150: 127 | U150: 291.95 | V150: 0 | W150: 18601.82 | X150: 6552.24 | Y150: 否 | Z150: 否 | AA150: 否 | AB150: 否 | AC150: 否 | AD150: 否 | AE150: 否 | AF150: 否 | AG150: 否 | AH150: 否 | AI150: 否 | AJ150: 否 | AK150: 否 | AL150: 否 | AM150: 0 | AN150: 0 | AO150: 0 | AP150: 0 | AQ150: 0 | AR150: 否 | AS150: 否 | AT150: 否 | AU150: 否 | AV150: 3 | AW150: 否 | AX150: 否 | AY150: 否 | AZ150: 113.79 | BA150: 0 | BB150: 否
A151: 147 | B151: 成都图南电子有限公司 | C151: 91510100674301782Y | D151: 电子信息 | E151: 计算机、通信和其他电子设备制造业 | F151: 成都市郫都区现代工业港南片区清马路599号 | G151: 成都现代工业港 | H151: 3447 | I151: 60 | J151: 97 | K151: 3391 | L151: 55 | M151: 59 | N151: 5341 | O151: 50 | P151: 132 | Q151: 9 | R151: 50 | S151: 260 | T151: 73 | U151: 135.19 | V151: 0 | W151: 2610 | X151: 2316 | Y151: 否 | Z151: 否 | AA151: 否 | AB151: 否 | AC151: 否 | AD151: 否 | AE151: 否 | AF151: 否 | AG151: 是 | AH151: 否 | AI151: 否 | AJ151: 否 | AK151: 否 | AL151: 否 | AM151: 0 | AN151: 14 | AO151: 0 | AP151: 0 | AQ151: 14 | AR151: 否 | AS151: 否 | AT151: 否 | AU151: 否 | AV151: 0 | AW151: 否 | AX151: 否 | AY151: 否 | AZ151: 0 | BA151: 0 | BB151: 否
A152: 148 | B152: 成都市旺丰食品有限责任公司 | C152: 91510124X21797047Y | D152: =VLOOKUP(B152,B152:E152,4,0) -> 食品制造业 | E152: 食品制造业 | F152: 成都市郫都区团结镇白马村11组200号 | G152: 郫都区 | H152: 10929 | I152: 576 | J152: 405 | K152: 14312 | L152: 667 | M152: 112 | N152: 12703 | O152: 637 | P152: -293 | Q152: 37.5 | R152: 637 | S152: 352 | T152: 170 | U152: 94.54 | V152: 0 | W152: 12548 | X152: 3950 | Y152: 否 | Z152: 否 | AA152: 否 | AB152: 否 | AC152: 否 | AD152: 否 | AE152: 否 | AF152: 否 | AG152: 否 | AH152: 否 | AI152: 否 | AJ152: 否 | AK152: 是 | AL152: 否 | AM152: 0 | AN152: 16 | AO152: 26 | AP152: 0 | AQ152: 42 | AR152: 是 | AS152: 否 | AT152: 否 | AU152: 否 | AV152: 3 | AW152: 否 | AX152: 是 | AY152: 否 | AZ152: 800 | BA152: 0 | BB152: 否
A153: 149 | B153: 成都现代万通锚固技术有限公司 | C153: 915101247978235210 | D153: 其他 | E153: 黑色金属冶炼和压延加工业 | F153: 成都市郫都区唐元镇长林村 | G153: 郫都区 | H153: 5063 | I153: 33.50 | J153: 32.00 | K153: 3827.50 | L153: 168.50 | M153: 38.80 | N153: 3205.70 | O153: 106.65 | P153: 44.80 | Q153: 10 | R153: 106.65 | S153: 173.6 | T153: 40 | U153: 133.84 | V153: 19.5 | W153: 3798.8 | X153: 2571 | Y153: 否 | Z153: 否 | AA153: 国内领先 | AB153: 否 | AC153: 否 | AD153: 否 | AE153: 否 | AF153: 否 | AG153: 否 | AH153: 是 | AI153: 否 | AJ153: 否 | AK153: 否 | AL153: 否 | AM153: 5 | AN153: 24 | AO153: 1 | AP153: 0 | AQ153: 30 | AR153: 否 | AS153: 否 | AT153: 否 | AU153: 否 | AV153: 3 | AW153: 否 | AX153: 否 | AY153: 是 | AZ153: 45 | BA153: 0 | BB153: 否
A154: 150 | B154: 四川恒丰和食品发展有限公司 | C154: 9151012479781759M | D154: =VLOOKUP(B154,B154:E154,4,0) -> 食品制造业 | E154: 食品制造业 | F154: 成都市郫都区团结镇白马村七组213号 | G154: 郫都区团结镇白马村七组213号 | H154: 1658 | I154: 107.82 | J154: 0.059 | K154: 2547.73 | L154: 60.13 | M154: 39.27 | N154: 1837.3 | O154: 36.1 | P154: 12.96 | Q154: 17 | R154: 36.1 | S154: 0 | T154: 47 | U154: 6.76 | V154: 0 | W154: 2284 | X154: 985 | Y154: 否 | Z154: 否 | AA154: 否 | AB154: 否 | AC154: 否 | AD154: 否 | AE154: 否 | AF154: 否 | AG154: 否 | AH154: 否 | AI154: 否 | AJ154: 否 | AK154: 是 | AL154: 否 | AM154: 0 | AN154: 0 | AO154: 5 | AP154: 0 | AQ154: 5 | AR154: 是 | AS154: 否 | AT154: 否 | AU154: 否 | AV154: 0 | AW154: 否 | AX154: 是 | AY154: 否 | AZ154: 500 | BA154: 0 | BB154: 否
A155: 151 | B155: 成都市豫蓉电缆厂 | C155: 915101247745331262 | D155: 通用设备制造业 | E155: 电气机械和器材制造业 | F155: 成都市郫都区团结镇平安村2组224号 | G155: 市郫都区 | H155: 3667 | I155: 85.53 | J155: 25.3 | K155: 3844.3 | L155: 82.72 | M155: 13.84 | N155: 2528.7 | O155: 28.8 | P155: 5.9 | Q155: 11 | R155: 28.8 | S155: 0 | T155: 25 | U155: 0 | V155: 0 | W155: 1344.5 | X155: 1237.5 | Y155: 否 | Z155: 否 | AA155: 否 | AB155: 否 | AC155: 否 | AD155: 否 | AE155: 否 | AF155: 否 | AG155: 否 | AH155: 否 | AI155: 否 | AJ155: 否 | AK155: 否 | AL155: 否 | AM155: 0 | AN155: 0 | AO155: 0 | AP155: 0 | AQ155: 0 | AR155: 否 | AS155: 否 | AT155: 否 | AU155: 否 | AV155: 0 | AW155: 否 | AX155: 否 | AY155: 否 | AZ155: 0 | BA155: 0 | BB155: 否
A156: 152 | B156: 成都华信高科医疗器械有限责任公司 | C156: 91510124713035326C | D156: 通用设备制造业 | E156: 专用设备制造业 | F156: 成都市郫都区成都现代工业港南片区清马路369号 | G156: 郫都区 | H156: 2951 | I156: 111.1 | J156: 3.05 | K156: 3465.86 | L156: 13.71 | M156: 5.46 | N156: 3356.58 | O156: 6.1 | P156: 12.42 | Q156: 54 | R156: 6.1 | S156: 198.1 | T156: 107 | U156: 26.79 | V156: 0 | W156: 2791.39 | X156: 562.76 | Y156: 否 | Z156: 否 | AA156: 否 | AB156: 否 | AC156: 否 | AD156: 否 | AE156: 否 | AF156: 否 | AG156: 否 | AH156: 是 | AI156: 否 | AJ156: 否 | AK156: 是 | AL156: 否 | AM156: 3 | AN156: 35 | AO156: 4 | AP156: 0 | AQ156: 42 | AR156: 否 | AS156: 否 | AT156: 否 | AU156: 否 | AV156: 3 | AW156: 否 | AX156: 否 | AY156: 否 | AZ156: 0 | BA156: 0 | BB156: 否
A157: 153 | B157: 成都四友钢构有限责任公司 | C157: 91510124663010656U | D157: =VLOOKUP(B157,B157:E157,4,0) -> 金属制品业 | E157: 金属制品业 | F157: 成都现代工业港南区清马路569号 | G157: 郫都区 | H157: 6334 | I157: 292 | J157: 75 | K157: 5883 | L157: 287 | M157: 95 | N157: 4344 | O157: 204 | P157: 78 | Q157: 45 | R157: 204 | S157: 100 | T157: 82 | U157: 704 | V157: 1.7 | W157: 2465 | X157: 2216 | Y157: 否 | Z157: 否 | AA157: 省内领先 | AB157: 否 | AC157: 否 | AD157: 否 | AE157: 否 | AF157: 否 | AG157: 否 | AH157: 否 | AI157: 否 | AJ157: 否 | AK157: 否 | AL157: 是 | AM157: 1 | AN157: 4 | AO157: 0 | AP157: 0 | AQ157: 5 | AR157: 否 | AS157: 市级 | AT157: 200万以上 | AU157: 否 | AV157: 1 | AW157: 否 | AX157: 否 | AY157: 是 | AZ157: 50 | BA157: 5 | BB157: 否
A158: 154 | B158: 四川省丹丹郫县豆瓣集团股份有限公司 | C158: 91510124755966436D | D158: =VLOOKUP(B158,B158:E158,4,0) -> 食品制造业 | E158: 食品制造业 | F158: 成都市郫都区中国川菜产业化园区永安路38号 | G158: 郫都区 | H158: 46626 | I158: 4213 | J158: 6326 | K158: 54957 | L158: 2243 | M158: 7770 | N158: 48976 | O158: 1636 | P158: 9827 | Q158: 73.2 | R158: 1636 | S158: 0 | T158: 728 | U158: 762.18 | V158: 0.1 | W158: 61506 | X158: 18674 | Y158: 是 | Z158: 是 | AA158: 国内领先 | AB158: 否 | AC158: 省级专精特新 | AD158: 否 | AE158: 是 | AF158: 否 | AG158: 否 | AH158: 否 | AI158: 是 | AJ158: 否 | AK158: 否 | AL158: 否 | AM158: 2 | AN158: 38 | AO158: 42 | AP158: 0 | AQ158: 82 | AR158: 是 | AS158: 国家级 | AT158: 否 | AU158: 否 | AV158: 3 | AW158: 否 | AX158: 是 | AY158: 否 | AZ158: 8977 | BA158: 2 | BB158: 省级
A159: 155 | B159: 成都吉食道食品有限公司 | C159: 91510100740308561D | D159: 其他 | E159: 农副食品加工业 | F159: 郫都区安德川菜产业园永安路222号 | G159: 四川省成都市郫都区中国川菜产业园永安路222号 | H159: 5111 | I159: 379.37 | J159: 49.95 | K159: 5756.22 | L159: 293.77 | M159: 63.86 | N159: 6194.57 | O159: 276.43 | P159: -34.83 | Q159: 23 | R159: 276.43 | S159: 255.99 | T159: 157 | U159: 134.07 | V159: 0 | W159: 3650.67 | X159: 2963.25 | Y159: 否 | Z159: 否 | AA159: 省内领先 | AB159: 否 | AC159: 否 | AD159: 否 | AE159: 否 | AF159: 否 | AG159: 否 | AH159: 否 | AI159: 否 | AJ159: 否 | AK159: 否 | AL159: 否 | AM159: 0 | AN159: 17 | AO159: 2 | AP159: 0 | AQ159: 19 | AR159: 是 | AS159: 否 | AT159: 否 | AU159: 否 | AV159: 1 | AW159: 否 | AX159: 是 | AY159: 是 | AZ159: 975.3 | BA159: 0 | BB159: 否
A160: 156 | B160: 成都鑫昇利无纺布有限公司 | C160: 91510124771247853x | D160: 其他 | E160: 纺织业 | F160: 成都市郫都区安靖镇沙湾村八组303号 | G160: 郫都区安靖镇 | H160: 6750 | I160: 261 | J160: 465.6 | K160: 7328.2 | L160: 242 | M160: 492.5 | N160: 36535.2 | O160: 432.7 | P160: 2637.2 | Q160: 45 | R160: 432.7 | S160: 0 | T160: 85 | U160: 0.28 | V160: 0 | W160: 5415.9 | X160: 775.3 | Y160: 否 | Z160: 否 | AA160: 否 | AB160: 否 | AC160: 否 | AD160: 否 | AE160: 否 | AF160: 否 | AG160: 否 | AH160: 否 | AI160: 否 | AJ160: 否 | AK160: 否 | AL160: 否 | AM160: 0 | AN160: 0 | AO160: 0 | AP160: 0 | AQ160: 0 | AR160: 否 | AS160: 否 | AT160: 200万以下 | AU160: 否 | AV160: 1 | AW160: 否 | AX160: 否 | AY160: 否 | AZ160: 800 | BA160: 0 | BB160: 否
A161: 157 | B161: 成都市鑫亿装饰材料有限公司 | C161: 915101245849725077 | D161: 其他 | E161: 有色金属冶炼和压延加工业 | F161: 郫都区唐昌镇天星村15组 | G161: 郫都区 | H161: 2000 | I161: 6 | J161: 82 | K161: 5034 | L161: 17 | M161: 82 | N161: 6990 | O161: 21 | P161: 185 | Q161: 5 | R161: 21 | S161: 0 | T161: 58 | U161: 6.56 | V161: 12 | W161: 1347 | X161: 16 | Y161: 否 | Z161: 否 | AA161: 否 | AB161: 否 | AC161: 否 | AD161: 否 | AE161: 否 | AF161: 否 | AG161: 否 | AH161: 否 | AI161: 否 | AJ161: 否 | AK161: 否 | AL161: 否 | AM161: 0 | AN161: 0 | AO161: 0 | AP161: 0 | AQ161: 0 | AR161: 否 | AS161: 否 | AT161: 否 | AU161: 否 | AV161: 0 | AW161: 否 | AX161: 否 | AY161: 否 | AZ161: 0 | BA161: 0 | BB161: 否
A162: 158 | B162: 成都奥兴汽配制造有限公司 | C162: 91510124725373840Y | D162: 其他 | E162: 汽车制造业 | F162: 郫县郫筒镇何公路116号 028-87920910 | G162: 成都现代工业港 | H162: 7754.1 | I162: 337.89 | J162: -556.7 | K162: 6069.3 | L162: 84.72 | M162: 1091.1 | N162: 10751.5 | O162: -14 | P162: -1350.6 | Q162: 9.6 | R162: -14 | S162: 133.96 | T162: 108 | U162: 63.98 | V162: 0 | W162: =148023788.65/10000 -> 14802.37887 | X162: =128472959.19/10000 -> 12847.29592 | Y162: 否 | Z162: 否 | AA162: 省内领先 | AB162: 否 | AC162: 否 | AD162: 否 | AE162: 否 | AF162: 否 | AG162: 否 | AH162: 否 | AI162: 否 | AJ162: 否 | AK162: 否 | AL162: 否 | AM162: 0 | AN162: 4 | AO162: 0 | AP162: 0 | AQ162: 4 | AR162: 否 | AS162: 否 | AT162: 否 | AU162: 否 | AV162: 0 | AW162: 否 | AX162: 否 | AY162: 是 | AZ162: 3270 | BA162: 0 | BB162: 省级
A163: 159 | B163: 成都兴光工业科技有限公司 | C163: 9151012477457173J | D163: 其他 | E163: 汽车制造业 | F163: 成都市郫县郫筒镇何公路116号028-87920910 | G163: 郫都区现代工业港南区 | H163: 31156.8 | I163: 303.77 | J163: -3553.4 | K163: 32604.4 | L163: 292.97 | M163: 5738.6 | N163: 30233.9 | O163: 97.170477 | P163: -626.9 | Q163: 15.9 | R163: 97.170477 | S163: 204.13 | T163: 209 | U163: 542.7 | V163: 0 | W163: 21567.162 | X163: 15809.94 | Y163: 否 | Z163: 否 | AA163: 省内领先 | AB163: 否 | AC163: 否 | AD163: 否 | AE163: 否 | AF163: 是 | AG163: 否 | AH163: 否 | AI163: 否 | AJ163: 否 | AK163: 否 | AL163: 否 | AM163: 0 | AN163: 0 | AO163: 0 | AP163: 0 | AQ163: 0 | AR163: 否 | AS163: 否 | AT163: 否 | AU163: 否 | AV163: 0 | AW163: 否 | AX163: 否 | AY163: 是 | AZ163: 11513.224 | BA163: 0 | BB163: 省级
A164: 160 | B164: 四川丁点儿食品开发股份有限公司 | C164: 91510124762256248Y | D164: =VLOOKUP(B164,B164:E164,4,0) -> 食品制造业 | E164: 食品制造业 | F164: 成都市郫都区安德镇中国川菜产业化功能区蜀香路388号 | G164: 郫都区 | H164: 19144.3 | I164: 1675.77 | J164: 4745 | K164: 20932.1 | L164: 2558.56 | M164: 5799.2 | N164: 19648.4 | O164: 1951.56 | P164: 4091.7 | Q164: 20.1 | R164: 1951.56 | S164: 359.8 | T164: 263 | U164: 448.23 | V164: 0.5 | W164: 39142.09 | X164: 4021.68 | Y164: 否 | Z164: 否 | AA164: 否 | AB164: 否 | AC164: 否 | AD164: 市级专精特新 | AE164: 否 | AF164: 是 | AG164: 否 | AH164: 否 | AI164: 否 | AJ164: 否 | AK164: 否 | AL164: 是 | AM164: 4 | AN164: 18 | AO164: 7 | AP164: 0 | AQ164: 29 | AR164: 是 | AS164: 国家级 | AT164: 200万以下 | AU164: 否 | AV164: 1 | AW164: 是 | AX164: 是 | AY164: 是 | AZ164: 7881 | BA164: 0 | BB164: 省级
A165: 161 | B165: 成都市成塑线缆有限公司 | C165: 915101247130676944 | D165: 通用设备制造业 | E165: 电气机械和器材制造业 | F165: 郫都区工业港南片区正港路259号 | G165: 郫都区 | H165: 39293 | I165: 1320 | J165: -592 | K165: 32636 | L165: 979 | M165: -770 | N165: 26781 | O165: 571 | P165: -158 | Q165: 427.6 | R165: 571 | S165: 0 | T165: 185 | U165: 1154.13 | V165: 0 | W165: 29818 | X165: 9204 | Y165: 否 | Z165: 否 | AA165: 否 | AB165: 否 | AC165: 否 | AD165: 否 | AE165: 否 | AF165: 否 | AG165: 否 | AH165: 否 | AI165: 否 | AJ165: 否 | AK165: 否 | AL165: 否 | AM165: 0 | AN165: 0 | AO165: 0 | AP165: 0 | AQ165: 0 | AR165: 否 | AS165: 否 | AT165: 否 | AU165: 否 | AV165: 0 | AW165: 否 | AX165: 否 | AY165: 否 | AZ165: 0 | BA165: 0 | BB165: 否
A166: 162 | B166: 四川万众建材科技有限责任公司 | C166: 91510124743647470G | D166: 其他 | E166: 非金属矿物制品业 | F166: 成都市郫都区成都现代工业港南片区荣港路79号 | G166: 郫都区 | H166: 6569 | I166: 117 | J166: 320 | K166: 4827 | L166: 120 | M166: 263 | N166: 5975 | O166: 171 | P166: 74 | Q166: 14.1 | R166: 171 | S166: 0 | T166: 7 | U166: 258.14 | V166: 0 | W166: 5322 | X166: 2339 | Y166: 否 | Z166: 否 | AA166: 否 | AB166: 否 | AC166: 否 | AD166: 否 | AE166: 否 | AF166: 否 | AG166: 否 | AH166: 否 | AI166: 否 | AJ166: 否 | AK166: 否 | AL166: 否 | AM166: 0 | AN166: 0 | AO166: 0 | AP166: 0 | AQ166: 0 | AR166: 否 | AS166: 否 | AT166: 否 | AU166: 否 | AV166: 0 | AW166: 否 | AX166: 否 | AY166: 否 | AZ166: 0 | BA166: 0 | BB166: 否
A167: 163 | B167: 四川省中药饮片有限责任公司 | C167: 91510000744665750Q | D167: 通用设备制造业 | E167: 医药制造业 | F167: 郫都区安德街道永安路560号 | G167: 郫都区 | H167: 21698 | I167: 1097 | J167: 4847 | K167: 26427 | L167: 1199 | M167: 2647 | N167: 23436 | O167: 770 | P167: 832 | Q167: 72 | R167: 770 | S167: 971 | T167: 437 | U167: 652.83 | V167: 0 | W167: 49480 | X167: 17222 | Y167: 否 | Z167: 否 | AA167: 否 | AB167: 否 | AC167: 否 | AD167: 否 | AE167: 否 | AF167: 是 | AG167: 否 | AH167: 是 | AI167: 否 | AJ167: 是 | AK167: 否 | AL167: 否 | AM167: 6 | AN167: 22 | AO167: 1 | AP167: 0 | AQ167: 29 | AR167: 否 | AS167: 否 | AT167: 否 | AU167: 否 | AV167: 1 | AW167: 否 | AX167: 否 | AY167: 否 | AZ167: 1449 | BA167: 0 | BB167: 否
A168: 164 | B168: 成都佳驰电子科技股份有限公司 | C168: 91510105677170167Y | D168: 电子信息 | E168: 其他制造业 | F168: 成都市郫都区成都现代工业港南片区新经济产业园文明街西段288号 | G168: 郫都区数码工业园 | H168: 7824 | I168: 1575.28 | J168: 4988.44 | K168: 15458.15 | L168: 3573.09 | M168: 8777.6 | N168: 28103.24 | O168: 3705.79 | P168: 926.87 | Q168: 50 | R168: 3705.79 | S168: 2565.53 | T168: 227 | U168: 331.67 | V168: 0 | W168: 54098.64 | X168: 8716.18 | Y168: 否 | Z168: 否 | AA168: 否 | AB168: 否 | AC168: 否 | AD168: 否 | AE168: 否 | AF168: 否 | AG168: 是 | AH168: 是 | AI168: 否 | AJ168: 否 | AK168: 否 | AL168: 否 | AM168: 12 | AN168: 10 | AO168: 0 | AP168: 0 | AQ168: 22 | AR168: 否 | AS168: 否 | AT168: 否 | AU168: 否 | AV168: 3 | AW168: 否 | AX168: 否 | AY168: 否 | AZ168: 2581 | BA168: 0 | BB168: 市级
A169: 165 | B169: 成都希屋樱雪家居用品有限公司 | C169: 915101247712410724 | D169: 其他 | E169: 家具制造业 | F169: 成都市郫都区成都现代工业港南片区西源大道2518号 | G169: 郫都区成都现代工业港 | H169: 2661 | I169: 105 | J169: 133 | K169: 2604 | L169: 104 | M169: 130 | N169: 2623 | O169: 105 | P169: 131 | Q169: 11 | R169: 105 | S169: 11 | T169: 105 | U169: 56.96 | V169: 0 | W169: 2514 | X169: 2365 | Y169: 否 | Z169: 否 | AA169: 否 | AB169: 否 | AC169: 否 | AD169: 否 | AE169: 否 | AF169: 否 | AG169: 否 | AH169: 否 | AI169: 否 | AJ169: 否 | AK169: 否 | AL169: 否 | AM169: 0 | AN169: 0 | AO169: 0 | AP169: 0 | AQ169: 0 | AR169: 否 | AS169: 否 | AT169: 否 | AU169: 否 | AV169: 2 | AW169: 否 | AX169: 否 | AY169: 否 | AZ169: 0 | BA169: 0 | BB169: 否
A170: 166 | B170: 四川格林流体控制设备有限公司 | C170: 91510124771693570R | D170: =VLOOKUP(B170,B170:E170,4,0) -> 通用设备制造业 | E170: 通用设备制造业 | F170: 成都市郫都区成都现代工业港南区仁港路18号 | G170: 郫都区成都现代工业港 | H170: 4053.7 | I170: 108.1 | J170: 182.9 | K170: 5625.6 | L170: 28.4 | M170: 251.8 | N170: 4077 | O170: 32.5 | P170: 117.2 | Q170: 9.9 | R170: 32.5 | S170: 233 | T170: 57 | U170: 10.82 | V170: 0 | W170: 3482 | X170: 360 | Y170: 否 | Z170: 否 | AA170: 否 | AB170: 否 | AC170: 否 | AD170: 否 | AE170: 否 | AF170: 否 | AG170: 否 | AH170: 是 | AI170: 否 | AJ170: 否 | AK170: 否 | AL170: 否 | AM170: 1 | AN170: 22 | AO170: 1 | AP170: 0 | AQ170: 24 | AR170: 否 | AS170: 否 | AT170: 否 | AU170: 否 | AV170: 3 | AW170: 否 | AX170: 否 | AY170: 否 | AZ170: 500 | BA170: 0 | BB170: 否
A171: 167 | B171: 成都佳佩科技发展有限公司 | C171: 915101247881354288 | D171: =VLOOKUP(B171,B171:E171,4,0) -> 金属制品业 | E171: 金属制品业 | F171: 成都市郫都区成都现代工业港南片区荣港路39号 | G171: 郫都区成都现代工业港 | H171: 13018 | I171: 305 | J171: 489 | K171: 15582 | L171: 386 | M171: 466 | N171: 13433 | O171: 268 | P171: 416 | Q171: 6 | R171: 268 | S171: 595 | T171: 104 | U171: 29.24 | V171: 0 | W171: 3212 | X171: 793 | Y171: 否 | Z171: 否 | AA171: 否 | AB171: 否 | AC171: 否 | AD171: 否 | AE171: 否 | AF171: 否 | AG171: 是 | AH171: 是 | AI171: 否 | AJ171: 否 | AK171: 否 | AL171: 否 | AM171: 2 | AN171: 18 | AO171: 2 | AP171: 0 | AQ171: 22 | AR171: 否 | AS171: 否 | AT171: 200万以下 | AU171: 否 | AV171: 3 | AW171: 是 | AX171: 否 | AY171: 否 | AZ171: 0 | BA171: 1 | BB171: 否
A172: 168 | B172: 四川省西冶奥兴铸造有限公司 | C172: 915101247712470015 | D172: 其他 | E172: 汽车制造业 | F172: 郫都区德源镇成都现代工业港南区滨清路439号 | G172: 郫都区成都现代工业港 | H172: 40584.8 | I172: 279 | J172: -2532.9 | K172: 22705.7 | L172: 74 | M172: =43843926.8100001/10000 -> 4,384.39 | N172: 39686.9 | O172: 113 | P172: -346.2 | Q172: 63.9 | R172: 113 | S172: 254.8 | T172: 183 | U172: 1464.97 | V172: 0 | W172: 29053 | X172: 26037.3 | Y172: 否 | Z172: 否 | AA172: 省内领先 | AB172: 否 | AC172: 否 | AD172: 否 | AE172: 否 | AF172: 否 | AG172: 否 | AH172: 否 | AI172: 否 | AJ172: 否 | AK172: 否 | AL172: 否 | AM172: 0 | AN172: 7 | AO172: 0 | AP172: 0 | AQ172: 7 | AR172: 否 | AS172: 否 | AT172: 200万以上 | AU172: 否 | AV172: 0 | AW172: 否 | AX172: 否 | AY172: 是 | AZ172: 9552 | BA172: 0 | BB172: 省级
A173: 169 | B173: 当纳利（成都）印刷有限公司 | C173: 91510100574621287X | D173: 其他 | E173: 印刷和记录媒介复制业 | F173: 四川省成都市郫县红光镇港华路888号 | G173: 现代工业港 | H173: 62304.65 | I173: 1230.18 | J173: 7131.74 | K173: 67193.45 | L173: 1958.42 | M173: 5058.02 | N173: 75821.16 | O173: 2271.2 | P173: 9593.07 | Q173: 47 | R173: 2271.2 | S173: 2771.72 | T173: 1814 | U173: 741 | V173: 0 | W173: 47643.44 | X173: 25538.77 | Y173: 否 | Z173: 否 | AA173: 否 | AB173: 否 | AC173: 否 | AD173: 否 | AE173: 否 | AF173: 否 | AG173: 否 | AH173: 否 | AI173: 否 | AJ173: 否 | AK173: 否 | AL173: 否 | AM173: 2 | AN173: 19 | AO173: 0 | AP173: 0 | AQ173: 21 | AR173: 否 | AS173: 否 | AT173: 200万以下 | AU173: 否 | AV173: 3 | AW173: 否 | AX173: 否 | AY173: 否 | AZ173: 4000 | BA173: 8 | BB173: 省级
A174: 170 | B174: 成都道弘实业有限公司 | C174: 915101247436104088 | D174: 其他 | E174: 橡胶和塑料制品业 | F174: 成都市郫县成都现代工业港港富路238号附1号 | G174: 现代工业港 | H174: 17336.3 | I174: 839.5 | J174: 1412.2 | K174: 18582.2 | L174: 729.6 | M174: 1429.5 | N174: 18099.9 | O174: 511.7 | P174: 1355.8 | Q174: 7.91 | R174: 511.7 | S174: 1331 | T174: 76 | U174: 114.14 | V174: 0 | W174: 16112.1 | X174: 4455.3 | Y174: 否 | Z174: 否 | AA174: 否 | AB174: 否 | AC174: 否 | AD174: 否 | AE174: 否 | AF174: 否 | AG174: 否 | AH174: 是 | AI174: 否 | AJ174: 否 | AK174: 否 | AL174: 否 | AM174: 3 | AN174: 20 | AO174: 0 | AP174: 0 | AQ174: 23 | AR174: 否 | AS174: 否 | AT174: 否 | AU174: 否 | AV174: 3 | AW174: 否 | AX174: 否 | AY174: 否 | AZ174: 325 | BA174: 1 | BB174: 否
A175: 171 | B175: 成都星科印刷器材有限公司 | C175: 91510124792190606J | D175: 其他 | E175: 印刷和记录媒介复制业 | F175: 成都市郫都区港北三路85号 | G175: 现代工业港 | H175: 9543.31 | I175: 275.46 | J175: 134.71 | K175: 10546.36 | L175: 152.58 | M175: 349.55 | N175: 9060.06 | O175: 186.88 | P175: 3 | Q175: 19.78 | R175: 186.88 | S175: 478.79 | T175: 69 | U175: 885.78 | V175: 0.1 | W175: 6163.1 | X175: 4078.6 | Y175: 否 | Z175: 否 | AA175: 省内领先 | AB175: 否 | AC175: 否 | AD175: 否 | AE175: 否 | AF175: 是 | AG175: 否 | AH175: 是 | AI175: 否 | AJ175: 否 | AK175: 否 | AL175: 否 | AM175: 2 | AN175: 15 | AO175: 0 | AP175: 0 | AQ175: 17 | AR175: 否 | AS175: 否 | AT175: 200万以下 | AU175: 否 | AV175: 2 | AW175: 否 | AX175: 否 | AY175: 否 | AZ175: 162.67 | BA175: 0 | BB175: 省级
A176: 172 | B176: 成都欣国立低温科技有限公司 | C176: 915101246743170559 | D176: =VLOOKUP(B176,B176:E176,4,0) -> 通用设备制造业 | E176: 通用设备制造业 | F176: 成都市郫都区红光镇港北七路138号 | G176: 现代工业港 | H176: 2176 | I176: 213.24 | J176: 109 | K176: 1715 | L176: 149.43 | M176: -60 | N176: 1584 | O176: 89.44 | P176: -31 | Q176: 25.8 | R176: 89.44 | S176: 0 | T176: 75 | U176: 42 | V176: 0 | W176: 4460 | X176: 2715 | Y176: 否 | Z176: 否 | AA176: 否 | AB176: 否 | AC176: 否 | AD176: 否 | AE176: 否 | AF176: 否 | AG176: 否 | AH176: 是 | AI176: 否 | AJ176: 否 | AK176: 否 | AL176: 否 | AM176: 2 | AN176: 24 | AO176: 0 | AP176: 0 | AQ176: 26 | AR176: 否 | AS176: 否 | AT176: 否 | AU176: 否 | AV176: 3 | AW176: 否 | AX176: 否 | AY176: 否 | AZ176: 0 | BA176: 0 | BB176: 否
A177: 173 | B177: 成都鑫成鹏高分子科技股份有限公司 | C177: 9151010068455656X7 | D177: 通用设备制造业 | E177: 电气机械和器材制造业 | F177: 成都市郫县红光镇港泰大道808号 | G177: 现代工业港 | H177: 2125.37 | I177: 460.72 | J177: 693.11 | K177: 1744.93 | L177: 305.78 | M177: -810.26 | N177: 1496.74 | O177: 259.7 | P177: -818.32 | Q177: 72 | R177: 259.7 | S177: 630.09 | T177: 98 | U177: 493.74 | V177: 0 | W177: 21766.26 | X177: 9540.88 | Y177: 否 | Z177: 否 | AA177: 否 | AB177: 否 | AC177: 否 | AD177: 否 | AE177: 否 | AF177: 是 | AG177: 否 | AH177: 是 | AI177: 否 | AJ177: 是 | AK177: 否 | AL177: 否 | AM177: 6 | AN177: 26 | AO177: 0 | AP177: 0 | AQ177: 32 | AR177: 否 | AS177: 否 | AT177: 否 | AU177: 否 | AV177: 3 | AW177: 否 | AX177: 否 | AY177: 否 | AZ177: 0 | BA177: 0 | BB177: 否
A178: 174 | B178: 四川龙鸟智能交通科技有限公司 | C178: 91510124574614060H | D178: =VLOOKUP(B178,B178:E178,4,0) -> 金属制品业 | E178: 金属制品业 | F178: 郫县成都现代工业港北区蜀都大道北一段1941号 | G178: 现代工业港 | H178: 3195 | I178: 101 | J178: 11 | K178: 3090 | L178: 96 | M178: 56 | N178: 3390 | O178: 117 | P178: 47 | Q178: 12.4 | R178: 117 | S178: 229 | T178: 50 | U178: 51.74 | V178: 0 | W178: 7478 | X178: 4316 | Y178: 否 | Z178: 否 | AA178: 否 | AB178: 否 | AC178: 否 | AD178: 否 | AE178: 否 | AF178: 否 | AG178: 否 | AH178: 是 | AI178: 否 | AJ178: 否 | AK178: 否 | AL178: 否 | AM178: 0 | AN178: 11 | AO178: 5 | AP178: 0 | AQ178: 16 | AR178: 否 | AS178: 否 | AT178: 否 | AU178: 否 | AV178: 3 | AW178: 否 | AX178: 否 | AY178: 否 | AZ178: 665 | BA178: 0 | BB178: 否
A179: 175 | B179: 成都华维印刷器材有限公司 | C179: 915101247377037044 | D179: 其他 | E179: 专用设备制造业 | F179: 成都现代工业港北区港泰大道238号 | G179: 现代工业港 | H179: 11595.6 | I179: 317.3 | J179: 652.6 | K179: 13210 | L179: 1349 | M179: 1168 | N179: 10266.63 | O179: 815.43 | P179: 989.69 | Q179: 20.13 | R179: 815.43 | S179: 724.7 | T179: 72 | U179: 854.61 | V179: 0 | W179: 11726.7 | X179: 4331.41 | Y179: 是 | Z179: 是 | AA179: 否 | AB179: 否 | AC179: 否 | AD179: 否 | AE179: 否 | AF179: 否 | AG179: 否 | AH179: 否 | AI179: 否 | AJ179: 否 | AK179: 否 | AL179: 否 | AM179: 2 | AN179: 13 | AO179: 0 | AP179: 0 | AQ179: 15 | AR179: 否 | AS179: 否 | AT179: 否 | AU179: 否 | AV179: 1 | AW179: 否 | AX179: 否 | AY179: 否 | AZ179: 0 | BA179: 0 | BB179: 省级
A180: 176 | B180: 成都川友调味品有限公司 | C180: 91510124677155864J | D180: =VLOOKUP(B180,B180:E180,4,0) -> 食品制造业 | E180: 食品制造业 | F180: 成都市郫都区德源镇永光村 | G180: 郫都区 | H180: 1882 | I180: 67 | J180: 47 | K180: 2213 | L180: 65 | M180: 37 | N180: 3437 | O180: 118 | P180: 65 | Q180: 23 | R180: 118 | S180: 0 | T180: 38 | U180: 89 | V180: 0 | W180: 1648 | X180: 1479 | Y180: 否 | Z180: 否 | AA180: 否 | AB180: 否 | AC180: 否 | AD180: 否 | AE180: 否 | AF180: 否 | AG180: 否 | AH180: 否 | AI180: 否 | AJ180: 否 | AK180: 否 | AL180: 否 | AM180: 0 | AN180: 0 | AO180: 0 | AP180: 0 | AQ180: 0 | AR180: 否 | AS180: 否 | AT180: 否 | AU180: 否 | AV180: 0 | AW180: 否 | AX180: 否 | AY180: 否 | AZ180: 否 | BA180: 0 | BB180: 否
A181: 177 | B181: 成都新星成明生物科技股份有限公司 | C181: 91510100794914241P | D181: 通用设备制造业 | E181: 农副食品加工业 | F181: 郫都区安德街道金柏村4组326号 | G181: 安德街道 | H181: 2587 | I181: 31 | J181: 15 | K181: 5270 | L181: 51 | M181: 1 | N181: 4484 | O181: 59 | P181: 8 | Q181: 14 | R181: 59 | S181: 0 | T181: 22 | U181: 86.05 | V181: 0 | W181: 5457 | X181: 4044 | Y181: 否 | Z181: 否 | AA181: 否 | AB181: 否 | AC181: 否 | AD181: 否 | AE181: 否 | AF181: 否 | AG181: 否 | AH181: 否 | AI181: 否 | AJ181: 否 | AK181: 否 | AL181: 否 | AM181: 0 | AN181: 0 | AO181: 0 | AP181: 0 | AQ181: 0 | AR181: 否 | AS181: 否 | AT181: 否 | AU181: 否 | AV181: 0 | AW181: 否 | AX181: 否 | AY181: 否 | AZ181: 否 | BA181: 0 | BB181: 否
A182: 178 | B182: 成都清洋宝柏包装有限公司 | C182: 9151010075280137XJ | D182: 其他 | E182: 印刷和记录媒介复制业 | F182: 四川省成都市郫都区成都现代工业港北片区港泰大道820号 | G182: 郫都区 | H182: =288716344.26/10000 -> 28871.63 | I182: =6473201.38/10000 -> 647.32 | J182: =-8436462.42/10000 -> -843.65 | K182: =274206847.47/10000 -> 27420.68 | L182: =6655832.46/10000 -> 665.58 | M182: =-48157923.8/10000 -> -4815.79 | N182: =288650360.23/10000 -> 28865.04 | O182: =11363640.38/10000 -> 1136.36 | P182: =-15207815.28/10000 -> -1520.78 | Q182: 57.2 | R182: =11363640.38/10000 -> 1136.36 | S182: =10673542.47/10000 -> 1067.35 | T182: 313 | U182: 102.72 | V182: 1.2 | W182: =194604475.14/10000 -> 19460.44751 | X182: =287164190.93/10000 -> 28716.41909 | Y182: 否 | Z182: 否 | AA182: 国际领先 | AB182: 否 | AC182: 否 | AD182: 否 | AE182: 否 | AF182: 是 | AG182: 否 | AH182: 是 | AI182: 否 | AJ182: 是 | AK182: 否 | AL182: 否 | AM182: 1 | AN182: 26 | AO182: 0 | AP182: 0 | AQ182: 27 | AR182: 是 | AS182: 否 | AT182: 否 | AU182: 否 | AV182: 1 | AW182: 是 | AX182: 是 | AY182: 是 | AZ182: 639.00 | BA182: 1 | BB182: 否
A183: 179 | B183: 成都三国机械电子有限公司 | C183: 915100006216075180 | D183: 电子信息 | E183: 其他设备制造业 | F183: 四川省成都市郫都区郫筒街道望丛东路17号 | G183: 凉水井社区 | H183: 23,656 | I183: =(19256458.17-8019441.97)/10000 -> 1,124 | J183: 204 | K183: 26,509 | L183: =(17759261.05-5478202.23-1557990.71)/10000 -> 1,072 | M183: 726 | N183: 26,642 | O183: =15919383.85/10000 -> 1,592 | P183: 1,204 | Q183: 38.8 | R183: =15919383.85/10000 -> 1,592 | S183: 1097 | T183: 369 | U183: 1302 | V183: 4.1 | W183: 22773 | X183: 6189 | Y183: 否 | Z183: 否 | AA183: 国际领先 | AB183: 否 | AC183: 否 | AD183: 否 | AE183: 否 | AF183: 否 | AG183: 否 | AH183: 否 | AI183: 否 | AJ183: 否 | AK183: 否 | AL183: 否 | AM183: 0 | AN183: 0 | AO183: 0 | AP183: 0 | AQ183: 0 | AR183: 否 | AS183: 否 | AT183: 200万以下 | AU183: 否 | AV183: 3 | AW183: 是 | AX183: 否 | AY183: 是 | AZ183: 1184 | BA183: 4 | BB183: 否
A184: 180 | B184: 成都洪正光学有限公司 | C184: 91510124740344095B | D184: 其他 | E184: 其他制造业 | F184: 成都市郫都区安德街道云凌村6社302号 | G184: 安德街道 | H184: 2411 | I184: 170.8 | J184: -61.2 | K184: 2542.2 | L184: 164.3 | M184: -147.2 | N184: 3420.5 | O184: 202 | P184: 231 | Q184: 14 | R184: 202 | S184: 180.52 | T184: 189 | U184: 170.83 | V184: 0 | W184: 1913 | X184: 1569 | Y184: 否 | Z184: 否 | AA184: 否 | AB184: 否 | AC184: 否 | AD184: 否 | AE184: 否 | AF184: 否 | AG184: 否 | AH184: 是 | AI184: 否 | AJ184: 否 | AK184: 否 | AL184: 否 | AM184: 2 | AN184: 15 | AO184: 0 | AP184: 0 | AQ184: 17 | AR184: 否 | AS184: 否 | AT184: 200万以下 | AU184: 否 | AV184: 3 | AW184: 是 | AX184: 否 | AY184: 否 | AZ184: 3000 | BA184: 0 | BB184: 否
A185: 181 | B185: 四川红光汽车机电有限公司 | C185: 91510100621703884N | D185: 其他 | E185: 汽车制造业 | F185: 成都市郫都区望丛东路19号 | G185: 成都市郫都区 | H185: 11002 | I185: 702 | J185: -4686 | K185: 10946 | L185: 265 | M185: -1554 | N185: 10076 | O185: 221 | P185: -3634 | Q185: 133 | R185: 221 | S185: 1154 | T185: 412 | U185: 502 | V185: 24 | W185: 13504 | X185: 12828 | Y185: 否 | Z185: 否 | AA185: 国内领先 | AB185: 否 | AC185: 否 | AD185: 否 | AE185: 否 | AF185: 是 | AG185: 否 | AH185: 是 | AI185: 否 | AJ185: 是 | AK185: 否 | AL185: 否 | AM185: 56 | AN185: 157 | AO185: 149 | AP185: 0 | AQ185: 362 | AR185: 否 | AS185: 否 | AT185: 否 | AU185: 否 | AV185: 1 | AW185: 否 | AX185: 否 | AY185: 是 | AZ185: 1700 | BA185: 0 | BB185: 否
A186: 182 | B186: 四川旭华制药有限公司 | C186: 915101006217104275 | D186: 通用设备制造业 | E186: 医药制造业 | F186: 成都郫都区成灌路799号 | G186: 成都市郫都区 | H186: 4346 | I186: 531 | J186: 9.8 | K186: 4312 | L186: 444 | M186: 86 | N186: 3880 | O186: 417 | P186: -1.6 | Q186: 32.1 | R186: 417 | S186: 155.8 | T186: 68 | U186: 257.7 | V186: 0 | W186: 10352 | X186: 3169 | Y186: 否 | Z186: 否 | AA186: 否 | AB186: 否 | AC186: 否 | AD186: 否 | AE186: 否 | AF186: 否 | AG186: 否 | AH186: 是 | AI186: 否 | AJ186: 否 | AK186: 否 | AL186: 否 | AM186: 0 | AN186: 12 | AO186: 0 | AP186: 0 | AQ186: 12 | AR186: 否 | AS186: 否 | AT186: 否 | AU186: 否 | AV186: 0 | AW186: 否 | AX186: 否 | AY186: 否 | AZ186: 0 | BA186: 0 | BB186: 否
A187: 183 | B187: 成都惠康净科技有限公司 | C187: 91510100698859916R | D187: 其他 | E187: 其他制造业 | F187: 成都市郫都区成都现代工业港港北六路106号 | G187: 郫都区工业港 | H187: 1850 | I187: 107.1 | J187: 14.93 | K187: 2126 | L187: 123.17 | M187: 24.23 | N187: 5356 | O187: 163.87 | P187: 223.07 | Q187: 8.9 | R187: 163.87 | S187: 0 | T187: 110 | U187: 65.58 | V187: 0 | W187: 4623 | X187: 2637 | Y187: 否 | Z187: 否 | AA187: 国内领先 | AB187: 否 | AC187: 否 | AD187: 否 | AE187: 否 | AF187: 否 | AG187: 否 | AH187: 否 | AI187: 否 | AJ187: 否 | AK187: 否 | AL187: 否 | AM187: 0 | AN187: 0 | AO187: 0 | AP187: 0 | AQ187: 0 | AR187: 否 | AS187: 否 | AT187: 否 | AU187: 否 | AV187: 1 | AW187: 否 | AX187: 否 | AY187: 是 | AZ187: 400 | BA187: 0 | BB187: 否
A188: 184 | B188: 四川基业电气设备有限公司 | C188: 915101247234283694 | D188: 通用设备制造业 | E188: 电气机械和器材制造业 | F188: 成都市郫都区成都现代工业港港北一路482号 | G188: 郫都区工业港 | H188: 4489 | I188: 142 | J188: 50.4 | K188: 5905 | L188: 210 | M188: 37 | N188: 4773 | O188: 161 | P188: 87 | Q188: 22 | R188: 161 | S188: 256 | T188: 54 | U188: 24.62 | V188: 0 | W188: 11339 | X188: 1737 | Y188: 否 | Z188: 否 | AA188: 否 | AB188: 否 | AC188: 否 | AD188: 否 | AE188: 否 | AF188: 否 | AG188: 否 | AH188: 是 | AI188: 否 | AJ188: 否 | AK188: 否 | AL188: 否 | AM188: 0 | AN188: 15 | AO188: 0 | AP188: 0 | AQ188: 15 | AR188: 否 | AS188: 否 | AT188: 否 | AU188: 否 | AV188: 3 | AW188: 否 | AX188: 否 | AY188: 否 | AZ188: 0 | BA188: 0 | BB188: 否
A189: 185 | B189: 四川宝光电器设备有限公司 | C189: 9151012475284269XL | D189: 通用设备制造业 | E189: 电气机械和器材制造业 | F189: 成都市郫都区成都现代工业港北区港北三路277号 | G189: 郫都区工业港 | H189: 2588 | I189: 101.7 | J189: -18.3 | K189: 2993.6 | L189: 85.2 | M189: 85.5 | N189: 633.9 | O189: 182.1 | P189: 181.2 | Q189: 10 | R189: 182.1 | S189: 298.1 | T189: 83 | U189: 4.67 | V189: 4.67 | W189: 6590.56 | X189: 4363.76 | Y189: 否 | Z189: 否 | AA189: 否 | AB189: 否 | AC189: 否 | AD189: 否 | AE189: 否 | AF189: 否 | AG189: 否 | AH189: 否 | AI189: 否 | AJ189: 否 | AK189: 否 | AL189: 否 | AM189: 1 | AN189: 45 | AO189: 3 | AP189: 0 | AQ189: 49 | AR189: 否 | AS189: 否 | AT189: 否 | AU189: 否 | AV189: 2 | AW189: 否 | AX189: 否 | AY189: 否 | AZ189: 265.62 | BA189: 1 | BB189: 否
A190: 186 | B190: 成都市福顿门业有限公司 | C190: 91510124725385825J | D190: =VLOOKUP(B190,B190:E190,4,0) -> 金属制品业 | E190: 金属制品业 | F190: 成都市郫都区成都现代工业港北区港北四路630号 | G190: 郫都区工业港 | H190: 3467.71 | I190: 165.45 | J190: 6.76 | K190: 4595.89 | L190: 167.4 | M190: -13.34 | N190: 5091.6 | O190: 192 | P190: -70.43 | Q190: 66 | R190: 192 | S190: 221.7 | T190: 320 | U190: 1256.02 | V190: 0 | W190: 7040.65 | X190: 5500 | Y190: 否 | Z190: 否 | AA190: 省内领先 | AB190: 否 | AC190: 否 | AD190: 否 | AE190: 否 | AF190: 否 | AG190: 否 | AH190: 否 | AI190: 是 | AJ190: 否 | AK190: 否 | AL190: 否 | AM190: 0 | AN190: 0 | AO190: 0 | AP190: 0 | AQ190: 0 | AR190: 否 | AS190: 否 | AT190: 200万以上 | AU190: 否 | AV190: 1 | AW190: 否 | AX190: 否 | AY190: 否 | AZ190: 280 | BA190: 0 | BB190: 否
A191: 187 | B191: 四川万控电气成套有限公司 | C191: 91510000749613458A | D191: 通用设备制造业 | E191: 电气机械和器材制造业 | F191: 成都市郫都区成都现代工业港北区港华路623号 | G191: 郫都区工业港 | H191: 22678.1 | I191: 52.3 | J191: 244.6 | K191: 24105.5 | L191: 46.3 | M191: 243.3 | N191: 20871.2 | O191: 25.3 | P191: 2541.4 | Q191: 30.2 | R191: 25.3 | S191: 300 | T191: 226 | U191: 49.16 | V191: 0 | W191: 36592.8 | X191: 9598.3 | Y191: 否 | Z191: 否 | AA191: 否 | AB191: 否 | AC191: 否 | AD191: 否 | AE191: 否 | AF191: 否 | AG191: 否 | AH191: 否 | AI191: 否 | AJ191: 否 | AK191: 否 | AL191: 否 | AM191: 1 | AN191: 13 | AO191: 0 | AP191: 0 | AQ191: 14 | AR191: 否 | AS191: 否 | AT191: 否 | AU191: 否 | AV191: 3 | AW191: 否 | AX191: 否 | AY191: 否 | AZ191: 0 | BA191: 0 | BB191: 否
A192: 188 | B192: 四川摩天电缆有限公司 | C192: 91510124772976484M | D192: 电子信息 | E192: 计算机、通信和其他电子设备制造业 | F192: 郫都区工业港北区港北二路248号 | G192: 工业港北片区 | H192: 31507 | I192: 745.9 | J192: 425.79 | K192: 37000 | L192: 817.68 | M192: 816.96 | N192: 30329 | O192: 614.78 | P192: 263.32 | Q192: 43.3 | R192: 614.78 | S192: 963.69 | T192: 170 | U192: 723.42 | V192: 0 | W192: 27058.92 | X192: 9904.98 | Y192: 否 | Z192: 否 | AA192: 否 | AB192: 否 | AC192: 省级专精特新 | AD192: 否 | AE192: 否 | AF192: 是 | AG192: 否 | AH192: 是 | AI192: 否 | AJ192: 是 | AK192: 否 | AL192: 否 | AM192: 0 | AN192: 30 | AO192: 1 | AP192: 0 | AQ192: 31 | AR192: 否 | AS192: 否 | AT192: 否 | AU192: 否 | AV192: 3 | AW192: 否 | AX192: 否 | AY192: 否 | AZ192: 77.6 | BA192: 4 | BB192: 否
A193: 189 | B193: 成都鑫三合机电新技术开发有限公司 | C193: 91510124755968263A | D193: =VLOOKUP(B193,B193:E193,4,0) -> 通用设备制造业 | E193: 通用设备制造业 | F193: 成都市郫都区现代工业港北区港北五路267号 | G193: 郫都工业港 | H193: 2490.5 | I193: 327.2 | J193: 34.8 | K193: 2601.3 | L193: 168.2 | M193: -644.3 | N193: 4704.6 | O193: 344.8 | P193: 752.6 | Q193: 23 | R193: 344.8 | S193: 274.9 | T193: 174 | U193: 197.99 | V193: 0 | W193: 15217.4 | X193: 4261.5 | Y193: 否 | Z193: 否 | AA193: 否 | AB193: 否 | AC193: 否 | AD193: 否 | AE193: 否 | AF193: 否 | AG193: 否 | AH193: 否 | AI193: 否 | AJ193: 否 | AK193: 否 | AL193: 否 | AM193: 0 | AN193: 18 | AO193: 0 | AP193: 0 | AQ193: 18 | AR193: 否 | AS193: 否 | AT193: 否 | AU193: 否 | AV193: 0 | AW193: 否 | AX193: 否 | AY193: 是 | AZ193: 0 | BA193: 0 | BB193: 否
A194: 190 | B194: 四川中缆天泰科技有限公司 | C194: 91510124MA6C561X90 | D194: 其他 | E194: 其他制造业 | F194: 成都市郫都区现代工业港北区北三路269号 | G194: 郫都工业港 | H194: 2074 | I194: 9 | J194: 70 | K194: 3124 | L194: 18 | M194: 1672 | N194: 3610 | O194: 13 | P194: 1516 | Q194: 5.9 | R194: 13 | S194: 23.1456 | T194: 19 | U194: 61.45 | V194: 0 | W194: 2005.447 | X194: 1478.62 | Y194: 否 | Z194: 否 | AA194: 否 | AB194: 否 | AC194: 否 | AD194: 否 | AE194: 否 | AF194: 否 | AG194: 否 | AH194: 是 | AI194: 否 | AJ194: 否 | AK194: 否 | AL194: 否 | AM194: 0 | AN194: 13 | AO194: 0 | AP194: 0 | AQ194: 13 | AR194: 否 | AS194: 否 | AT194: 否 | AU194: 否 | AV194: 1 | AW194: 否 | AX194: 否 | AY194: 否 | AZ194: 0 | BA194: 0 | BB194: 否
A195: 191 | B195: 成都福友泰电气设备有限公司 | C195: 915101057712281429 | D195: 其他 | E195: 批发和零售业 | F195: 成都市郫都区工业港南片区正港路259号 | G195: 郫都工业港 | H195: 3694.79 | I195: 39.68 | J195: 51.72 | K195: 4068.15 | L195: 29.22 | M195: 198.49 | N195: 5595.73 | O195: -50.91 | P195: 350 | Q195: 9.7 | R195: -50.91 | S195: 350 | T195: 73 | U195: 16 | V195: 0 | W195: 4041.41 | X195: 2436.47 | Y195: 否 | Z195: 否 | AA195: 省内领先 | AB195: 否 | AC195: 否 | AD195: 市级专精特新 | AE195: 否 | AF195: 否 | AG195: 否 | AH195: 否 | AI195: 否 | AJ195: 否 | AK195: 否 | AL195: 否 | AM195: 0 | AN195: 15 | AO195: 0 | AP195: 0 | AQ195: 15 | AR195: 否 | AS195: 否 | AT195: 否 | AU195: 否 | AV195: 1 | AW195: 否 | AX195: 否 | AY195: 是 | AZ195: 0 | BA195: 0 | BB195: 否
A196: 192 | B196: 成都金邦电气设备有限公司 | C196: 91510124752837452X | D196: 电子信息 | E196: 计算机、通信和其他电子设备制造业 | F196: 成都市郫都区现代工业港南片区华港路58号 | G196: 郫都区 | H196: 20733.00 | I196: 600.00 | J196: 520.00 | K196: 19171.00 | L196: 615.00 | M196: 595.00 | N196: 15859.00 | O196: 540.00 | P196: 562.00 | Q196: 29.9 | R196: 540.00 | S196: 20.00 | T196: 110.00 | U196: 76.89 | V196: 0 | W196: 8650.00 | X196: 4367.00 | Y196: 否 | Z196: 否 | AA196: 否 | AB196: 否 | AC196: 否 | AD196: 否 | AE196: 否 | AF196: 否 | AG196: 否 | AH196: 否 | AI196: 否 | AJ196: 否 | AK196: 否 | AL196: 否 | AM196: 0 | AN196: 0 | AO196: 0 | AP196: 0 | AQ196: 0 | AR196: 否 | AS196: 否 | AT196: 否 | AU196: 否 | AV196: 3 | AW196: 否 | AX196: 否 | AY196: 否 | AZ196: 40 | BA196: 0 | BB196: 否
A197: 193 | B197: 四川品品食品有限公司 | C197: 91510124062438032L | D197: 其他 | E197: 农副食品加工业 | F197: 成都市郫都区安德镇中国川菜产业功能区蜀雅路272号 | G197: 郫都区 | H197: 20197.65 | I197: 1087.83 | J197: 320 | K197: 21967.68 | L197: 1169.26 | M197: 468 | N197: 21934.35 | O197: 1047.78 | P197: 550 | Q197: 35 | R197: 1047.78 | S197: 771.3 | T197: 413 | U197: 1870.69 | V197: 520 | W197: 12252.05 | X197: 5471.3 | Y197: 否 | Z197: 否 | AA197: 省内领先 | AB197: 否 | AC197: 否 | AD197: 市级专精特新 | AE197: 否 | AF197: 是 | AG197: 否 | AH197: 否 | AI197: 否 | AJ197: 是 | AK197: 否 | AL197: 否 | AM197: 3 | AN197: 31 | AO197: 16 | AP197: 0 | AQ197: 50 | AR197: 是 | AS197: 否 | AT197: 否 | AU197: 否 | AV197: 1 | AW197: 否 | AX197: 是 | AY197: 否 | AZ197: 1338 | BA197: 0 | BB197: 否
A198: 194 | B198: 成都蜀奥电气设备有限公司 | C198: 915101246721905135 | D198: 通用设备制造业 | E198: 电气机械和器材制造业 | F198: 成都市郫都区德源街道东林村12社 | G198: 郫都区 | H198: 2067 | I198: 106 | J198: 51 | K198: 2109 | L198: 108 | M198: 40 | N198: 2283 | O198: 103 | P198: 47 | Q198: 3.3 | R198: 103 | S198: 0 | T198: 59 | U198: 13.7 | V198: 58.02 | W198: 1754 | X198: 915 | Y198: 否 | Z198: 否 | AA198: 否 | AB198: 否 | AC198: 否 | AD198: 否 | AE198: 否 | AF198: 否 | AG198: 否 | AH198: 否 | AI198: 否 | AJ198: 否 | AK198: 否 | AL198: 否 | AM198: 0 | AN198: 0 | AO198: 0 | AP198: 0 | AQ198: 0 | AR198: 否 | AS198: 否 | AT198: 否 | AU198: 否 | AV198: 3 | AW198: 否 | AX198: 否 | AY198: 否 | AZ198: 10 | BA198: 0 | BB198: 否
A199: 195 | B199: 成都易明半导体有限公司 | C199: 915101005773584101 | D199: 通用设备制造业 | E199: 电气机械和器材制造业 | F199: 现代工业港北片区港北四路507号 | G199: 现代工业港 | H199: 2364.42 | I199: 70.91 | J199: -501.53 | K199: 2611.73 | L199: 54.88 | M199: -412.36 | N199: 3353.23 | O199: 41.28 | P199: -92.66 | Q199: 27.94 | R199: 41.28 | S199: 278.53 | T199: 64 | U199: 18.75 | V199: 0 | W199: 4183.34 | X199: 4731.17 | Y199: 否 | Z199: 否 | AA199: 国际领先 | AB199: 否 | AC199: 否 | AD199: 否 | AE199: 否 | AF199: 否 | AG199: 否 | AH199: 是 | AI199: 否 | AJ199: 否 | AK199: 否 | AL199: 否 | AM199: 3 | AN199: 38 | AO199: 3 | AP199: 0 | AQ199: 44 | AR199: 否 | AS199: 否 | AT199: 否 | AU199: 否 | AV199: 3 | AW199: 否 | AX199: 否 | AY199: 否 | AZ199: 0 | BA199: 0 | BB199: 否
A200: 196 | B200: 成都市永昌泰塑料包装有限公司 | C200: 91510124790010309X | D200: 其他 | E200: 印刷和记录媒介复制业 | F200: 成都市郫都区成都现代工业港北片区港富路138号 | G200: 现代工业港 | H200: 0 | I200: 0 | J200: 0 | K200: 0 | L200: 0 | M200: 0 | N200: 7207.5 | O200: 107.553348 | P200: 财务换新人，统计不到 | Q200: 9.18 | R200: 107.553348 | S200: 0 | T200: 96 | U200: 211.14 | V200: 0.2 | W200: 7984.2 | X200: 2368 | Y200: 否 | Z200: 否 | AA200: 省内领先 | AB200: 否 | AC200: 否 | AD200: 否 | AE200: 否 | AF200: 否 | AG200: 否 | AH200: 否 | AI200: 否 | AJ200: 否 | AK200: 否 | AL200: 否 | AM200: 0 | AN200: 15 | AO200: 0 | AP200: 0 | AQ200: 15 | AR200: 否 | AS200: 否 | AT200: 200万以上 | AU200: 否 | AV200: 3 | AW200: 否 | AX200: 否 | AY200: 是 | AZ200: 0 | BA200: 0 | BB200: 否
... 11 more rows
